Workbook

Sheet Input Uni-Lateral (hidden)
A1: Translate research into private practice | I1: Key for colour codes
I2: Robot Colour Codes | J2: VAS pain | K2: Difference between injured and uninjured
I3: Red | J3: 6-10 | K3: 0-69%
I4: Orange | J4: 4-6 | K4: 70-85%
I5: Green | J5: 0-3 | K5: 85-100%
AO6: Patient Demographics
A7: Patient Demographics | W7: Patient Demographics | AO7: Initial assesment | AQ7: 2 | AS7: Clinical summary
A8: Initial assesment | C8: 2 | E8: Clinical summary | W8: Initial assesment | Y8: 2 | AA8: Clinical summary | AO8: Date: | AQ8: 2022-06-05 | AS8: JANIE HARDLOOP IN DIE PAD
A9: Date: | C9: 2022-06-05 | E9: JANIE HARDLOOP IN DIE PAD | W9: Date: | Y9: 2022-06-05 | AA9: JANIE HARDLOOP IN DIE PAD | AO9: Name & Surname: | AQ9: Koos
A10: Name & Surname: | C10: Koos | W10: Name & Surname: | Y10: Koos | AO10: Field | AQ10: Orthopeadic
A11: Field | C11: Orthopeadic | W11: Field | Y11: Orthopeadic | AO11: Diagnose: | AQ11: Primary | AR11: Secondary
A12: Diagnose: | C12: Primary | D12: Secondary | W12: Diagnose: | Y12: Primary | Z12: Secondary | AQ12: ACLR | AR12: nslbp
C13: ACLR | D13: nslbp | Y13: ACLR | Z13: nslbp | AO13: Months/weeks after injury | AQ13: 5 months
A14: Months/weeks after injury | C14: 5 months | W14: Months/weeks after injury | Y14: 5 months | AO14: Patient Goal | AQ14: Performance
A15: Patient Goal | C15: Performance | W15: Patient Goal | Y15: Performance | AO15: Patient Reported Outcomes Measures (PROM)
A16: Patient Reported Outcomes Measures (PROM) | W16: Patient Reported Outcomes Measures (PROM) | AO16: Subjective Scoring Sheet | AQ16: Current score | AR16: Bench mark | AS16: Comments
A17: Subjective Scoring Sheet | C17: Current score | D17: Bench mark | E17: Comments | W17: Subjective Scoring Sheet | Y17: Current Score | Z17: Initial Ass | AA17: Bench mark | AB17: Progress | AC17: Comments | AO17: Initial Eval | AP17: Ankle and Foot | AQ17: 0.56 | AR17: 0.67 | AS17: djhgsklhfaksjdhakldhakjhdakdh
A18: Initial Eval | B18: Ankle and Foot | C18: 0.56 | D18: 0.67 | E18: djhgsklhfaksjdhakldhakjhdakdh | W18: Initial Eval | X18: Ankle and Foot | Y18: 0.78 | Z18: 0.56 | AA18: 0.9 | AB18: =Y18-Z18 -> 0.22 | AO18: Initial | AP18: Oswestry Disability Index | AQ18: 0.44 | AR18: 0.78
A19: Initial | B19: Oswestry Disability Index | C19: 0.44 | D19: 0.78 | W19: Initial | X19: Oswestry Disability Index | Y19: 0.78 | Z19: 0.44 | AA19: 0.9 | AB19: =Y19-Z19 -> 0.34 | AO19: Initial | AP19: Lower leg | AQ19: 0.67 | AR19: 0.89
A20: Initial | B20: Lower leg | C20: 0.67 | D20: 0.89 | W20: Initial | X20: Lower leg | Y20: 0.78 | Z20: 0.67 | AA20: 0.9 | AB20: 0.11 | AO20: Patient Reported VAS Pain
A21: Patient Reported VAS Pain | W21: Patient Reported VAS Pain | AO21: Pain Outcome measure during activity or rest | AQ21: Location/area/referred | AS21: Current | AU21: Comments
A22: Pain Outcome measure during activity or rest | C22: Location/area/referred | E22: Current | G22: Comments | W22: Pain Outcome measure during activity or rest | Y22: Location/area/referred | AA22: Current | AC22: Current | AS22: Involved (/10) | AT22: Uninvolved(/10)
E23: Involved (/10) | F23: Uninvolved(/10) | AA23: Involved (/10) | AB23: Uninvolved(/10) | AC23: Involved (/10) | AD23: Uninvolved(/10) | AO23: Initial | AP23: xdfsd | AQ23: d | AS23: 3 | AT23: 0 | AU23: Fig 1: strtwetwr
A24: Initial | B24: xdfsd | C24: d | E24: 3 | F24: 0 | G24: Fig 1: strtwetwr | W24: Initial | X24: xdfsd | Y24: d | AA24: 3 | AB24: 0 | AC24: 2 | AD24: 0 | AO24: Initial | AP24: xdgdg | AQ24: cfgdfg | AS24: 4 | AT24: 0 | AU24: Fig 2: wtwrwrw
A25: Initial | B25: xdgdg | C25: cfgdfg | E25: 4 | F25: 0 | G25: Fig 2: wtwrwrw | W25: Initial | X25: xdgdg | Y25: cfgdfg | AA25: 4 | AB25: 0 | AC25: 4 | AD25: 0
A28: Start at INITIAL for FIRST ASSESSMENT
N29: 0.8
I31: Factor | J31: 0.85 | K31: 1
A32: Move to Progress 1 if not first assessment ----> --------------------->---------------------->------------- | V32: Move to progress 2 if progression made for final evaluation ---->-------------->------------->
A36: INITIAL | C36: Performance Based Outcomes Measures (PBOM)-Unilateral | U36: Progress 1 | AN36: Progress 2
C37: Musculoskeletal outcomes | E37: Test descriptor | F37: Equipment | G37: Injured | H37: Uninjured | I37: Bench mark | J37: Benchmark | K37: Comparisons | L37: Difference | M37: Target | V37: Musculoskeletal outcomes | X37: Test descriptor | Y37: Equipment | Z37: Injured | AA37: Uninjured | AB37: Bench mark | AC37: Benchmark | AD37: Comparisons | AE37: Difference | AF37: Target | AG37: TEST 2 RESULTS | AH37: Post treatment test | AO37: Musculoskeletal outcomes | AQ37: Test descriptor | AR37: Equipment | AS37: Injured | AT37: Uninjured | AU37: Bench mark | AV37: Benchmark | AW37: Comparisons | AX37: Difference | AY37: Target
F38: Metric | M38: Performance Deficit | N38: Test 1 Results | O38: Post treatment test | Y38: Metric | AF38: Performance Deficit | AR38: Metric | AY38: Performance Deficit | AZ38: Test 3 Results | BA38: Post treatment test | BF38: Test 4 results
C39: Initial Eval | E39: u | F39: Goniometre | G39: 17 | H39: 15 | I39: 25 | J39: =IF(I39>0,I39,H39) -> 25 | K39: =IF(OR(AND((H39/J39>$J$31),H39/J39<$K$31),I39=0), "Injured vs uninjured", "Injured vs benchmark") -> Injured vs benchmark | L39: =IF(K39="Injured vs uninjured", G39/H39,G39/J39) -> 0.68 | M39: 0.9 | N39: =IF(L39>=85%,"Pass",IF(L39<85%,"Fail","Error")) -> Fail | O39: Injured | P39: Uninjured | Q39: Benchmark | R39: =IF(OR(AND((P40/Q40>$J$31),P40/Q40<$K$31),I39=0), "Injured vs uninjured", "Injured vs benchmark") -> Injured vs uninjured | S39: =IF(R39="Injured vs uninjured", O40/P40,O40/Q40) -> 0.9545454545 | T39: =IF(S39>=85%,"Pass",IF(S39<85%,"Fail","Error")) -> Pass | V39: Progress 1 | X39: Leg press | Y39: Biodex | Z39: 125 | AA39: 160 | AB39: 200 | AC39: =IF(AB39>0,AB39,AA39) -> 200 | AD39: =IF(OR(AND((AA39/AC39>$J$31),AA39/AC39<$K$31),AB39=0), "Injured vs uninjured", "Injured vs benchmark") -> Injured vs benchmark | AE39: =IF(AD39="Injured vs uninjured", Z39/AA39,Z39/AC39) -> 0.625 | AF39: 1 | AG39: =IF(AE39>=85%,"Pass",IF(AE39<85%,"Fail","Error")) -> Fail | AH39: Injured | AI39: Uninjured | AJ39: Benchmark | AK39: =IF(OR(AND((AI40/AJ40>$J$31),AI40/AJ40<$K$31),AC39=0), "Injured vs uninjured", "Injured vs benchmark") -> Injured vs uninjured | AL39: =IF(AK39="Injured vs Uninjured", AH40/AI40,AH40/AC39) -> 0.8146067416 | AM39: =IF(AL39>=85%,"Pass",IF(AL39<85%,"Fail","Error")) -> Fail | AO39: Progress 2 | AQ39: fsd | AR39: Stopwatch | AS39: 17 | AT39: 24 | AU39: 34 | AV39: =IF(AU39>0,AU39,AT39) -> 34 | AW39: =IF(OR(AND((AT39/AV39>$J$31),AT39/AV39<$K$31),AU39=0), "Injured vs uninjured", "Injured vs benchmark") -> Injured vs benchmark | AX39: =IF(AW39="Injured vs Uninjured", AS39/AT39,AS39/AV39) -> 0.5 | AY39: 1 | AZ39: =IF(AX39>=85%,"Pass",IF(AX39<85%,"Fail","Error")) -> Fail | BA39: Injured | BB39: Uninjured | BC39: Benchmark | BD39: =IF(OR(AND((BB40/BC40>$J$31),BB40/BC40<$K$31),AV39=0), "Injured vs uninjured", "Injured vs benchmark") -> Injured vs uninjured | BE39: =IF(BD39="Injured vs Uninjured", BA40/BB40,BA40/BC40) -> 0.9 | BF39: =IF(BE39>=85%,"Pass",IF(AX39<85%,"Fail","Error")) -> Pass
F40: Degrees | M40: =L39-M39 -> -0.22 | O40: 21 | P40: 22 | Q40: =IF(E39="","Ignore",IF(K39="Injured vs Uninjured",J39,J39)) -> 25 | Y40: Nm | AF40: =AE39-AF39 -> -0.375 | AH40: 145 | AI40: 178 | AJ40: =IF(X39="","Ignore",IF(AD39="Injured vs Uninjured",AC39,AC39)) -> 200 | AR40: Seconds | AY40: =AX39-AY39 -> -0.5 | BA40: 27 | BB40: 30 | BC40: =IF(X39="Enter New Value","Ignore",IF(AW39="Injured vs Uninjured",AT39,AV39)) -> 34
C41: =C39 -> Initial Eval | E41: f | F41: Goniometre | G41: 20 | H41: 20 | I41: 30 | J41: =IF(I41>0,I41,H41) -> 30 | K41: =IF(OR(AND((H41/J41>$J$31),H41/J41<$K$31),I41=0), "Injured vs uninjured", "Injured vs benchmark") -> Injured vs benchmark | L41: =IF(K41="Injured vs uninjured", G41/H41,G41/J41) -> 0.6666666667 | M41: 0.9 | N41: =IF(L41>=85%,"Pass",IF(L41<85%,"Fail","Error")) -> Fail | O41: =O39 -> Injured | P41: =P39 -> Uninjured | Q41: =Q39 -> Benchmark | R41: =IF(OR(AND((P42/Q42>$J$31),P42/Q42<$K$31),I41=0), "Injured vs uninjured", "Injured vs benchmark") -> Injured vs uninjured | S41: =IF(R41="Injured vs uninjured", O42/P42,O42/Q42) -> 0.9310344828 | T41: =IF(S41>=85%,"Pass",IF(S41<85%,"Fail","Error")) -> Pass | V41: =V39 -> Progress 1 | X41: fh | Y41: Biodex | Z41: 400 | AA41: 780 | AB41: 950 | AC41: =IF(AB41>0,AB41,AA41) -> 950 | AD41: =IF(OR(AND((AA41/AC41>$J$31),AA41/AC41<$K$31),AB41=0), "Injured vs uninjured", "Injured vs benchmark") -> Injured vs benchmark | AE41: =IF(AD41="Injured vs uninjured", Z41/AA41,Z41/AC41) -> 0.4210526316 | AF41: 1 | AG41: =IF(AE41>=85%,"Pass",IF(AE41<85%,"Fail","Error")) -> Fail | AH41: Injured | AI41: =AI39 -> Uninjured | AJ41: =AJ39 -> Benchmark | AK41: =IF(OR(AND((AI42/AJ42>$J$31),AI42/AJ42<$K$31),AC41=0), "Injured vs uninjured", "Injured vs benchmark") -> Injured vs uninjured | AL41: =IF(AK41="Injured vs Uninjured", AH42/AI42,AH42/AC41) -> 0.6160493827 | AM41: =IF(AL41>=85%,"Pass",IF(AL41<85%,"Fail","Error")) -> Fail | AO41: Progress 2 | AQ41: sdfsf | AR41: Stopwatch | AS41: 45 | AT41: 89 | AU41: 120 | AV41: =IF(AU41>0,AU41,AT41) -> 120 | AW41: =IF(OR(AND((AT41/AV41>$J$31),AT41/AV41<$K$31),AU41=0), "Injured vs uninjured", "Injured vs benchmark") -> Injured vs benchmark | AX41: =IF(AW41="Injured vs Uninjured", AS41/AT41,AS41/AV41) -> 0.375 | AY41: 0.95 | AZ41: =IF(AX41>=85%,"Pass",IF(AX41<85%,"Fail","Error")) -> Fail | BA41: =BA39 -> Injured | BB41: =BB39 -> Uninjured | BC41: =BC39 -> Benchmark | BD41: =IF(OR(AND((BB42/BC42>$J$31),BB42/BC42<$K$31),AV41=0), "Injured vs uninjured", "Injured vs benchmark") -> Injured vs benchmark | BE41: =IF(BD41="Injured vs Uninjured", BA42/BB42,BA42/BC42) -> 0.5583333333 | BF41: =IF(BE41>=85%,"Pass",IF(AX41<85%,"Fail","Error")) -> Fail
F42: Degrees | M42: =L41-M41 -> -0.2333333333 | O42: 27 | P42: 29 | Q42: =IF(E41="","Ignore",IF(K41="Injured vs Uninjured",J41,J41)) -> 30 | Y42: Kg | AF42: =AE41-AF41 -> -0.5789473684 | AH42: 499 | AI42: 810 | AJ42: =IF(X41="","Ignore",IF(AD41="Injured vs Uninjured",AC41,AC41)) -> 950 | AR42: Joule | AY42: =AX41-AY41 -> -0.575 | BA42: 67 | BB42: 98 | BC42: =IF(X39="Enter New Value","Ignore",IF(AW41="Injured vs Uninjured",AT41,AV41)) -> 120
C43: =C41 -> Initial Eval | E43: g | F43: MicroFit/Biofet | G43: 40 | H43: 70 | I43: 0 | J43: =IF(I43>0,I43,H43) -> 70 | K43: =IF(OR(AND((H43/J43>$J$31),H43/J43<$K$31),I43=0), "Injured vs uninjured", "Injured vs benchmark") -> Injured vs uninjured | L43: =IF(K43="Injured vs uninjured", G43/H43,G43/J43) -> 0.5714285714 | M43: 0.9 | N43: =IF(L43>=85%,"Pass",IF(L43<85%,"Fail","Error")) -> Fail | O43: =O41 -> Injured | P43: Uninjured | Q43: =Q41 -> Benchmark | R43: =IF(OR(AND((P44/Q44>$J$31),P44/Q44<$K$31),I43=0), "Injured vs uninjured", "Injured vs benchmark") -> Injured vs uninjured | S43: =IF(R43="Injured vs uninjured", O44/P44,O44/Q44) -> 0.671641791 | T43: =IF(S43>=85%,"Pass",IF(S43<85%,"Fail","Error")) -> Fail | V43: =V41 -> Progress 1 | X43: fg | Y43: DynoMo | Z43: 60 | AA43: 100 | AB43: 0 | AC43: =IF(AB43>0,AB43,AA43) -> 100 | AD43: =IF(OR(AND((AA43/AC43>$J$31),AA43/AC43<$K$31),AB43=0), "Injured vs uninjured", "Injured vs benchmark") -> Injured vs uninjured | AE43: =IF(AD43="Injured vs uninjured", Z43/AA43,Z43/AC43) -> 0.6 | AF43: 1 | AG43: =IF(AE43>=85%,"Pass",IF(AE43<85%,"Fail","Error")) -> Fail | AH43: Injured | AI43: =AI41 -> Uninjured | AJ43: =AJ41 -> Benchmark | AK43: =IF(OR(AND((AI44/AJ44>$J$31),AI44/AJ44<$K$31),AC43=0), "Injured vs uninjured", "Injured vs benchmark") -> Injured vs uninjured | AL43: =IF(AK43="Injured vs Uninjured", AH44/AI44,AH44/AC43) -> 0.8620689655 | AM43: =IF(AL43>=85%,"Pass",IF(AL43<85%,"Fail","Error")) -> Pass | AO43: Progress 2 | AQ43: fss | AR43: MicroFit/Biofet | AS43: 67 | AT43: 78 | AU43: 100 | AV43: =IF(AU43>0,AU43,AT43) -> 100 | AW43: =IF(OR(AND((AT43/AV43>$J$31),AT43/AV43<$K$31),AU43=0), "Injured vs uninjured", "Injured vs benchmark") -> Injured vs benchmark | AX43: =IF(AW43="Injured vs Uninjured", AS43/AT43,AS43/AV43) -> 0.67 | AY43: 0.95 | AZ43: =IF(AX43>=85%,"Pass",IF(AX43<85%,"Fail","Error")) -> Fail | BA43: =BA41 -> Injured | BB43: Uninjured | BC43: Benchmark | BD43: =IF(OR(AND((BB44/BC44>$J$31),BB44/BC44<$K$31),AV43=0), "Injured vs uninjured", "Injured vs benchmark") -> Injured vs benchmark | BE43: =IF(BD43="Injured vs Uninjured", BA44/BB44,BA44/BC44) -> 0.89 | BF43: =IF(BE43>=85%,"Pass",IF(AX43<85%,"Fail","Error")) -> Pass
F44: Joule | M44: =L43-M43 -> -0.3285714286 | O44: 45 | P44: 67 | Q44: =IF(E43="","Ignore",IF(K43="Injured vs Uninjured",J43,J43)) -> 70 | Y44: Joule | AF44: =AE43-AF43 -> -0.4 | AH44: 75 | AI44: 87 | AJ44: =IF(X43="","Ignore",IF(AD43="Injured vs Uninjured",AC43,AC43)) -> 100 | AR44: Joule | AY44: =AX43-AY43 -> -0.28 | BA44: 89 | BB44: 78 | BC44: =IF(X39="Enter New Value","Ignore",IF(AW43="Injured vs Uninjured",AT43,AV43)) -> 100
C45: =C43 -> Initial Eval | E45: p | F45: Step | G45: 15 | H45: 15 | I45: 0 | J45: =IF(I45>0,I45,H45) -> 15 | K45: =IF(OR(AND((H45/J45>$J$31),H45/J45<$K$31),I45=0), "Injured vs uninjured", "Injured vs benchmark") -> Injured vs uninjured | L45: =IF(K45="Injured vs uninjured", G45/H45,G45/J45) -> 1 | M45: 1 | N45: =IF(L45>=85%,"Pass",IF(L45<85%,"Fail","Error")) -> Pass | O45: =O43 -> Injured | P45: Uninjured | Q45: Benchmark | R45: =IF(OR(AND((P46/Q46>$J$31),P46/Q46<$K$31),I45=0), "Injured vs uninjured", "Injured vs benchmark") -> Injured vs uninjured | S45: =IF(R45="Injured vs uninjured", O46/P46,O46/Q46) -> 1 | T45: =IF(S45>=85%,"Pass",IF(S45<85%,"Fail","Error")) -> Pass | V45: =V43 -> Progress 1 | X45: xgf | Y45: MicroFit/Biofet | Z45: 5 | AA45: 7 | AB45: 9 | AC45: =IF(AB45>0,AB45,AA45) -> 9 | AD45: =IF(OR(AND((AA45/AC45>$J$31),AA45/AC45<$K$31),AB45=0), "Injured vs uninjured", "Injured vs benchmark") -> Injured vs benchmark | AE45: =IF(AD45="Injured vs uninjured", Z45/AA45,Z45/AC45) -> 0.5555555556 | AF45: 1 | AG45: =IF(AE45>=85%,"Pass",IF(AE45<85%,"Fail","Error")) -> Fail | AH45: Injured | AI45: =AI41 -> Uninjured | AJ45: =AJ43 -> Benchmark | AK45: =IF(OR(AND((AI46/AJ46>$J$31),AI46/AJ46<$K$31),AC45=0), "Injured vs uninjured", "Injured vs benchmark") -> Injured vs benchmark | AL45: =IF(AK45="Injured vs Uninjured", AH46/AI46,AH46/AC45) -> 0.8888888889 | AM45: =IF(AL45>=85%,"Pass",IF(AL45<85%,"Fail","Error")) -> Pass | AO45: Progress 2 | AQ45: sf | AR45: MicroFit/Biofet | AS45: 5 | AT45: 8 | AU45: 10 | AV45: =IF(AU45>0,AU45,AT45) -> 10 | AW45: =IF(OR(AND((AT45/AV45>$J$31),AT45/AV45<$K$31),AU45=0), "Injured vs uninjured", "Injured vs benchmark") -> Injured vs benchmark | AX45: =IF(AW45="Injured vs Uninjured", AS45/AT45,AS45/AV45) -> 0.5 | AY45: 0.95 | AZ45: =IF(AX45>=85%,"Pass",IF(AX45<85%,"Fail","Error")) -> Fail | BA45: =BA43 -> Injured | BB45: Uninjured | BC45: Benchmark | BD45: =IF(OR(AND((BB46/BC46>$J$31),BB46/BC46<$K$31),AV45=0), "Injured vs uninjured", "Injured vs benchmark") -> Injured vs uninjured | BE45: =IF(BD45="Injured vs Uninjured", BA46/BB46,BA46/BC46) -> 0.8888888889 | BF45: =IF(BE45>=85%,"Pass",IF(AX45<85%,"Fail","Error")) -> Pass
F46: Numeric value | M46: =L45-M45 -> 0 | O46: =IF(N45="pass",G45,"Enter New Value") -> 15 | P46: =IF(N45="pass",H45,"Enter New Value") -> 15 | Q46: =IF(E45="","Ignore",IF(K45="Injured vs Uninjured",H45,I45)) -> 15 | Y46: Joule | AF46: =AE45-AF45 -> -0.4444444444 | AH46: 8 | AI46: 9 | AJ46: =IF(X45="","Ignore",IF(AD45="Injured vs Uninjured",AC45,AC45)) -> 9 | AR46: Joule | AY46: =AX45-AY45 -> -0.45 | BA46: 8 | BB46: 9 | BC46: =IF(X39="Enter New Value","Ignore",IF(AW45="Injured vs Uninjured",AT45,AV45)) -> 10
C47: =C45 -> Initial Eval | E47: h | F47: MicroFit/Biofet | G47: 23 | H47: 56 | I47: 78 | J47: =IF(I47>0,I47,H47) -> 78 | K47: =IF(OR(AND((H47/J47>$J$31),H47/J47<$K$31),I47=0), "Injured vs uninjured", "Injured vs benchmark") -> Injured vs benchmark | L47: =IF(K47="Injured vs uninjured", G47/H47,G47/J47) -> 0.2948717949 | M47: 1 | N47: =IF(L47>=85%,"Pass",IF(L47<85%,"Fail","Error")) -> Fail | O47: =O45 -> Injured | P47: Uninjured | Q47: Benchmark | R47: Injured vs benchmark | S47: =IF(R47="Injured vs uninjured", O48/P48,O48/Q48) -> 0.8333333333 | T47: =IF(S47>=85%,"Pass",IF(S47<85%,"Fail","Error")) -> Fail | V47: =V45 -> Progress 1 | X47: aaa | Y47: MicroFit/Biofet | Z47: 45 | AA47: 78 | AB47: 0 | AC47: =IF(AB47>0,AB47,AA47) -> 78 | AD47: =IF(OR(AND((AA47/AC47>$J$31),AA47/AC47<$K$31),AB47=0), "Injured vs uninjured", "Injured vs benchmark") -> Injured vs uninjured | AE47: =IF(AD47="Injured vs uninjured", Z47/AA47,Z47/AC47) -> 0.5769230769 | AF47: 1 | AG47: =IF(AE47>=85%,"Pass",IF(AE47<85%,"Fail","Error")) -> Fail | AH47: Injured | AI47: =AI45 -> Uninjured | AJ47: =AJ45 -> Benchmark | AK47: =IF(OR(AND((AI48/AJ48>$J$31),AI48/AJ48<$K$31),AC47=0), "Injured vs uninjured", "Injured vs benchmark") -> Injured vs benchmark | AL47: =IF(AK47="Injured vs Uninjured", AH48/AI48,AH48/AC47) -> 0.858974359 | AM47: =IF(AL47>=85%,"Pass",IF(AL47<85%,"Fail","Error")) -> Pass | AO47: Progress 2 | AQ47: sfs | AR47: MicroFit/Biofet | AS47: 555 | AT47: 666 | AU47: 1000 | AV47: =IF(AU47>0,AU47,AT47) -> 1000 | AW47: =IF(OR(AND((AT47/AV47>$J$31),AT47/AV47<$K$31),AU47=0), "Injured vs uninjured", "Injured vs benchmark") -> Injured vs benchmark | AX47: =IF(AW47="Injured vs Uninjured", AS47/AT47,AS47/AV47) -> 0.555 | AY47: 0.95 | AZ47: =IF(AX47>=85%,"Pass",IF(AX47<85%,"Fail","Error")) -> Fail | BA47: =BA45 -> Injured | BB47: Uninjured | BC47: Benchmark | BD47: =IF(OR(AND((BB48/BC48>$J$31),BB48/BC48<$K$31),AV47=0), "Injured vs uninjured", "Injured vs benchmark") -> Injured vs uninjured | BE47: =IF(BD47="Injured vs Uninjured", BA48/BB48,BA48/BC48) -> 0.875 | BF47: =IF(BE47>=85%,"Pass",IF(AX47<85%,"Fail","Error")) -> Pass
F48: Kg | M48: =L47-M47 -> -0.7051282051 | O48: 65 | P48: 66 | Q48: =IF(E47="","Ignore",IF(K47="Injured vs Uninjured",J47,J47)) -> 78 | Y48: Joule | AF48: =AE47-AF47 -> -0.4230769231 | AH48: 67 | AI48: 80 | AJ48: =IF(X47="","Ignore",IF(AD47="Injured vs Uninjured",AC47,AC47)) -> 78 | AR48: Joule | AY48: =AX47-AY47 -> -0.395 | BA48: 777 | BB48: 888 | BC48: =IF(X39="Enter New Value","Ignore",IF(AW47="Injured vs Uninjured",AT47,AV47)) -> 1000
C49: =C47 -> Initial Eval | F49: MicroFit/Biofet | J49: =IF(I49>0,I49,H49) -> 0 | K49: =#REF! ->  | L49: =#REF! ->  | M49: 0.95 | O49: Injured | Q49: Uninjured | S49: =K85 ->  | V49: =V47 -> Progress 1 | W49: =D39 -> 0 | X49: =E39 -> u | Y49: =F39 -> Goniometre | Z49: =O40 -> 21 | AA49: =P40 -> 22 | AB49: =J39 -> 25 | AC49: =IF(AB49>0,AB49,AA49) -> 25 | AD49: =IF(OR(AND((AA49/AC49>$J$31),AA49/AC49<$K$31),AB49=0), "Injured vs uninjured", "Injured vs benchmark") -> Injured vs uninjured | AE49: =IF(AD49="Injured vs uninjured", Z49/AA49,Z49/AC49) -> 0.9545454545 | AF49: =M39 -> 0.9 | AG49: =IF(AE49>=85%,"Pass",IF(AE49<85%,"Fail","Error")) -> Pass | AH49: =AH47 -> Injured | AI49: =AI47 -> Uninjured | AJ49: =AJ47 -> Benchmark | AK49: =IF(OR(AND((AI50/AJ50>$J$31),AI50/AJ50<$K$31),AC49=0), "Injured vs uninjured", "Injured vs benchmark") -> Injured vs uninjured | AL49: =IF(AK49="Injured vs Uninjured", AH50/AI50,AH50/AC49) -> 0.9545454545 | AM49: =IF(AL49>=85%,"Pass",IF(AL49<85%,"Fail","Error")) -> Pass | AO49: Progress 2 | AP49: =W39 -> 0 | AQ49: =X39 -> Leg press | AR49: =Y39 -> Biodex | AS49: =AH40 -> 145 | AT49: =AI40 -> 178 | AU49: =AC39 -> 200 | AV49: 200 | AW49: =IF(OR(AND((AT49/AV49>$J$31),AT49/AV49<$K$31),AU49=0), "Injured vs uninjured", "Injured vs benchmark") -> Injured vs uninjured | AX49: =IF(AW49="Injured vs Uninjured", AS49/AT49,AS49/AV49) -> 0.8146067416 | AY49: =AF39 -> 1 | AZ49: =IF(AX49>=85%,"Pass",IF(AX49<85%,"Fail","Error")) -> Fail | BA49: =BA47 -> Injured | BB49: Uninjured | BC49: Benchmark | BD49: =IF(OR(AND((BB50/BC50>$J$31),BB50/BC50<$K$31),AV49=0), "Injured vs uninjured", "Injured vs benchmark") -> Injured vs benchmark | BE49: =IF(BD49="Injured vs Uninjured", BA50/BB50,BA50/BC50) -> 1 | BF49: =IF(BE49>=85%,"Pass",IF(AX49<85%,"Fail","Error")) -> Pass
F50: Joule | M50: =L49-M49 ->  | Y50: =F40 -> Degrees | AF50: =AE49-AF49 -> 0.05454545455 | AH50: =IF(AG49="pass",Z49,"Enter New Value") -> 21 | AI50: =IF(AG49="pass",AA49,"Enter New Value") -> 22 | AJ50: =IF(X49="","Ignore",IF(AD49="Injured vs Uninjured",AC49,AC49)) -> 25 | AR50: =Y40 -> Nm | AY50: =AX49-AY49 -> -0.1853932584 | BA50: 178 | BB50: 178 | BC50: =IF(X39="Enter New Value","Ignore",IF(AW49="Injured vs Uninjured",AT49,AV49)) -> 178
C51: =C49 -> Initial Eval | F51: MicroFit/Biofet | J51: =IF(I51>0,I51,H51) -> 0 | K51: =#REF! ->  | L51: =#REF! ->  | M51: 0.95 | O51: Injured | Q51: Uninjured | S51: =K87 ->  | V51: =V49 -> Progress 1 | W51: =D41 -> 0 | X51: =E41 -> f | Y51: Goniometre | Z51: =O42 -> 27 | AA51: =P42 -> 29 | AB51: =J41 -> 30 | AC51: =IF(AB51>0,AB51,AA51) -> 30 | AD51: =IF(OR(AND((AA51/AC51>$J$31),AA51/AC51<$K$31),AB51=0), "Injured vs uninjured", "Injured vs benchmark") -> Injured vs uninjured | AE51: =IF(AD51="Injured vs uninjured", Z51/AA51,Z51/AC51) -> 0.9310344828 | AF51: =M41 -> 0.9 | AG51: =IF(AE51>=85%,"Pass",IF(AE51<85%,"Fail","Error")) -> Pass | AH51: =AH49 -> Injured | AI51: Uninjured | AJ51: Benchmark | AK51: =IF(OR(AND((AI52/AJ52>$J$31),AI52/AJ52<$K$31),AC51=0), "Injured vs uninjured", "Injured vs benchmark") -> Injured vs uninjured | AL51: =IF(AK51="Injured vs Uninjured", AH52/AI52,AH52/AC51) -> 0.9310344828 | AM51: =IF(AL51>=85%,"Pass",IF(AL51<85%,"Fail","Error")) -> Pass | AO51: Progress 2 | AP51: =W41 -> 0 | AQ51: =X41 -> fh | AR51: Biodex | AS51: =AH42 -> 499 | AT51: =AI42 -> 810 | AU51: =AC41 -> 950 | AV51: =IF(AU51>0,AU51,AT51) -> 950 | AW51: =IF(OR(AND((AT51/AV51>$J$31),AT51/AV51<$K$31),AU51=0), "Injured vs uninjured", "Injured vs benchmark") -> Injured vs uninjured | AX51: =IF(AW51="Injured vs Uninjured", AS51/AT51,AS51/AV51) -> 0.6160493827 | AY51: =AF41 -> 1 | AZ51: =IF(AX51>=85%,"Pass",IF(AX51<85%,"Fail","Error")) -> Fail | BA51: =BA49 -> Injured | BB51: Uninjured | BC51: Benchmark | BD51: =IF(OR(AND((BB52/BC52>$J$31),BB52/BC52<$K$31),AV51=0), "Injured vs uninjured", "Injured vs benchmark") -> Injured vs benchmark | BE51: =IF(BD51="Injured vs Uninjured", BA52/BB52,BA52/BC52) -> 0.8617283951 | BF51: =IF(BE51>=85%,"Pass",IF(AX51<85%,"Fail","Error")) -> Pass
F52: Joule | M52: =L51-M51 ->  | R52: =56/78 -> 0.7179487179 | Y52: Degrees | AF52: =AE51-AF51 -> 0.03103448276 | AH52: =IF(AG51="pass",Z51,"Enter New Value") -> 27 | AI52: =IF(AG51="pass",AA51,"Enter New Value") -> 29 | AJ52: =IF(X51="","Ignore",IF(AD51="Injured vs Uninjured",AC51,AC51)) -> 30 | AR52: Kg | AY52: =AX51-AY51 -> -0.3839506173 | BA52: 698 | BB52: 900 | BC52: =IF(X39="Enter New Value","Ignore",IF(AW51="Injured vs Uninjured",AT51,AV51)) -> 810
C53: =C51 -> Initial Eval | F53: MicroFit/Biofet | J53: =IF(I53>0,I53,H53) -> 0 | K53: =#REF! ->  | L53: =#REF! ->  | M53: 0.95 | O53: Injured | Q53: Uninjured | S53: =K89 ->  | V53: =V51 -> Progress 1 | W53: =D43 -> 0 | X53: =E43 -> g | Y53: MicroFit/Biofet | Z53: =O44 -> 45 | AA53: =P44 -> 67 | AB53: =J43 -> 70 | AC53: =IF(AB53>0,AB53,AA53) -> 70 | AD53: =IF(OR(AND((AA53/AC53>$J$31),AA53/AC53<$K$31),AB53=0), "Injured vs uninjured", "Injured vs benchmark") -> Injured vs uninjured | AE53: =IF(AD53="Injured vs uninjured", Z53/AA53,Z53/AC53) -> 0.671641791 | AF53: =M43 -> 0.9 | AG53: =IF(AE53>=85%,"Pass",IF(AE53<85%,"Fail","Error")) -> Fail | AH53: =AH51 -> Injured | AI53: Uninjured | AJ53: Benchmark | AK53: =IF(OR(AND((AI54/AJ54>$J$31),AI54/AJ54<$K$31),AC53=0), "Injured vs uninjured", "Injured vs benchmark") -> Injured vs benchmark | AL53: =IF(AK53="Injured vs Uninjured", AH54/AI54,AH54/AC53) -> 0.9285714286 | AM53: =IF(AL53>=85%,"Pass",IF(AL53<85%,"Fail","Error")) -> Pass | AO53: Progress 2 | AP53: =W43 -> 0 | AQ53: =X43 -> fg | AR53: DynoMo | AS53: =AH44 -> 75 | AT53: =AI44 -> 87 | AU53: =AC43 -> 100 | AV53: 100 | AW53: =IF(OR(AND((AT53/AV53>$J$31),AT53/AV53<$K$31),AU53=0), "Injured vs uninjured", "Injured vs benchmark") -> Injured vs uninjured | AX53: =IF(AW53="Injured vs Uninjured", AS53/AT53,AS53/AV53) -> 0.8620689655 | AY53: =AF43 -> 1 | AZ53: =IF(AX53>=85%,"Pass",IF(AX53<85%,"Fail","Error")) -> Pass | BA53: =BA51 -> Injured | BB53: Uninjured | BC53: Benchmark | BD53: =IF(OR(AND((BB54/BC54>$J$31),BB54/BC54<$K$31),AV53=0), "Injured vs uninjured", "Injured vs benchmark") -> Injured vs benchmark | BE53: =IF(BD53="Injured vs Uninjured", BA54/BB54,BA54/BC54) -> 0.8620689655 | BF53: =IF(BE53>=85%,"Pass",IF(AX53<85%,"Fail","Error")) -> Pass
F54: Joule | M54: =L53-M53 ->  | Y54: Joule | AF54: =AE53-AF53 -> -0.228358209 | AH54: 65 | AI54: 78 | AJ54: =IF(X53="","Ignore",IF(AD53="Injured vs Uninjured",AC53,AC53)) -> 70 | AR54: Joule | AY54: =AX53-AY53 -> -0.1379310345 | BA54: =IF(AZ53="Pass",AS53,"Enter New Value") -> 75 | BB54: 95 | BC54: =IF(X39="Enter New Value","Ignore",IF(AW53="Injured vs Uninjured",AT53,AV53)) -> 87
C55: =C53 -> Initial Eval | F55: MicroFit/Biofet | J55: =IF(I55>0,I55,H55) -> 0 | K55: =#REF! ->  | L55: =#REF! ->  | M55: 0.95 | O55: Injured | Q55: Uninjured | S55: =K91 ->  | V55: =V53 -> Progress 1 | W55: =D45 -> 0 | X55: =E45 -> p | Y55: Step | Z55: =O46 -> 15 | AA55: =P46 -> 15 | AB55: =J45 -> 15 | AC55: =IF(AB55>0,AB55,AA55) -> 15 | AD55: =IF(OR(AND((AA55/AC55>$J$31),AA55/AC55<$K$31),AB55=0), "Injured vs uninjured", "Injured vs benchmark") -> Injured vs benchmark | AE55: =IF(AD55="Injured vs uninjured", Z55/AA55,Z55/AC55) -> 1 | AF55: =M45 -> 1 | AG55: =IF(AE55>=85%,"Pass",IF(AE55<85%,"Fail","Error")) -> Pass | AH55: =AH53 -> Injured | AI55: Uninjured | AJ55: Benchmark | AK55: =IF(OR(AND((AI56/AJ56>$J$31),AI56/AJ56<$K$31),AC55=0), "Injured vs uninjured", "Injured vs benchmark") -> Injured vs benchmark | AL55: =IF(AK55="Injured vs Uninjured", AH56/AI56,AH56/AC55) -> 1 | AM55: =IF(AL55>=85%,"Pass",IF(AL55<85%,"Fail","Error")) -> Pass | AO55: Progress 2 | AP55: =W45 -> 0 | AQ55: =X45 -> xgf | AR55: MicroFit/Biofet | AS55: =AH46 -> 8 | AT55: =AI46 -> 9 | AU55: =AC45 -> 9 | AV55: 9 | AW55: =IF(OR(AND((AT55/AV55>$J$31),AT55/AV55<$K$31),AU55=0), "Injured vs uninjured", "Injured vs benchmark") -> Injured vs benchmark | AX55: =IF(AW55="Injured vs Uninjured", AS55/AT55,AS55/AV55) -> 0.8888888889 | AY55: =AF45 -> 1 | AZ55: =IF(AX55>=85%,"Pass",IF(AX55<85%,"Fail","Error")) -> Pass | BA55: =BA53 -> Injured | BB55: Uninjured | BC55: Benchmark | BD55: =IF(OR(AND((BB56/BC56>$J$31),BB56/BC56<$K$31),AV55=0), "Injured vs uninjured", "Injured vs benchmark") -> Injured vs benchmark | BE55: =IF(BD55="Injured vs Uninjured", BA56/BB56,BA56/BC56) -> 0.8888888889 | BF55: =IF(BE55>=85%,"Pass",IF(AX55<85%,"Fail","Error")) -> Pass
F56: Joule | M56: =L55-M55 ->  | Y56: Numeric value | AF56: =AE55-AF55 -> 0 | AH56: =IF(AG55="pass",Z55,"Enter New Value") -> 15 | AI56: =IF(AG55="pass",AA55,"Enter New Value") -> 15 | AJ56: =IF(X55="","Ignore",IF(AD55="Injured vs Uninjured",AC55,AC55)) -> 15 | AR56: Joule | AY56: =AX55-AY55 -> -0.1111111111 | BA56: =IF(AZ55="Pass",AS55,"Enter New Value") -> 8 | BB56: =IF(AZ55="Pass",AT55,"Enter New Value") -> 9 | BC56: =IF(X39="Enter New Value","Ignore",IF(AW55="Injured vs Uninjured",AT55,AV55)) -> 9
C57: =C55 -> Initial Eval | F57: MicroFit/Biofet | J57: =IF(I57>0,I57,H57) -> 0 | K57: =#REF! ->  | L57: =#REF! ->  | M57: 0.95 | O57: Injured | Q57: Uninjured | S57: =K93 ->  | V57: =V55 -> Progress 1 | W57: =D47 -> 0 | X57: =E47 -> h | Y57: MicroFit/Biofet | Z57: =O48 -> 65 | AA57: =P48 -> 66 | AB57: =J47 -> 78 | AC57: =IF(AB57>0,AB57,AA57) -> 78 | AD57: =IF(OR(AND((AA57/AC57>$J$31),AA57/AC57<$K$31),AB57=0), "Injured vs uninjured", "Injured vs benchmark") -> Injured vs benchmark | AE57: =IF(AD57="Injured vs uninjured", Z57/AA57,Z57/AC57) -> 0.8333333333 | AF57: =M47 -> 1 | AG57: =IF(AE57>=85%,"Pass",IF(AE57<85%,"Fail","Error")) -> Fail | AH57: =AH55 -> Injured | AI57: Uninjured | AJ57: Benchmark | AK57: =IF(OR(AND((AI58/AJ58>$J$31),AI58/AJ58<$K$31),AC57=0), "Injured vs uninjured", "Injured vs benchmark") -> Injured vs benchmark | AL57: =IF(AK57="Injured vs Uninjured", AH58/AI58,AH58/AC57) -> 0.9102564103 | AM57: =IF(AL57>=85%,"Pass",IF(AL57<85%,"Fail","Error")) -> Pass | AO57: Progress 2 | AP57: =W47 -> 0 | AQ57: =X47 -> aaa | AR57: MicroFit/Biofet | AS57: =AH48 -> 67 | AT57: =AI48 -> 80 | AU57: =AC47 -> 78 | AV57: 78 | AW57: =IF(OR(AND((AT57/AV57>$J$31),AT57/AV57<$K$31),AU57=0), "Injured vs uninjured", "Injured vs benchmark") -> Injured vs benchmark | AX57: =IF(AW57="Injured vs Uninjured", AS57/AT57,AS57/AV57) -> 0.858974359 | AY57: =AF47 -> 1 | AZ57: =IF(AX57>=85%,"Pass",IF(AX57<85%,"Fail","Error")) -> Pass | BA57: =BA55 -> Injured | BB57: Uninjured | BC57: Benchmark | BD57: =IF(OR(AND((BB58/BC58>$J$31),BB58/BC58<$K$31),AV57=0), "Injured vs uninjured", "Injured vs benchmark") -> Injured vs benchmark | BE57: =IF(BD57="Injured vs Uninjured", BA58/BB58,BA58/BC58) -> 0.858974359 | BF57: =IF(BE57>=85%,"Pass",IF(AX57<85%,"Fail","Error")) -> Pass
F58: Joule | M58: =L57-M57 ->  | Y58: Kg | AF58: =AE57-AF57 -> -0.1666666667 | AH58: 71 | AI58: 80 | AJ58: =IF(X57="","Ignore",IF(AD57="Injured vs Uninjured",AC57,AC57)) -> 78 | AR58: Joule | AY58: =AX57-AY57 -> -0.141025641 | BA58: =IF(AZ57="Pass",AS57,"Enter New Value") -> 67 | BB58: =IF(AZ57="Pass",AT57,"Enter New Value") -> 80 | BC58: =IF(X39="Enter New Value","Ignore",IF(AW57="Injured vs Uninjured",AT57,AV57)) -> 78
E59: j | AO59: =AO57 -> Progress 2 | AP59: =W49 -> 0 | AQ59: =X49 -> u | AR59: Goniometre | AS59: =AH50 -> 21 | AT59: =AI50 -> 22 | AU59: =AB49 -> 25 | AV59: =IF(AU59>0,AU59,AT59) -> 25 | AW59: =IF(OR(AND((AT59/AV59>$J$31),AT59/AV59<$K$31),AU59=0), "Injured vs uninjured", "Injured vs benchmark") -> Injured vs uninjured | AX59: =IF(AW59="Injured vs Uninjured", AS59/AT59,AS59/AV59) -> 0.9545454545 | AY59: =M39 -> 0.9 | AZ59: =IF(AX59>=85%,"Pass",IF(AX59<85%,"Fail","Error")) -> Pass | BA59: =BA57 -> Injured | BB59: Uninjured | BC59: Benchmark | BD59: =IF(OR(AND((BB60/BC60>$J$31),BB60/BC60<$K$31),AV59=0), "Injured vs uninjured", "Injured vs benchmark") -> Injured vs benchmark | BE59: =IF(BD59="Injured vs Uninjured", BA60/BB60,BA60/BC60) -> 0.9545454545 | BF59: =IF(BE59>=85%,"Pass",IF(AX59<85%,"Fail","Error")) -> Pass
AR60: Degrees | AY60: =AX59-AY59 -> 0.05454545455 | BA60: =IF(AZ59="Pass",AS59,"Enter New Value") -> 21 | BB60: =IF(AZ59="Pass",AT59,"Enter New Value") -> 22 | BC60: =IF(X39="Enter New Value","Ignore",IF(AW59="Injured vs Uninjured",AT59,AV59)) -> 22
AO61: =AO59 -> Progress 2 | AP61: =W51 -> 0 | AQ61: =X51 -> f | AR61: Goniometre | AS61: =AH52 -> 27 | AT61: =AI52 -> 29 | AU61: =AB51 -> 30 | AV61: =IF(AU61>0,AU61,AT61) -> 30 | AW61: =IF(OR(AND((AT61/AV61>$J$31),AT61/AV61<$K$31),AU61=0), "Injured vs uninjured", "Injured vs benchmark") -> Injured vs uninjured | AX61: 0.9310344828 | AY61: =M41 -> 0.9 | AZ61: =IF(AX61>=85%,"Pass",IF(AX61<85%,"Fail","Error")) -> Pass | BA61: =BA59 -> Injured | BB61: Uninjured | BC61: Benchmark | BD61: =IF(OR(AND((BB62/BC62>$J$31),BB62/BC62<$K$31),AV61=0), "Injured vs uninjured", "Injured vs benchmark") -> Injured vs benchmark | BE61: =IF(BD61="Injured vs Uninjured", BA62/BB62,BA62/BC62) -> 0.9310344828 | BF61: =IF(BE61>=85%,"Pass",IF(AX61<85%,"Fail","Error")) -> Pass
AR62: Degrees | AY62: =AX61-AY61 -> 0.03103448276 | BA62: =IF(AZ61="Pass",AS61,"Enter New Value") -> 27 | BB62: =IF(AZ61="Pass",AT61,"Enter New Value") -> 29 | BC62: =IF(X39="Enter New Value","Ignore",IF(AW61="Injured vs Uninjured",AT61,AV61)) -> 29
AO63: =AO61 -> Progress 2 | AP63: =W53 -> 0 | AQ63: =X53 -> g | AR63: MicroFit/Biofet | AS63: =AH54 -> 65 | AT63: 78 | AU63: =AB53 -> 70 | AV63: =IF(AU63>0,AU63,AT63) -> 70 | AW63: =IF(OR(AND((AT63/AV63>$J$31),AT63/AV63<$K$31),AU63=0), "Injured vs uninjured", "Injured vs benchmark") -> Injured vs benchmark | AX63: =IF(AW63="Injured vs Uninjured", AS63/AT63,AS63/AV63) -> 0.9285714286 | AY63: =M43 -> 0.9 | AZ63: =IF(AX63>=85%,"Pass",IF(AX63<85%,"Fail","Error")) -> Pass | BA63: =BA61 -> Injured | BB63: Uninjured | BC63: Benchmark | BD63: =IF(OR(AND((BB64/BC64>$J$31),BB64/BC64<$K$31),AV63=0), "Injured vs uninjured", "Injured vs benchmark") -> Injured vs benchmark | BE63: =IF(BD63="Injured vs Uninjured", BA64/BB64,BA64/BC64) -> 0.9285714286 | BF63: =IF(BE63>=85%,"Pass",IF(AX63<85%,"Fail","Error")) -> Pass
AR64: Joule | AY64: =AX63-AY63 -> 0.02857142857 | BA64: =IF(AZ63="Pass",AS63,"Enter New Value") -> 65 | BB64: =IF(AZ63="Pass",AT63,"Enter New Value") -> 78 | BC64: =IF(X39="Enter New Value","Ignore",IF(AW63="Injured vs Uninjured",AT63,AV63)) -> 70
AO65: =AO63 -> Progress 2 | AP65: =W55 -> 0 | AQ65: =X55 -> p | AR65: Step | AS65: =AH56 -> 15 | AT65: 15 | AU65: =AB55 -> 15 | AV65: =IF(AU65>0,AU65,AT65) -> 15 | AW65: =IF(OR(AND((AT65/AV65>$J$31),AT65/AV65<$K$31),AU65=0), "Injured vs uninjured", "Injured vs benchmark") -> Injured vs benchmark | AX65: 1 | AY65: =M45 -> 1 | AZ65: =IF(AX65>=85%,"Pass",IF(AX65<85%,"Fail","Error")) -> Pass | BA65: =BA63 -> Injured | BB65: Uninjured | BC65: Benchmark | BD65: =IF(OR(AND((BB66/BC66>$J$31),BB66/BC66<$K$31),AV65=0), "Injured vs uninjured", "Injured vs benchmark") -> Injured vs benchmark | BE65: =IF(BD65="Injured vs Uninjured", BA66/BB66,BA66/BC66) -> 1 | BF65: =IF(BE65>=85%,"Pass",IF(AX65<85%,"Fail","Error")) -> Pass
AR66: Numeric value | AY66: =AX65-AY65 -> 0 | BA66: =IF(AZ65="pass",AS65,"Enter New Value") -> 15 | BB66: =IF(AZ65="pass",AT65,"Enter New Value") -> 15 | BC66: =IF(X39="Enter New Value","Ignore",IF(AW65="Injured vs Uninjured",AT65,AV65)) -> 15
AO67: =AO65 -> Progress 2 | AP67: =W57 -> 0 | AQ67: =X57 -> h | AR67: MicroFit/Biofet | AS67: =AH58 -> 71 | AT67: 80 | AU67: =AB57 -> 78 | AV67: =IF(AU67>0,AU67,AT67) -> 78 | AW67: =IF(OR(AND((AT67/AV67>$J$31),AT67/AV67<$K$31),AU67=0), "Injured vs uninjured", "Injured vs benchmark") -> Injured vs benchmark | AX67: 0.9102564103 | AY67: =M47 -> 1 | AZ67: =IF(AX67>=85%,"Pass",IF(AX67<85%,"Fail","Error")) -> Pass | BA67: =BA65 -> Injured | BB67: Uninjured | BC67: Benchmark | BD67: =IF(OR(AND((BB68/BC68>$J$31),BB68/BC68<$K$31),AV67=0), "Injured vs uninjured", "Injured vs benchmark") -> Injured vs benchmark | BE67: =IF(BD67="Injured vs Uninjured", BA68/BB68,BA68/BC68) -> 0.9102564103 | BF67: =IF(BE67>=85%,"Pass",IF(AX67<85%,"Fail","Error")) -> Pass
AR68: Kg | AY68: =AX67-AY67 -> -0.08974358974 | BA68: =IF(AZ67="Pass",AS67,"Enter New Value") -> 71 | BB68: =IF(AZ67="Pass",AT67,"Enter New Value") -> 80 | BC68: =IF(X39="Enter New Value","Ignore",IF(AW67="Injured vs Uninjured",AT67,AV67)) -> 78
A72: Performance Based Outcomes Measures (PBOM)-Unilateral | Y72: Performance Based Outcomes Measures (PBOM)-Unilateral
B73: Musculoskeletal outcomes | D73: Equipment | E73: Injured | F73: Uninjured | G73: Bench mark | I73: Benchmark | J73: Comparisons | K73: Difference | M73: Target | Y73: Musculoskeletal outcomes | AA73: Test descriptor | AB73: Equipment | AC73: Uninjured | AD73: Bench mark | AF73: Benchmark | AH73: Comparisons | AJ73: Difference | AL73: Target
D74: Metric | M74: Performance Deficit | AB74: Metric | AL74: Performance Deficit
A75: Initial Eval | B75: =D39 -> 0 | D75: PAP | E75: =O40 -> 21 | F75: =Q40 -> 25 | G75: =I39 -> 25 | H75: =IF(G75>0,G75,F75) -> 25 | I75: =I39 -> 25 | J75: =IF(OR(F75/H75>$N$29,H75=0), "Injured vs uninjured", "Injured vs benchmark") -> Injured vs uninjured | K75: =IF(J75="Injured vs Uninjured", E75/F75,E75/H75) -> 0.84 | M75: 1 | Y75: =A75 -> Initial Eval | Z75: =B75 -> 0 | AA75: =C75 -> 0 | AB75: =D75 -> PAP | AC75: =F75 -> 25 | AD75: =G75 -> 25 | AF75: =I75 -> 25 | AH75: Injured vs benchmark | AJ75: =IF(AH75="Injured vs Uninjured",#REF!/ AC75,E75/AD75) -> 0.84 | AL75: 1
D76: Seconds | M76: =K75-M75 -> -0.16 | AB76: =D76 -> Seconds | AL76: =AJ75-AL75 -> -0.16
A77: =A75 -> Initial Eval | B77: =D41 -> 0 | D77: MicroFit/Biofet | E77: =O42 -> 27 | F77: =Q42 -> 30 | G77: =I41 -> 30 | H77: =IF(G77>0,G77,F77) -> 30 | I77: =I41 -> 30 | J77: =IF(OR(F77/H77>$N$29,H77=0), "Injured vs uninjured", "Injured vs benchmark") -> Injured vs uninjured | K77: =IF(J77="Injured vs Uninjured", E77/F77,E77/H77) -> 0.9 | M77: 0.95 | Y77: =A77 -> Initial Eval | Z77: =B77 -> 0 | AA77: =C77 -> 0 | AB77: MicroFit/Biofet | AC77: =F77 -> 30 | AD77: =G77 -> 30 | AF77: =I77 -> 30 | AH77: Injured vs uninjured | AJ77: =IF(AH77="Injured vs Uninjured",#REF!/ AC77,E77/AD77) ->  | AL77: 0.95
D78: Joule | M78: =K77-M77 -> -0.05 | AB78: Joule | AL78: =AJ77-AL77 -> 
A79: =A77 -> Initial Eval | B79: =D43 -> 0 | D79: MicroFit/Biofet | E79: =O44 -> 45 | F79: =Q44 -> 70 | G79: =I43 -> 0 | H79: =IF(G79>0,G79,F79) -> 70 | I79: =I43 -> 0 | J79: =IF(OR(F79/H79>$N$29,H79=0), "Injured vs uninjured", "Injured vs benchmark") -> Injured vs uninjured | K79: =IF(J79="Injured vs Uninjured", E79/F79,E79/H79) -> 0.6428571429 | M79: 0.95 | Y79: =A79 -> Initial Eval | Z79: =B79 -> 0 | AA79: =C79 -> 0 | AB79: MicroFit/Biofet | AC79: =F79 -> 70 | AD79: =G79 -> 0 | AF79: =I79 -> 0 | AH79: Injured vs uninjured | AJ79: =IF(AH79="Injured vs Uninjured",#REF!/ AC79,E79/AD79) ->  | AL79: 0.95
D80: Joule | M80: =K79-M79 -> -0.3071428571 | AB80: Joule | AL80: =AJ79-AL79 -> 
A81: =A79 -> Initial Eval | B81: =D45 -> 0 | D81: MicroFit/Biofet | E81: =O46 -> 15 | F81: =Q46 -> 15 | G81: =I45 -> 0 | H81: =IF(G81>0,G81,F81) -> 15 | I81: =I45 -> 0 | J81: =IF(OR(F81/H81>$N$29,H81=0), "Injured vs uninjured", "Injured vs benchmark") -> Injured vs uninjured | K81: =IF(J81="Injured vs Uninjured", E81/F81,E81/H81) -> 1 | M81: 0.95 | Y81: =A81 -> Initial Eval | Z81: =B81 -> 0 | AA81: =C81 -> 0 | AB81: MicroFit/Biofet | AC81: =F81 -> 15 | AD81: =G81 -> 0 | AF81: =I81 -> 0 | AH81: Injured vs uninjured | AJ81: =IF(AH81="Injured vs Uninjured",#REF!/ AC81,E81/AD81) ->  | AL81: 0.95
D82: Joule | M82: =K81-M81 -> 0.05 | AB82: Joule | AL82: =AJ81-AL81 -> 
A83: =A81 -> Initial Eval | B83: =D47 -> 0 | D83: MicroFit/Biofet | E83: =O48 -> 65 | F83: =Q48 -> 78 | G83: =I47 -> 78 | H83: =IF(G83>0,G83,F83) -> 78 | I83: =I47 -> 78 | J83: =IF(OR(F83/H83>$N$29,H83=0), "Injured vs uninjured", "Injured vs benchmark") -> Injured vs uninjured | K83: =IF(J83="Injured vs Uninjured", E83/F83,E83/H83) -> 0.8333333333 | M83: 0.95 | Y83: =A83 -> Initial Eval | Z83: =B83 -> 0 | AA83: =C83 -> 0 | AB83: MicroFit/Biofet | AC83: =F83 -> 78 | AD83: =G83 -> 78 | AF83: =I83 -> 78 | AH83: Injured vs uninjured | AJ83: =IF(AH83="Injured vs Uninjured",#REF!/ AC83,E83/AD83) ->  | AL83: 0.95
D84: Joule | M84: =K83-M83 -> -0.1166666667 | AB84: Joule | AL84: =AJ83-AL83 -> 
A85: =A83 -> Initial Eval | B85: =D49 -> 0 | D85: MicroFit/Biofet | E85: =O50 -> 0 | F85: =Q50 -> 0 | G85: =I49 -> 0 | H85: =IF(G85>0,G85,F85) -> 0 | I85: =I49 -> 0 | J85: =IF(OR(F85/H85>$N$29,H85=0), "Injured vs uninjured", "Injured vs benchmark") ->  | K85: =IF(J85="Injured vs Uninjured", E85/F85,E85/H85) ->  | M85: 0.95 | Y85: =A85 -> Initial Eval | Z85: =B85 -> 0 | AA85: =C85 -> 0 | AB85: MicroFit/Biofet | AC85: =F85 -> 0 | AD85: =G85 -> 0 | AF85: =I85 -> 0 | AH85: Injured vs uninjured | AJ85: =IF(AH85="Injured vs Uninjured",#REF!/ AC85,E85/AD85) ->  | AL85: 0.95
D86: Joule | M86: =K85-M85 ->  | AB86: Joule | AL86: =AJ85-AL85 -> 
A87: =A85 -> Initial Eval | B87: =D51 -> 0 | D87: MicroFit/Biofet | E87: =O52 -> 0 | F87: =Q52 -> 0 | G87: =I51 -> 0 | H87: =IF(G87>0,G87,F87) -> 0 | I87: =I51 -> 0 | J87: =IF(OR(F87/H87>$N$29,H87=0), "Injured vs uninjured", "Injured vs benchmark") ->  | K87: =IF(J87="Injured vs Uninjured", E87/F87,E87/H87) ->  | M87: 0.95 | Y87: =A87 -> Initial Eval | Z87: =B87 -> 0 | AA87: =C87 -> 0 | AB87: MicroFit/Biofet | AC87: =F87 -> 0 | AD87: =G87 -> 0 | AF87: =I87 -> 0 | AH87: Injured vs uninjured | AJ87: =IF(AH87="Injured vs Uninjured",#REF!/ AC87,E87/AD87) ->  | AL87: 0.95
D88: Joule | M88: =K87-M87 ->  | AB88: Joule | AL88: =AJ87-AL87 -> 
A89: =A87 -> Initial Eval | B89: =D53 -> 0 | D89: MicroFit/Biofet | E89: =O54 -> 0 | F89: =Q54 -> 0 | G89: =I53 -> 0 | H89: =IF(G89>0,G89,F89) -> 0 | I89: =I53 -> 0 | J89: =IF(OR(F89/H89>$N$29,H89=0), "Injured vs uninjured", "Injured vs benchmark") ->  | K89: =IF(J89="Injured vs Uninjured", E89/F89,E89/H89) ->  | M89: 0.95 | Y89: =A89 -> Initial Eval | Z89: =B89 -> 0 | AA89: =C89 -> 0 | AB89: MicroFit/Biofet | AC89: =F89 -> 0 | AD89: =G89 -> 0 | AF89: =I89 -> 0 | AH89: Injured vs uninjured | AJ89: =IF(AH89="Injured vs Uninjured",#REF!/ AC89,E89/AD89) ->  | AL89: 0.95
D90: Joule | M90: =K89-M89 ->  | AB90: Joule | AL90: =AJ89-AL89 -> 
A91: =A89 -> Initial Eval | B91: =D55 -> 0 | D91: MicroFit/Biofet | E91: =O56 -> 0 | F91: =Q56 -> 0 | G91: =I55 -> 0 | H91: =IF(G91>0,G91,F91) -> 0 | I91: =I55 -> 0 | J91: =IF(OR(F91/H91>$N$29,H91=0), "Injured vs uninjured", "Injured vs benchmark") ->  | K91: =IF(J91="Injured vs Uninjured", E91/F91,E91/H91) ->  | M91: 0.95 | Y91: =A91 -> Initial Eval | Z91: =B91 -> 0 | AA91: =C91 -> 0 | AB91: MicroFit/Biofet | AC91: =F91 -> 0 | AD91: =G91 -> 0 | AF91: =I91 -> 0 | AH91: Injured vs uninjured | AJ91: =IF(AH91="Injured vs Uninjured",#REF!/ AC91,E91/AD91) ->  | AL91: 0.95
D92: Joule | M92: =K91-M91 ->  | AB92: Joule | AL92: =AJ91-AL91 -> 
A93: =A91 -> Initial Eval | B93: =D57 -> 0 | D93: MicroFit/Biofet | E93: =O58 -> 0 | F93: =Q58 -> 0 | G93: =I57 -> 0 | H93: =IF(G93>0,G93,F93) -> 0 | I93: =I57 -> 0 | J93: =IF(OR(F93/H93>$N$29,H93=0), "Injured vs uninjured", "Injured vs benchmark") ->  | K93: =IF(J93="Injured vs Uninjured", E93/F93,E93/H93) ->  | M93: 0.95 | Y93: =A93 -> Initial Eval | Z93: =B93 -> 0 | AA93: =C93 -> 0 | AB93: MicroFit/Biofet | AC93: =F93 -> 0 | AD93: =G93 -> 0 | AF93: =I93 -> 0 | AH93: Injured vs uninjured | AJ93: =IF(AH93="Injured vs Uninjured",#REF!/ AC93,E93/AD93) ->  | AL93: 0.95
D94: Joule | M94: =K93-M93 ->  | AB94: Joule | AL94: =AJ93-AL93 -> 
Y97: Musculoskeletal outcomes | AA97: Test descriptor | AB97: Equipment | AC97: Uninjured | AD97: Bench mark | AF97: Benchmark | AH97: Comparisons | AJ97: Difference | AL97: Target
AB98: Metric | AL98: Performance Deficit
Y99: =V39 -> Progress 1 | Z99: =W39 -> 0 | AA99: =X39 -> Leg press | AB99: =Y39 -> Biodex | AC99: =AJ40 -> 200 | AD99: =AB39 -> 200 | AF99: =IF(AD99>0,AD99,AC99) -> 200 | AH99: =IF(OR(#REF!/AD99>$N$29,AD99=0), "Injured vs uninjured", "Injured vs benchmark") ->  | AJ99: =IF(AH99="Injured vs Uninjured", AC99/AD99,#REF!/AF99) ->  | AL99: 1
AB100: =Y40 -> Nm | AL100: =AJ99-AL99 -> 
Y101: =V41 -> Progress 1 | Z101: =W41 -> 0 | AA101: =X41 -> fh | AB101: Biodex | AC101: =AJ42 -> 950 | AD101: =AB41 -> 950 | AF101: =IF(AD101>0,AD101,AC101) -> 950 | AH101: =IF(OR(#REF!/AD101>$N$29,AD101=0), "Injured vs uninjured", "Injured vs benchmark") ->  | AJ101: =IF(AH101="Injured vs Uninjured", AC101/AD101,#REF!/AF101) ->  | AL101: 0.95
AB102: Kg | AL102: =AJ101-AL101 -> 
Y103: =V43 -> Progress 1 | Z103: =W43 -> 0 | AA103: =X43 -> fg | AB103: DynoMo | AC103: =AJ44 -> 100 | AD103: =AB43 -> 0 | AF103: =IF(AD103>0,AD103,AC103) -> 100 | AH103: =IF(OR(#REF!/AD103>$N$29,AD103=0), "Injured vs uninjured", "Injured vs benchmark") ->  | AJ103: =IF(AH103="Injured vs Uninjured", AC103/AD103,#REF!/AF103) ->  | AL103: 0.95
AB104: Joule | AL104: =AJ103-AL103 -> 
Y105: =V45 -> Progress 1 | Z105: =W45 -> 0 | AA105: =X45 -> xgf | AB105: MicroFit/Biofet | AC105: =AJ46 -> 9 | AD105: =AB45 -> 9 | AF105: =IF(AD105>0,AD105,AC105) -> 9 | AH105: =IF(OR(#REF!/AD105>$N$29,AD105=0), "Injured vs uninjured", "Injured vs benchmark") ->  | AJ105: =IF(AH105="Injured vs Uninjured", AC105/AD105,#REF!/AF105) ->  | AL105: 0.95
AB106: Joule | AL106: =AJ105-AL105 -> 
Y107: =V47 -> Progress 1 | Z107: =W47 -> 0 | AA107: =X47 -> aaa | AB107: MicroFit/Biofet | AC107: =AJ48 -> 78 | AD107: =AB47 -> 0 | AF107: =IF(AD107>0,AD107,AC107) -> 78 | AH107: =IF(OR(#REF!/AD107>$N$29,AD107=0), "Injured vs uninjured", "Injured vs benchmark") ->  | AJ107: =IF(AH107="Injured vs Uninjured", AC107/AD107,#REF!/AF107) ->  | AL107: 0.95
AB108: Joule | AL108: =AJ107-AL107 -> 
Y109: =V49 -> Progress 1 | Z109: =W49 -> 0 | AA109: =X49 -> u | AB109: Goniometre | AC109: =AJ50 -> 25 | AD109: =AB49 -> 25 | AF109: =IF(AD109>0,AD109,AC109) -> 25 | AH109: =IF(OR(#REF!/AD109>$N$29,AD109=0), "Injured vs uninjured", "Injured vs benchmark") ->  | AJ109: =IF(AH109="Injured vs Uninjured", AC109/AD109,#REF!/AF109) ->  | AL109: 0.95
AB110: Degrees | AL110: =AJ109-AL109 -> 
Y111: =V51 -> Progress 1 | Z111: =W51 -> 0 | AA111: =X51 -> f | AB111: Goniometre | AC111: =AJ52 -> 30 | AD111: =AB51 -> 30 | AF111: =IF(AD111>0,AD111,AC111) -> 30 | AH111: =IF(OR(#REF!/AD111>$N$29,AD111=0), "Injured vs uninjured", "Injured vs benchmark") ->  | AJ111: =IF(AH111="Injured vs Uninjured", AC111/AD111,#REF!/AF111) ->  | AL111: 0.95
AB112: Degrees | AL112: =AJ111-AL111 -> 
Y113: =V53 -> Progress 1 | Z113: =W53 -> 0 | AA113: =X53 -> g | AB113: MicroFit/Biofet | AC113: =AJ54 -> 70 | AD113: =AB53 -> 70 | AF113: =IF(AD113>0,AD113,AC113) -> 70 | AH113: =IF(OR(#REF!/AD113>$N$29,AD113=0), "Injured vs uninjured", "Injured vs benchmark") ->  | AJ113: =IF(AH113="Injured vs Uninjured", AC113/AD113,#REF!/AF113) ->  | AL113: 0.95
AB114: Joule | AL114: =AJ113-AL113 -> 
Y115: =V55 -> Progress 1 | Z115: =W55 -> 0 | AA115: =X55 -> p | AB115: Step | AC115: =AJ56 -> 15 | AD115: =AB55 -> 15 | AF115: =IF(AD115>0,AD115,AC115) -> 15 | AH115: =IF(OR(#REF!/AD115>$N$29,AD115=0), "Injured vs uninjured", "Injured vs benchmark") ->  | AJ115: =IF(AH115="Injured vs Uninjured", AC115/AD115,#REF!/AF115) ->  | AL115: 0.95
AB116: Numeric value | AL116: =AJ115-AL115 -> 
Y117: =V57 -> Progress 1 | Z117: =W57 -> 0 | AA117: =X57 -> h | AB117: MicroFit/Biofet | AC117: =AJ58 -> 78 | AD117: =AB57 -> 78 | AF117: =IF(AD117>0,AD117,AC117) -> 78 | AH117: =IF(OR(#REF!/AD117>$N$29,AD117=0), "Injured vs uninjured", "Injured vs benchmark") ->  | AJ117: =IF(AH117="Injured vs Uninjured", AC117/AD117,#REF!/AF117) ->  | AL117: 0.95
AB118: Kg | AL118: =AJ117-AL117 -> 

Sheet Input Uni-Lateral (2) (hidden)
A1: Translate research into private practice | I1: Key for colour codes
I2: Robot Colour Codes | J2: VAS pain | K2: Difference between injured and uninjured
I3: Red | J3: 6-10 | K3: 0-69%
I4: Orange | J4: 4-6 | K4: 70-85%
I5: Green | J5: 0-3 | K5: 85-100%
AO6: Patient Demographics
A7: Patient Demographics | W7: Patient Demographics | AO7: Initial assesment | AQ7: 2 | AS7: Clinical summary
A8: Initial assesment | C8: 2 | E8: Clinical summary | W8: Initial assesment | Y8: 2 | AA8: Clinical summary | AO8: Date: | AQ8: 2022-06-05 | AS8: JANIE HARDLOOP IN DIE PAD
A9: Date: | C9: 2022-06-05 | E9: JANIE HARDLOOP IN DIE PAD | W9: Date: | Y9: 2022-06-05 | AA9: JANIE HARDLOOP IN DIE PAD | AO9: Name & Surname: | AQ9: Koos
A10: Name & Surname: | C10: Koos | W10: Name & Surname: | Y10: Koos | AO10: Field | AQ10: Orthopeadic
A11: Field | C11: Orthopeadic | W11: Field | Y11: Orthopeadic | AO11: Diagnose: | AQ11: Primary | AR11: Secondary
A12: Diagnose: | C12: Primary | D12: Secondary | W12: Diagnose: | Y12: Primary | Z12: Secondary | AQ12: ACLR | AR12: nslbp
C13: ACLR | D13: nslbp | Y13: ACLR | Z13: nslbp | AO13: Months/weeks after injury | AQ13: 5 months
A14: Months/weeks after injury | C14: 5 months | W14: Months/weeks after injury | Y14: 5 months | AO14: Patient Goal | AQ14: Performance
A15: Patient Goal | C15: Performance | W15: Patient Goal | Y15: Performance | AO15: Patient Reported Outcomes Measures (PROM)
A16: Patient Reported Outcomes Measures (PROM) | W16: Patient Reported Outcomes Measures (PROM) | AO16: Subjective Scoring Sheet | AQ16: Current score | AR16: Bench mark | AS16: Comments
A17: Subjective Scoring Sheet | C17: Current score | D17: Bench mark | E17: Comments | W17: Subjective Scoring Sheet | Y17: Current Score | Z17: Initial Ass | AA17: Bench mark | AB17: Progress | AC17: Comments | AO17: Initial Eval | AP17: Ankle and Foot | AQ17: 0.56 | AR17: 0.67 | AS17: djhgsklhfaksjdhakldhakjhdakdh
A18: Initial Eval | B18: Ankle and Foot | C18: 0.56 | D18: 0.67 | E18: djhgsklhfaksjdhakldhakjhdakdh | W18: Initial Eval | X18: Ankle and Foot | Y18: 0.78 | Z18: 0.56 | AA18: 0.9 | AB18: =Y18-Z18 -> 0.22 | AO18: Initial | AP18: Oswestry Disability Index | AQ18: 0.44 | AR18: 0.78
A19: Initial | B19: Oswestry Disability Index | C19: 0.44 | D19: 0.78 | W19: Initial | X19: Oswestry Disability Index | Y19: 0.78 | Z19: 0.44 | AA19: 0.9 | AB19: =Y19-Z19 -> 0.34 | AO19: Initial | AP19: Lower leg | AQ19: 0.67 | AR19: 0.89
A20: Initial | B20: Lower leg | C20: 0.67 | D20: 0.89 | W20: Initial | X20: Lower leg | Y20: 0.78 | Z20: 0.67 | AA20: 0.9 | AB20: 0.11 | AO20: Patient Reported VAS Pain
A21: Patient Reported VAS Pain | W21: Patient Reported VAS Pain | AO21: Pain Outcome measure during activity or rest | AQ21: Location/area/referred | AS21: Current | AU21: Comments
A22: Pain Outcome measure during activity or rest | C22: Location/area/referred | E22: Current | G22: Comments | W22: Pain Outcome measure during activity or rest | Y22: Location/area/referred | AA22: Current | AC22: Current | AS22: Involved (/10) | AT22: Uninvolved(/10)
E23: Involved (/10) | F23: Uninvolved(/10) | AA23: Involved (/10) | AB23: Uninvolved(/10) | AC23: Involved (/10) | AD23: Uninvolved(/10) | AO23: Initial | AP23: xdfsd | AQ23: d | AS23: 3 | AT23: 0 | AU23: Fig 1: strtwetwr
A24: Initial | B24: xdfsd | C24: d | E24: 3 | F24: 0 | G24: Fig 1: strtwetwr | W24: Initial | X24: xdfsd | Y24: d | AA24: 3 | AB24: 0 | AC24: 2 | AD24: 0 | AO24: Initial | AP24: xdgdg | AQ24: cfgdfg | AS24: 4 | AT24: 0 | AU24: Fig 2: wtwrwrw
A25: Initial | B25: xdgdg | C25: cfgdfg | E25: 4 | F25: 0 | G25: Fig 2: wtwrwrw | W25: Initial | X25: xdgdg | Y25: cfgdfg | AA25: 4 | AB25: 0 | AC25: 4 | AD25: 0
A28: Start at INITIAL for FIRST ASSESSMENT
N29: 0.8
I31: Factor | J31: 0.85 | K31: 1
A32: Move to Progress 1 if not first assessment ----> --------------------->---------------------->------------- | V32: Move to progress 2 if progression made for final evaluation ---->-------------->------------->
A36: INITIAL | C36: Performance Based Outcomes Measures (PBOM)-Unilateral | U36: Progress 1 | AN36: Progress 2
C37: Musculoskeletal outcomes | E37: Test descriptor | F37: Equipment | G37: Injured | H37: Uninjured | I37: Bench mark | J37: Benchmark | K37: Comparisons | L37: Difference | M37: Target | V37: Musculoskeletal outcomes | X37: Test descriptor | Y37: Equipment | Z37: Injured | AA37: Uninjured | AB37: Bench mark | AC37: Benchmark | AD37: Comparisons | AE37: Difference | AF37: Target | AG37: TEST 2 RESULTS | AH37: Post treatment test | AO37: Musculoskeletal outcomes | AQ37: Test descriptor | AR37: Equipment | AS37: Injured | AT37: Uninjured | AU37: Bench mark | AV37: Benchmark | AW37: Comparisons | AX37: Difference | AY37: Target
F38: Metric | M38: Performance Deficit | N38: Test 1 Results | O38: Post treatment test | R38: Comparison | S38: Difference | Y38: Metric | AF38: Performance Deficit | AR38: Metric | AY38: Performance Deficit | AZ38: Test 3 Results | BA38: Post treatment test | BF38: Test 4 results
C39: Initial Eval | D39: External Rot_Peak F | E39: u | F39: Goniometre | G39: 12 | H39: 15 | I39: 25 | J39: =IF(I39>0,I39,H39) -> 25 | K39: =IF(OR(AND((H39/J39>$J$31),H39/J39<$K$31),I39=0), "Injured vs uninjured", "Injured vs benchmark") -> Injured vs benchmark | L39: =IF(K39="Injured vs uninjured", G39/H39,G39/J39) -> 0.48 | M39: 1 | N39: =IF(L39>=85%,"Pass",IF(L39<85%,"Fail","Error")) -> Fail | O39: Injured | P39: Uninjured | Q39: Benchmark | R39: =IF(OR(AND((P40/Q40>$J$31),P40/Q40<$K$31),I39=0), "Injured vs uninjured", "Injured vs benchmark") -> Injured vs uninjured | S39: =IF(R39="Injured vs uninjured", O40/P40,O40/Q40) -> 0.9545454545 | T39: =IF(S39>=85%,"Pass",IF(S39<85%,"Fail","Error")) -> Pass | V39: Progress 1 | W39: GIRD_ | X39: Leg press | Y39: Biodex | Z39: 125 | AA39: 160 | AB39: 200 | AC39: =IF(AB39>0,AB39,AA39) -> 200 | AD39: =IF(OR(AND((AA39/AC39>$J$31),AA39/AC39<$K$31),AB39=0), "Injured vs uninjured", "Injured vs benchmark") -> Injured vs benchmark | AE39: =IF(AD39="Injured vs uninjured", Z39/AA39,Z39/AC39) -> 0.625 | AF39: 1 | AG39: =IF(AE39>=85%,"Pass",IF(AE39<85%,"Fail","Error")) -> Fail | AH39: Injured | AI39: Uninjured | AJ39: Benchmark | AK39: =IF(OR(AND((AI40/AJ40>$J$31),AI40/AJ40<$K$31),AC39=0), "Injured vs uninjured", "Injured vs benchmark") -> Injured vs uninjured | AL39: =IF(AK39="Injured vs Uninjured", AH40/AI40,AH40/AC39) -> 0.8146067416 | AM39: =IF(AL39>=85%,"Pass",IF(AL39<85%,"Fail","Error")) -> Fail | AO39: Discharge | AP39: RSI | AQ39: fsd | AR39: Stopwatch | AS39: 17 | AT39: 24 | AU39: 34 | AV39: =IF(AU39>0,AU39,AT39) -> 34 | AW39: =IF(OR(AND((AT39/AV39>$J$31),AT39/AV39<$K$31),AU39=0), "Injured vs uninjured", "Injured vs benchmark") -> Injured vs benchmark | AX39: =IF(AW39="Injured vs Uninjured", AS39/AT39,AS39/AV39) -> 0.5 | AY39: 1 | AZ39: =IF(AX39>=85%,"Pass",IF(AX39<85%,"Fail","Error")) -> Fail | BA39: Injured | BB39: Uninjured | BC39: Benchmark | BD39: =IF(OR(AND((BB40/BC40>$J$31),BB40/BC40<$K$31),AV39=0), "Injured vs uninjured", "Injured vs benchmark") -> Injured vs uninjured | BE39: =IF(BD39="Injured vs Uninjured", BA40/BB40,BA40/BC40) -> 0.9 | BF39: =IF(BE39>=85%,"Pass",IF(AX39<85%,"Fail","Error")) -> Pass
F40: Degrees | M40: =L39-M39 -> -0.52 | O40: 21 | P40: 22 | Q40: =IF(E39="","Ignore",IF(K39="Injured vs Uninjured",J39,J39)) -> 25 | Y40: Nm | AF40: =AE39-AF39 -> -0.375 | AH40: 145 | AI40: 178 | AJ40: =IF(X39="","Ignore",IF(AD39="Injured vs Uninjured",AC39,AC39)) -> 200 | AR40: Seconds | AY40: =AX39-AY39 -> -0.5 | BA40: 27 | BB40: 30 | BC40: =IF(X39="Enter New Value","Ignore",IF(AW39="Injured vs Uninjured",AT39,AV39)) -> 34
C41: =C39 -> Initial Eval | D41: Hamstring- Strenth End | E41: f | F41: Goniometre | G41: 20 | H41: 20 | I41: 30 | J41: =IF(I41>0,I41,H41) -> 30 | K41: =IF(OR(AND((H41/J41>$J$31),H41/J41<$K$31),I41=0), "Injured vs uninjured", "Injured vs benchmark") -> Injured vs benchmark | L41: =IF(K41="Injured vs uninjured", G41/H41,G41/J41) -> 0.6666666667 | M41: 0.9 | N41: =IF(L41>=85%,"Pass",IF(L41<85%,"Fail","Error")) -> Fail | O41: =O39 -> Injured | P41: =P39 -> Uninjured | Q41: =Q39 -> Benchmark | R41: =IF(OR(AND((P42/Q42>$J$31),P42/Q42<$K$31),I41=0), "Injured vs uninjured", "Injured vs benchmark") -> Injured vs uninjured | S41: =IF(R41="Injured vs uninjured", O42/P42,O42/Q42) -> 0.9310344828 | T41: =IF(S41>=85%,"Pass",IF(S41<85%,"Fail","Error")) -> Pass | V41: =V39 -> Progress 1 | W41: PGM- Strength end | X41: fh | Y41: Biodex | Z41: 400 | AA41: 780 | AB41: 950 | AC41: =IF(AB41>0,AB41,AA41) -> 950 | AD41: =IF(OR(AND((AA41/AC41>$J$31),AA41/AC41<$K$31),AB41=0), "Injured vs uninjured", "Injured vs benchmark") -> Injured vs benchmark | AE41: =IF(AD41="Injured vs uninjured", Z41/AA41,Z41/AC41) -> 0.4210526316 | AF41: 1 | AG41: =IF(AE41>=85%,"Pass",IF(AE41<85%,"Fail","Error")) -> Fail | AH41: Injured | AI41: =AI39 -> Uninjured | AJ41: =AJ39 -> Benchmark | AK41: =IF(OR(AND((AI42/AJ42>$J$31),AI42/AJ42<$K$31),AC41=0), "Injured vs uninjured", "Injured vs benchmark") -> Injured vs uninjured | AL41: =IF(AK41="Injured vs Uninjured", AH42/AI42,AH42/AC41) -> 0.6160493827 | AM41: =IF(AL41>=85%,"Pass",IF(AL41<85%,"Fail","Error")) -> Fail | AO41: Discharge | AP41: DSI | AQ41: sdfsf | AR41: Stopwatch | AS41: 45 | AT41: 89 | AU41: 120 | AV41: =IF(AU41>0,AU41,AT41) -> 120 | AW41: =IF(OR(AND((AT41/AV41>$J$31),AT41/AV41<$K$31),AU41=0), "Injured vs uninjured", "Injured vs benchmark") -> Injured vs benchmark | AX41: =IF(AW41="Injured vs Uninjured", AS41/AT41,AS41/AV41) -> 0.375 | AY41: 0.95 | AZ41: =IF(AX41>=85%,"Pass",IF(AX41<85%,"Fail","Error")) -> Fail | BA41: =BA39 -> Injured | BB41: =BB39 -> Uninjured | BC41: =BC39 -> Benchmark | BD41: =IF(OR(AND((BB42/BC42>$J$31),BB42/BC42<$K$31),AV41=0), "Injured vs uninjured", "Injured vs benchmark") -> Injured vs benchmark | BE41: =IF(BD41="Injured vs Uninjured", BA42/BB42,BA42/BC42) -> 0.5583333333 | BF41: =IF(BE41>=85%,"Pass",IF(AX41<85%,"Fail","Error")) -> Fail
F42: Degrees | M42: =L41-M41 -> -0.2333333333 | O42: 27 | P42: 29 | Q42: =IF(E41="","Ignore",IF(K41="Injured vs Uninjured",J41,J41)) -> 30 | Y42: Kg | AF42: =AE41-AF41 -> -0.5789473684 | AH42: 499 | AI42: 810 | AJ42: =IF(X41="","Ignore",IF(AD41="Injured vs Uninjured",AC41,AC41)) -> 950 | AR42: Joule | AY42: =AX41-AY41 -> -0.575 | BA42: 67 | BB42: 98 | BC42: =IF(X39="Enter New Value","Ignore",IF(AW41="Injured vs Uninjured",AT41,AV41)) -> 120
C43: =C41 -> Initial Eval | D43: Quadriceps- PF | E43: g | F43: MicroFit/Biofet | G43: 40 | H43: 70 | I43: 0 | J43: =IF(I43>0,I43,H43) -> 70 | K43: =IF(OR(AND((H43/J43>$J$31),H43/J43<$K$31),I43=0), "Injured vs uninjured", "Injured vs benchmark") -> Injured vs uninjured | L43: =IF(K43="Injured vs uninjured", G43/H43,G43/J43) -> 0.5714285714 | M43: 0.9 | N43: =IF(L43>=85%,"Pass",IF(L43<85%,"Fail","Error")) -> Fail | O43: =O41 -> Injured | P43: Uninjured | Q43: =Q41 -> Benchmark | R43: =IF(OR(AND((P44/Q44>$J$31),P44/Q44<$K$31),I43=0), "Injured vs uninjured", "Injured vs benchmark") -> Injured vs uninjured | S43: =IF(R43="Injured vs uninjured", O44/P44,O44/Q44) -> 0.671641791 | T43: =IF(S43>=85%,"Pass",IF(S43<85%,"Fail","Error")) -> Fail | V43: =V41 -> Progress 1 | W43: Glut Max_ | X43: fg | Y43: DynoMo | Z43: 60 | AA43: 100 | AB43: 0 | AC43: =IF(AB43>0,AB43,AA43) -> 100 | AD43: =IF(OR(AND((AA43/AC43>$J$31),AA43/AC43<$K$31),AB43=0), "Injured vs uninjured", "Injured vs benchmark") -> Injured vs uninjured | AE43: =IF(AD43="Injured vs uninjured", Z43/AA43,Z43/AC43) -> 0.6 | AF43: 1 | AG43: =IF(AE43>=85%,"Pass",IF(AE43<85%,"Fail","Error")) -> Fail | AH43: Injured | AI43: =AI41 -> Uninjured | AJ43: =AJ41 -> Benchmark | AK43: =IF(OR(AND((AI44/AJ44>$J$31),AI44/AJ44<$K$31),AC43=0), "Injured vs uninjured", "Injured vs benchmark") -> Injured vs uninjured | AL43: =IF(AK43="Injured vs Uninjured", AH44/AI44,AH44/AC43) -> 0.8620689655 | AM43: =IF(AL43>=85%,"Pass",IF(AL43<85%,"Fail","Error")) -> Pass | AO43: Discharge | AP43: PSI | AQ43: fss | AR43: MicroFit/Biofet | AS43: 67 | AT43: 78 | AU43: 100 | AV43: =IF(AU43>0,AU43,AT43) -> 100 | AW43: =IF(OR(AND((AT43/AV43>$J$31),AT43/AV43<$K$31),AU43=0), "Injured vs uninjured", "Injured vs benchmark") -> Injured vs benchmark | AX43: =IF(AW43="Injured vs Uninjured", AS43/AT43,AS43/AV43) -> 0.67 | AY43: 0.95 | AZ43: =IF(AX43>=85%,"Pass",IF(AX43<85%,"Fail","Error")) -> Fail | BA43: =BA41 -> Injured | BB43: Uninjured | BC43: Benchmark | BD43: =IF(OR(AND((BB44/BC44>$J$31),BB44/BC44<$K$31),AV43=0), "Injured vs uninjured", "Injured vs benchmark") -> Injured vs benchmark | BE43: =IF(BD43="Injured vs Uninjured", BA44/BB44,BA44/BC44) -> 0.89 | BF43: =IF(BE43>=85%,"Pass",IF(AX43<85%,"Fail","Error")) -> Pass
F44: Joule | M44: =L43-M43 -> -0.3285714286 | O44: 45 | P44: 67 | Q44: =IF(E43="","Ignore",IF(K43="Injured vs Uninjured",J43,J43)) -> 70 | Y44: Joule | AF44: =AE43-AF43 -> -0.4 | AH44: 75 | AI44: 87 | AJ44: =IF(X43="","Ignore",IF(AD43="Injured vs Uninjured",AC43,AC43)) -> 100 | AR44: Joule | AY44: =AX43-AY43 -> -0.28 | BA44: 89 | BB44: 78 | BC44: =IF(X39="Enter New Value","Ignore",IF(AW43="Injured vs Uninjured",AT43,AV43)) -> 100
C45: =C43 -> Initial Eval | D45: Ankle_ ROM | E45: p | F45: Step | G45: 10 | H45: 20 | I45: 0 | J45: =IF(I45>0,I45,H45) -> 20 | K45: =IF(OR(AND((H45/J45>$J$31),H45/J45<$K$31),I45=0), "Injured vs uninjured", "Injured vs benchmark") -> Injured vs uninjured | L45: =IF(K45="Injured vs uninjured", G45/H45,G45/J45) -> 0.5 | M45: 1 | N45: =IF(L45>=85%,"Pass",IF(L45<85%,"Fail","Error")) -> Fail | O45: =O43 -> Injured | P45: Uninjured | Q45: Benchmark | R45: =IF(OR(AND((P46/Q46>$J$31),P46/Q46<$K$31),I45=0), "Injured vs uninjured", "Injured vs benchmark") -> Injured vs uninjured | S45: =IF(R45="Injured vs uninjured", O46/P46,O46/Q46) -> 0.7894736842 | T45: =IF(S45>=85%,"Pass",IF(S45<85%,"Fail","Error")) -> Fail | V45: =V43 -> Progress 1 | W45: Hamstring- Strenth End | X45: xgf | Y45: MicroFit/Biofet | Z45: 5 | AA45: 7 | AB45: 9 | AC45: =IF(AB45>0,AB45,AA45) -> 9 | AD45: =IF(OR(AND((AA45/AC45>$J$31),AA45/AC45<$K$31),AB45=0), "Injured vs uninjured", "Injured vs benchmark") -> Injured vs benchmark | AE45: =IF(AD45="Injured vs uninjured", Z45/AA45,Z45/AC45) -> 0.5555555556 | AF45: 1 | AG45: =IF(AE45>=85%,"Pass",IF(AE45<85%,"Fail","Error")) -> Fail | AH45: Injured | AI45: =AI41 -> Uninjured | AJ45: =AJ43 -> Benchmark | AK45: =IF(OR(AND((AI46/AJ46>$J$31),AI46/AJ46<$K$31),AC45=0), "Injured vs uninjured", "Injured vs benchmark") -> Injured vs benchmark | AL45: =IF(AK45="Injured vs Uninjured", AH46/AI46,AH46/AC45) -> 0.8888888889 | AM45: =IF(AL45>=85%,"Pass",IF(AL45<85%,"Fail","Error")) -> Pass | AO45: Discharge | AP45: LSI | AQ45: sf | AR45: MicroFit/Biofet | AS45: 5 | AT45: 8 | AU45: 10 | AV45: =IF(AU45>0,AU45,AT45) -> 10 | AW45: =IF(OR(AND((AT45/AV45>$J$31),AT45/AV45<$K$31),AU45=0), "Injured vs uninjured", "Injured vs benchmark") -> Injured vs benchmark | AX45: =IF(AW45="Injured vs Uninjured", AS45/AT45,AS45/AV45) -> 0.5 | AY45: 0.95 | AZ45: =IF(AX45>=85%,"Pass",IF(AX45<85%,"Fail","Error")) -> Fail | BA45: =BA43 -> Injured | BB45: Uninjured | BC45: Benchmark | BD45: =IF(OR(AND((BB46/BC46>$J$31),BB46/BC46<$K$31),AV45=0), "Injured vs uninjured", "Injured vs benchmark") -> Injured vs uninjured | BE45: =IF(BD45="Injured vs Uninjured", BA46/BB46,BA46/BC46) -> 0.8888888889 | BF45: =IF(BE45>=85%,"Pass",IF(AX45<85%,"Fail","Error")) -> Pass
F46: Numeric value | M46: =L45-M45 -> -0.5 | O46: 15 | P46: 19 | Q46: =IF(E45="","Ignore",IF(K45="Injured vs Uninjured",H45,I45)) -> 20 | Y46: Joule | AF46: =AE45-AF45 -> -0.4444444444 | AH46: 8 | AI46: 9 | AJ46: =IF(X45="","Ignore",IF(AD45="Injured vs Uninjured",AC45,AC45)) -> 9 | AR46: Joule | AY46: =AX45-AY45 -> -0.45 | BA46: 8 | BB46: 9 | BC46: =IF(X39="Enter New Value","Ignore",IF(AW45="Injured vs Uninjured",AT45,AV45)) -> 10
C47: =C45 -> Initial Eval | D47: QASLS | E47: h | F47: MicroFit/Biofet | G47: 30 | H47: 65 | I47: 70 | J47: =IF(I47>0,I47,H47) -> 70 | K47: =IF(OR(AND((H47/J47>$J$31),H47/J47<$K$31),I47=0), "Injured vs uninjured", "Injured vs benchmark") -> Injured vs uninjured | L47: =IF(K47="Injured vs uninjured", G47/H47,G47/J47) -> 0.4615384615 | M47: 1 | N47: =IF(L47>=85%,"Pass",IF(L47<85%,"Fail","Error")) -> Fail | O47: =O45 -> Injured | P47: Uninjured | Q47: Benchmark | R47: Injured vs uninjured | S47: =IF(R47="Injured vs uninjured", O48/P48,O48/Q48) -> 0.9848484848 | T47: =IF(S47>=85%,"Pass",IF(S47<85%,"Fail","Error")) -> Pass | V47: =V45 -> Progress 1 | W47: Nec rot | X47: aaa | Y47: MicroFit/Biofet | Z47: 45 | AA47: 78 | AB47: 0 | AC47: =IF(AB47>0,AB47,AA47) -> 78 | AD47: =IF(OR(AND((AA47/AC47>$J$31),AA47/AC47<$K$31),AB47=0), "Injured vs uninjured", "Injured vs benchmark") -> Injured vs uninjured | AE47: =IF(AD47="Injured vs uninjured", Z47/AA47,Z47/AC47) -> 0.5769230769 | AF47: 1 | AG47: =IF(AE47>=85%,"Pass",IF(AE47<85%,"Fail","Error")) -> Fail | AH47: Injured | AI47: =AI45 -> Uninjured | AJ47: =AJ45 -> Benchmark | AK47: =IF(OR(AND((AI48/AJ48>$J$31),AI48/AJ48<$K$31),AC47=0), "Injured vs uninjured", "Injured vs benchmark") -> Injured vs benchmark | AL47: =IF(AK47="Injured vs Uninjured", AH48/AI48,AH48/AC47) -> 0.858974359 | AM47: =IF(AL47>=85%,"Pass",IF(AL47<85%,"Fail","Error")) -> Pass | AO47: Discharge | AP47: BMP | AQ47: sfs | AR47: MicroFit/Biofet | AS47: 555 | AT47: 666 | AU47: 1000 | AV47: =IF(AU47>0,AU47,AT47) -> 1000 | AW47: =IF(OR(AND((AT47/AV47>$J$31),AT47/AV47<$K$31),AU47=0), "Injured vs uninjured", "Injured vs benchmark") -> Injured vs benchmark | AX47: =IF(AW47="Injured vs Uninjured", AS47/AT47,AS47/AV47) -> 0.555 | AY47: 0.95 | AZ47: =IF(AX47>=85%,"Pass",IF(AX47<85%,"Fail","Error")) -> Fail | BA47: =BA45 -> Injured | BB47: Uninjured | BC47: Benchmark | BD47: =IF(OR(AND((BB48/BC48>$J$31),BB48/BC48<$K$31),AV47=0), "Injured vs uninjured", "Injured vs benchmark") -> Injured vs uninjured | BE47: =IF(BD47="Injured vs Uninjured", BA48/BB48,BA48/BC48) -> 0.875 | BF47: =IF(BE47>=85%,"Pass",IF(AX47<85%,"Fail","Error")) -> Pass
F48: Kg | M48: =L47-M47 -> -0.5384615385 | O48: 65 | P48: 66 | Q48: =IF(E47="","Ignore",IF(K47="Injured vs Uninjured",J47,J47)) -> 70 | Y48: Joule | AF48: =AE47-AF47 -> -0.4230769231 | AH48: 67 | AI48: 80 | AJ48: =IF(X47="","Ignore",IF(AD47="Injured vs Uninjured",AC47,AC47)) -> 78 | AR48: Joule | AY48: =AX47-AY47 -> -0.395 | BA48: 777 | BB48: 888 | BC48: =IF(X39="Enter New Value","Ignore",IF(AW47="Injured vs Uninjured",AT47,AV47)) -> 1000
C49: =C47 -> Initial Eval | F49: MicroFit/Biofet | J49: =IF(I49>0,I49,H49) -> 0 | K49: =#REF! ->  | L49: =#REF! ->  | M49: 0.95 | O49: Injured | Q49: Uninjured | S49: =#REF! ->  | V49: =V47 -> Progress 1 | W49: =D39 -> External Rot_Peak F | X49: =E39 -> u | Y49: =F39 -> Goniometre | Z49: =O40 -> 21 | AA49: =P40 -> 22 | AB49: =J39 -> 25 | AC49: =IF(AB49>0,AB49,AA49) -> 25 | AD49: =IF(OR(AND((AA49/AC49>$J$31),AA49/AC49<$K$31),AB49=0), "Injured vs uninjured", "Injured vs benchmark") -> Injured vs uninjured | AE49: =IF(AD49="Injured vs uninjured", Z49/AA49,Z49/AC49) -> 0.9545454545 | AF49: =M39 -> 1 | AG49: =IF(AE49>=85%,"Pass",IF(AE49<85%,"Fail","Error")) -> Pass | AH49: =AH47 -> Injured | AI49: =AI47 -> Uninjured | AJ49: =AJ47 -> Benchmark | AK49: =IF(OR(AND((AI50/AJ50>$J$31),AI50/AJ50<$K$31),AC49=0), "Injured vs uninjured", "Injured vs benchmark") -> Injured vs uninjured | AL49: =IF(AK49="Injured vs Uninjured", AH50/AI50,AH50/AC49) -> 0.9545454545 | AM49: =IF(AL49>=85%,"Pass",IF(AL49<85%,"Fail","Error")) -> Pass | AO49: Progress 2 | AP49: =W39 -> GIRD_ | AQ49: =X39 -> Leg press | AR49: =Y39 -> Biodex | AS49: =AH40 -> 145 | AT49: =AI40 -> 178 | AU49: =AC39 -> 200 | AV49: =IF(AU49>0,AU49,AT49) -> 200 | AW49: =IF(OR(AND((AT49/AV49>$J$31),AT49/AV49<$K$31),AU49=0), "Injured vs uninjured", "Injured vs benchmark") -> Injured vs uninjured | AX49: =IF(AW49="Injured vs Uninjured", AS49/AT49,AS49/AV49) -> 0.8146067416 | AY49: =AF39 -> 1 | AZ49: =IF(AX49>=85%,"Pass",IF(AX49<85%,"Fail","Error")) -> Fail | BA49: =BA47 -> Injured | BB49: Uninjured | BC49: Benchmark | BD49: =IF(OR(AND((BB50/BC50>$J$31),BB50/BC50<$K$31),AV49=0), "Injured vs uninjured", "Injured vs benchmark") -> Injured vs benchmark | BE49: =IF(BD49="Injured vs Uninjured", BA50/BB50,BA50/BC50) -> 1 | BF49: =IF(BE49>=85%,"Pass",IF(AX49<85%,"Fail","Error")) -> Pass
F50: Joule | M50: =L49-M49 ->  | Y50: =F40 -> Degrees | AF50: =AE49-AF49 -> -0.04545454545 | AH50: =IF(AG49="pass",Z49,"Enter New Value") -> 21 | AI50: =IF(AG49="pass",AA49,"Enter New Value") -> 22 | AJ50: =IF(X49="","Ignore",IF(AD49="Injured vs Uninjured",AC49,AC49)) -> 25 | AR50: =Y40 -> Nm | AY50: =AX49-AY49 -> -0.1853932584 | BA50: 178 | BB50: 178 | BC50: =IF(X39="Enter New Value","Ignore",IF(AW49="Injured vs Uninjured",AT49,AV49)) -> 178
C51: =C49 -> Initial Eval | F51: MicroFit/Biofet | J51: =IF(I51>0,I51,H51) -> 0 | K51: =#REF! ->  | L51: =#REF! ->  | M51: 0.95 | O51: Injured | Q51: Uninjured | S51: =#REF! ->  | V51: =V49 -> Progress 1 | W51: =D41 -> Hamstring- Strenth End | X51: =E41 -> f | Y51: Goniometre | Z51: =O42 -> 27 | AA51: 29 | AB51: =J41 -> 30 | AC51: =IF(AB51>0,AB51,AA51) -> 30 | AD51: =IF(OR(AND((AA51/AC51>$J$31),AA51/AC51<$K$31),AB51=0), "Injured vs uninjured", "Injured vs benchmark") -> Injured vs uninjured | AE51: =IF(AD51="Injured vs uninjured", Z51/AA51,Z51/AC51) -> 0.9310344828 | AF51: =M41 -> 0.9 | AG51: =IF(AE51>=85%,"Pass",IF(AE51<85%,"Fail","Error")) -> Pass | AH51: =AH49 -> Injured | AI51: Uninjured | AJ51: Benchmark | AK51: =IF(OR(AND((AI52/AJ52>$J$31),AI52/AJ52<$K$31),AC51=0), "Injured vs uninjured", "Injured vs benchmark") -> Injured vs uninjured | AL51: =IF(AK51="Injured vs Uninjured", AH52/AI52,AH52/AC51) -> 0.9310344828 | AM51: =IF(AL51>=85%,"Pass",IF(AL51<85%,"Fail","Error")) -> Pass | AO51: Progress 2 | AP51: =W41 -> PGM- Strength end | AQ51: =X41 -> fh | AR51: Biodex | AS51: =AH42 -> 499 | AT51: =AI42 -> 810 | AU51: =AC41 -> 950 | AV51: =IF(AU51>0,AU51,AT51) -> 950 | AW51: =IF(OR(AND((AT51/AV51>$J$31),AT51/AV51<$K$31),AU51=0), "Injured vs uninjured", "Injured vs benchmark") -> Injured vs uninjured | AX51: =IF(AW51="Injured vs Uninjured", AS51/AT51,AS51/AV51) -> 0.6160493827 | AY51: =AF41 -> 1 | AZ51: =IF(AX51>=85%,"Pass",IF(AX51<85%,"Fail","Error")) -> Fail | BA51: =BA49 -> Injured | BB51: Uninjured | BC51: Benchmark | BD51: =IF(OR(AND((BB52/BC52>$J$31),BB52/BC52<$K$31),AV51=0), "Injured vs uninjured", "Injured vs benchmark") -> Injured vs benchmark | BE51: =IF(BD51="Injured vs Uninjured", BA52/BB52,BA52/BC52) -> 0.8617283951 | BF51: =IF(BE51>=85%,"Pass",IF(AX51<85%,"Fail","Error")) -> Pass
F52: Joule | M52: =L51-M51 ->  | R52: =56/78 -> 0.7179487179 | Y52: Degrees | AF52: =AE51-AF51 -> 0.03103448276 | AH52: =IF(AG51="pass",Z51,"Enter New Value") -> 27 | AI52: =IF(AG51="pass",AA51,"Enter New Value") -> 29 | AJ52: =IF(X51="","Ignore",IF(AD51="Injured vs Uninjured",AC51,AC51)) -> 30 | AR52: Kg | AY52: =AX51-AY51 -> -0.3839506173 | BA52: 698 | BB52: 900 | BC52: =IF(X39="Enter New Value","Ignore",IF(AW51="Injured vs Uninjured",AT51,AV51)) -> 810
C53: =C51 -> Initial Eval | F53: MicroFit/Biofet | J53: =IF(I53>0,I53,H53) -> 0 | K53: =#REF! ->  | L53: =#REF! ->  | M53: 0.95 | O53: Injured | Q53: Uninjured | S53: =#REF! ->  | V53: =V51 -> Progress 1 | W53: =D43 -> Quadriceps- PF | X53: =E43 -> g | Y53: MicroFit/Biofet | Z53: =O44 -> 45 | AA53: 67 | AB53: =J43 -> 70 | AC53: =IF(AB53>0,AB53,AA53) -> 70 | AD53: =IF(OR(AND((AA53/AC53>$J$31),AA53/AC53<$K$31),AB53=0), "Injured vs uninjured", "Injured vs benchmark") -> Injured vs uninjured | AE53: =IF(AD53="Injured vs uninjured", Z53/AA53,Z53/AC53) -> 0.671641791 | AF53: =M43 -> 0.9 | AG53: =IF(AE53>=85%,"Pass",IF(AE53<85%,"Fail","Error")) -> Fail | AH53: =AH51 -> Injured | AI53: Uninjured | AJ53: Benchmark | AK53: =IF(OR(AND((AI54/AJ54>$J$31),AI54/AJ54<$K$31),AC53=0), "Injured vs uninjured", "Injured vs benchmark") -> Injured vs benchmark | AL53: =IF(AK53="Injured vs Uninjured", AH54/AI54,AH54/AC53) -> 0.9285714286 | AM53: =IF(AL53>=85%,"Pass",IF(AL53<85%,"Fail","Error")) -> Pass | AO53: Progress 2 | AP53: =W43 -> Glut Max_ | AQ53: =X43 -> fg | AR53: DynoMo | AS53: =AH44 -> 75 | AT53: =AI44 -> 87 | AU53: =AC43 -> 100 | AV53: =IF(AU53>0,AU53,AT53) -> 100 | AW53: =IF(OR(AND((AT53/AV53>$J$31),AT53/AV53<$K$31),AU53=0), "Injured vs uninjured", "Injured vs benchmark") -> Injured vs uninjured | AX53: =IF(AW53="Injured vs Uninjured", AS53/AT53,AS53/AV53) -> 0.8620689655 | AY53: =AF43 -> 1 | AZ53: =IF(AX53>=85%,"Pass",IF(AX53<85%,"Fail","Error")) -> Pass | BA53: =BA51 -> Injured | BB53: Uninjured | BC53: Benchmark | BD53: =IF(OR(AND((BB54/BC54>$J$31),BB54/BC54<$K$31),AV53=0), "Injured vs uninjured", "Injured vs benchmark") -> Injured vs benchmark | BE53: =IF(BD53="Injured vs Uninjured", BA54/BB54,BA54/BC54) -> 0.8620689655 | BF53: =IF(BE53>=85%,"Pass",IF(AX53<85%,"Fail","Error")) -> Pass
F54: Joule | M54: =L53-M53 ->  | Y54: Joule | AF54: =AE53-AF53 -> -0.228358209 | AH54: 65 | AI54: 78 | AJ54: =IF(X53="","Ignore",IF(AD53="Injured vs Uninjured",AC53,AC53)) -> 70 | AR54: Joule | AY54: =AX53-AY53 -> -0.1379310345 | BA54: =IF(AZ53="Pass",AS53,"Enter New Value") -> 75 | BB54: 95 | BC54: =IF(X39="Enter New Value","Ignore",IF(AW53="Injured vs Uninjured",AT53,AV53)) -> 87
C55: =C53 -> Initial Eval | F55: MicroFit/Biofet | J55: =IF(I55>0,I55,H55) -> 0 | K55: =#REF! ->  | L55: =#REF! ->  | M55: 0.95 | O55: Injured | Q55: Uninjured | S55: =#REF! ->  | V55: =V53 -> Progress 1 | W55: =D45 -> Ankle_ ROM | X55: =E45 -> p | Y55: Step | Z55: =O46 -> 15 | AA55: 19 | AB55: =J45 -> 20 | AC55: =IF(AB55>0,AB55,AA55) -> 20 | AD55: =IF(OR(AND((AA55/AC55>$J$31),AA55/AC55<$K$31),AB55=0), "Injured vs uninjured", "Injured vs benchmark") -> Injured vs uninjured | AE55: =IF(AD55="Injured vs uninjured", Z55/AA55,Z55/AC55) -> 0.7894736842 | AF55: =M45 -> 1 | AG55: =IF(AE55>=85%,"Pass",IF(AE55<85%,"Fail","Error")) -> Fail | AH55: =AH53 -> Injured | AI55: Uninjured | AJ55: Benchmark | AK55: =IF(OR(AND((AI56/AJ56>$J$31),AI56/AJ56<$K$31),AC55=0), "Injured vs uninjured", "Injured vs benchmark") ->  | AL55: =IF(AK55="Injured vs Uninjured", AH56/AI56,AH56/AC55) ->  | AM55: =IF(AL55>=85%,"Pass",IF(AL55<85%,"Fail","Error")) ->  | AO55: Progress 2 | AP55: =W45 -> Hamstring- Strenth End | AQ55: =X45 -> xgf | AR55: MicroFit/Biofet | AS55: =AH46 -> 8 | AT55: =AI46 -> 9 | AU55: =AC45 -> 9 | AV55: =IF(AU55>0,AU55,AT55) -> 9 | AW55: =IF(OR(AND((AT55/AV55>$J$31),AT55/AV55<$K$31),AU55=0), "Injured vs uninjured", "Injured vs benchmark") -> Injured vs benchmark | AX55: =IF(AW55="Injured vs Uninjured", AS55/AT55,AS55/AV55) -> 0.8888888889 | AY55: =AF45 -> 1 | AZ55: =IF(AX55>=85%,"Pass",IF(AX55<85%,"Fail","Error")) -> Pass | BA55: =BA53 -> Injured | BB55: Uninjured | BC55: Benchmark | BD55: =IF(OR(AND((BB56/BC56>$J$31),BB56/BC56<$K$31),AV55=0), "Injured vs uninjured", "Injured vs benchmark") -> Injured vs benchmark | BE55: =IF(BD55="Injured vs Uninjured", BA56/BB56,BA56/BC56) -> 0.8888888889 | BF55: =IF(BE55>=85%,"Pass",IF(AX55<85%,"Fail","Error")) -> Pass
F56: Joule | M56: =L55-M55 ->  | Y56: Numeric value | AF56: =AE55-AF55 -> -0.2105263158 | AH56: =IF(AG55="pass",Z55,"Enter New Value") -> Enter New Value | AI56: =IF(AG55="pass",AA55,"Enter New Value") -> Enter New Value | AJ56: =IF(X55="","Ignore",IF(AD55="Injured vs Uninjured",AC55,AC55)) -> 20 | AR56: Joule | AY56: =AX55-AY55 -> -0.1111111111 | BA56: =IF(AZ55="Pass",AS55,"Enter New Value") -> 8 | BB56: =IF(AZ55="Pass",AT55,"Enter New Value") -> 9 | BC56: =IF(X39="Enter New Value","Ignore",IF(AW55="Injured vs Uninjured",AT55,AV55)) -> 9
C57: =C55 -> Initial Eval | F57: MicroFit/Biofet | J57: =IF(I57>0,I57,H57) -> 0 | K57: =#REF! ->  | L57: =#REF! ->  | M57: 0.95 | O57: Injured | Q57: Uninjured | S57: =#REF! ->  | V57: =V55 -> Progress 1 | W57: =D47 -> QASLS | X57: =E47 -> h | Y57: MicroFit/Biofet | Z57: =O48 -> 65 | AA57: =P48 -> 66 | AB57: =J47 -> 70 | AC57: =IF(AB57>0,AB57,AA57) -> 70 | AD57: =IF(OR(AND((AA57/AC57>$J$31),AA57/AC57<$K$31),AB57=0), "Injured vs uninjured", "Injured vs benchmark") -> Injured vs uninjured | AE57: =IF(AD57="Injured vs uninjured", Z57/AA57,Z57/AC57) -> 0.9848484848 | AF57: =M47 -> 1 | AG57: =IF(AE57>=85%,"Pass",IF(AE57<85%,"Fail","Error")) -> Pass | AH57: =AH55 -> Injured | AI57: Uninjured | AJ57: Benchmark | AK57: =IF(OR(AND((AI58/AJ58>$J$31),AI58/AJ58<$K$31),AC57=0), "Injured vs uninjured", "Injured vs benchmark") -> Injured vs benchmark | AL57: =IF(AK57="Injured vs Uninjured", AH58/AI58,AH58/AC57) -> 1.014285714 | AM57: =IF(AL57>=85%,"Pass",IF(AL57<85%,"Fail","Error")) -> Pass | AO57: Progress 2 | AP57: =W47 -> Nec rot | AQ57: =X47 -> aaa | AR57: MicroFit/Biofet | AS57: =AH48 -> 67 | AT57: =AI48 -> 80 | AU57: =AC47 -> 78 | AV57: =IF(AU57>0,AU57,AT57) -> 78 | AW57: =IF(OR(AND((AT57/AV57>$J$31),AT57/AV57<$K$31),AU57=0), "Injured vs uninjured", "Injured vs benchmark") -> Injured vs benchmark | AX57: =IF(AW57="Injured vs Uninjured", AS57/AT57,AS57/AV57) -> 0.858974359 | AY57: =AF47 -> 1 | AZ57: =IF(AX57>=85%,"Pass",IF(AX57<85%,"Fail","Error")) -> Pass | BA57: =BA55 -> Injured | BB57: Uninjured | BC57: Benchmark | BD57: =IF(OR(AND((BB58/BC58>$J$31),BB58/BC58<$K$31),AV57=0), "Injured vs uninjured", "Injured vs benchmark") -> Injured vs benchmark | BE57: =IF(BD57="Injured vs Uninjured", BA58/BB58,BA58/BC58) -> 0.858974359 | BF57: =IF(BE57>=85%,"Pass",IF(AX57<85%,"Fail","Error")) -> Pass
F58: Joule | M58: =L57-M57 ->  | Y58: Kg | AF58: =AE57-AF57 -> -0.01515151515 | AH58: 71 | AI58: 80 | AJ58: =IF(X57="","Ignore",IF(AD57="Injured vs Uninjured",AC57,AC57)) -> 70 | AR58: Joule | AY58: =AX57-AY57 -> -0.141025641 | BA58: =IF(AZ57="Pass",AS57,"Enter New Value") -> 67 | BB58: =IF(AZ57="Pass",AT57,"Enter New Value") -> 80 | BC58: =IF(X39="Enter New Value","Ignore",IF(AW57="Injured vs Uninjured",AT57,AV57)) -> 78
E59: j | AO59: =AO57 -> Progress 2 | AP59: =W49 -> External Rot_Peak F | AQ59: =X49 -> u | AR59: Goniometre | AS59: =AH50 -> 21 | AT59: =AI50 -> 22 | AU59: =AB49 -> 25 | AV59: =IF(AU59>0,AU59,AT59) -> 25 | AW59: =IF(OR(AND((AT59/AV59>$J$31),AT59/AV59<$K$31),AU59=0), "Injured vs uninjured", "Injured vs benchmark") -> Injured vs uninjured | AX59: =IF(AW59="Injured vs Uninjured", AS59/AT59,AS59/AV59) -> 0.9545454545 | AY59: =M39 -> 1 | AZ59: =IF(AX59>=85%,"Pass",IF(AX59<85%,"Fail","Error")) -> Pass | BA59: =BA57 -> Injured | BB59: Uninjured | BC59: Benchmark | BD59: =IF(OR(AND((BB60/BC60>$J$31),BB60/BC60<$K$31),AV59=0), "Injured vs uninjured", "Injured vs benchmark") -> Injured vs benchmark | BE59: =IF(BD59="Injured vs Uninjured", BA60/BB60,BA60/BC60) -> 0.9545454545 | BF59: =IF(BE59>=85%,"Pass",IF(AX59<85%,"Fail","Error")) -> Pass
AR60: Degrees | AY60: =AX59-AY59 -> -0.04545454545 | BA60: =IF(AZ59="Pass",AS59,"Enter New Value") -> 21 | BB60: =IF(AZ59="Pass",AT59,"Enter New Value") -> 22 | BC60: =IF(X39="Enter New Value","Ignore",IF(AW59="Injured vs Uninjured",AT59,AV59)) -> 22
AO61: =AO59 -> Progress 2 | AP61: =W51 -> Hamstring- Strenth End | AQ61: =X51 -> f | AR61: Goniometre | AS61: =AH52 -> 27 | AT61: =AI52 -> 29 | AU61: =AB51 -> 30 | AV61: =IF(AU61>0,AU61,AT61) -> 30 | AW61: =IF(OR(AND((AT61/AV61>$J$31),AT61/AV61<$K$31),AU61=0), "Injured vs uninjured", "Injured vs benchmark") -> Injured vs uninjured | AX61: 0.9310344828 | AY61: =M41 -> 0.9 | AZ61: =IF(AX61>=85%,"Pass",IF(AX61<85%,"Fail","Error")) -> Pass | BA61: =BA59 -> Injured | BB61: Uninjured | BC61: Benchmark | BD61: =IF(OR(AND((BB62/BC62>$J$31),BB62/BC62<$K$31),AV61=0), "Injured vs uninjured", "Injured vs benchmark") -> Injured vs benchmark | BE61: =IF(BD61="Injured vs Uninjured", BA62/BB62,BA62/BC62) -> 0.9310344828 | BF61: =IF(BE61>=85%,"Pass",IF(AX61<85%,"Fail","Error")) -> Pass
AR62: Degrees | AY62: =AX61-AY61 -> 0.03103448276 | BA62: =IF(AZ61="Pass",AS61,"Enter New Value") -> 27 | BB62: =IF(AZ61="Pass",AT61,"Enter New Value") -> 29 | BC62: =IF(X39="Enter New Value","Ignore",IF(AW61="Injured vs Uninjured",AT61,AV61)) -> 29
AO63: =AO61 -> Progress 2 | AP63: =W53 -> Quadriceps- PF | AQ63: =X53 -> g | AR63: MicroFit/Biofet | AS63: =AH54 -> 65 | AT63: 78 | AU63: =AB53 -> 70 | AV63: =IF(AU63>0,AU63,AT63) -> 70 | AW63: =IF(OR(AND((AT63/AV63>$J$31),AT63/AV63<$K$31),AU63=0), "Injured vs uninjured", "Injured vs benchmark") -> Injured vs benchmark | AX63: =IF(AW63="Injured vs Uninjured", AS63/AT63,AS63/AV63) -> 0.9285714286 | AY63: =M43 -> 0.9 | AZ63: =IF(AX63>=85%,"Pass",IF(AX63<85%,"Fail","Error")) -> Pass | BA63: =BA61 -> Injured | BB63: Uninjured | BC63: Benchmark | BD63: =IF(OR(AND((BB64/BC64>$J$31),BB64/BC64<$K$31),AV63=0), "Injured vs uninjured", "Injured vs benchmark") -> Injured vs benchmark | BE63: =IF(BD63="Injured vs Uninjured", BA64/BB64,BA64/BC64) -> 0.9285714286 | BF63: =IF(BE63>=85%,"Pass",IF(AX63<85%,"Fail","Error")) -> Pass
AR64: Joule | AY64: =AX63-AY63 -> 0.02857142857 | BA64: =IF(AZ63="Pass",AS63,"Enter New Value") -> 65 | BB64: =IF(AZ63="Pass",AT63,"Enter New Value") -> 78 | BC64: =IF(X39="Enter New Value","Ignore",IF(AW63="Injured vs Uninjured",AT63,AV63)) -> 70
AO65: =AO63 -> Progress 2 | AP65: =W55 -> Ankle_ ROM | AQ65: =X55 -> p | AR65: Step | AS65: =AH56 -> Enter New Value | AT65: Enter New Value | AU65: =AB55 -> 20 | AV65: =IF(AU65>0,AU65,AT65) -> 20 | AW65: =IF(OR(AND((AT65/AV65>$J$31),AT65/AV65<$K$31),AU65=0), "Injured vs uninjured", "Injured vs benchmark") ->  | AY65: =M45 -> 1 | AZ65: =IF(AX65>=85%,"Pass",IF(AX65<85%,"Fail","Error")) ->  | BA65: =BA63 -> Injured | BB65: Uninjured | BC65: Benchmark | BD65: =IF(OR(AND((BB66/BC66>$J$31),BB66/BC66<$K$31),AV65=0), "Injured vs uninjured", "Injured vs benchmark") ->  | BE65: =IF(BD65="Injured vs Uninjured", BA66/BB66,BA66/BC66) ->  | BF65: =IF(BE65>=85%,"Pass",IF(AX65<85%,"Fail","Error")) -> 
AR66: Numeric value | AY66: =AX65-AY65 ->  | BA66: =IF(AZ65="pass",AS65,"Enter New Value") ->  | BB66: =IF(AZ65="pass",AT65,"Enter New Value") ->  | BC66: =IF(X39="Enter New Value","Ignore",IF(AW65="Injured vs Uninjured",AT65,AV65)) -> 
AO67: =AO65 -> Progress 2 | AP67: =W57 -> QASLS | AQ67: =X57 -> h | AR67: MicroFit/Biofet | AS67: =AH58 -> 71 | AT67: 80 | AU67: =AB57 -> 70 | AV67: =IF(AU67>0,AU67,AT67) -> 70 | AW67: =IF(OR(AND((AT67/AV67>$J$31),AT67/AV67<$K$31),AU67=0), "Injured vs uninjured", "Injured vs benchmark") -> Injured vs benchmark | AX67: 1.014285714 | AY67: =M47 -> 1 | AZ67: =IF(AX67>=85%,"Pass",IF(AX67<85%,"Fail","Error")) -> Pass | BA67: =BA65 -> Injured | BB67: Uninjured | BC67: Benchmark | BD67: =IF(OR(AND((BB68/BC68>$J$31),BB68/BC68<$K$31),AV67=0), "Injured vs uninjured", "Injured vs benchmark") -> Injured vs benchmark | BE67: =IF(BD67="Injured vs Uninjured", BA68/BB68,BA68/BC68) -> 1.014285714 | BF67: =IF(BE67>=85%,"Pass",IF(AX67<85%,"Fail","Error")) -> Pass
AR68: Kg | AY68: =AX67-AY67 -> 0.01428571429 | BA68: =IF(AZ67="Pass",AS67,"Enter New Value") -> 71 | BB68: =IF(AZ67="Pass",AT67,"Enter New Value") -> 80 | BC68: =IF(X39="Enter New Value","Ignore",IF(AW67="Injured vs Uninjured",AT67,AV67)) -> 70
A71: Initial Eval | C71: Initial | D71: Initial | E71: Initial | F71: Initial | G71: Progress 1
B72: Performance Based Outcomes | C72: =K37 -> Comparisons | D72: =L37 -> Difference | E72: Target | F72: Performance deficit | H72: Performance Based Outcomes | I72: Comparison | J72: Difference | K72: Target | L72: Performance Deficit | M72: Progress | N72: Discharge | O72: =H72 -> Performance Based Outcomes | P72: Comparison | Q72: Diff after Interv | R72: Target | S72: Performance Deficit | T72: Progress | U72: =N72 -> Discharge | V72: Performance Based Outcomes | W72: Comparison | X72: Diff after Interv | Y72: Target | Z72: Performance Deficit | AA72: Progress
A73: Column1 | B73: Column2 | C73: Column3 | D73: Column4 | E73: Column5 | F73: Column6 | G73: Column7 | H73: Column8 | I73: Column9 | J73: Column10 | K73: Column11 | L73: Column12 | M73: Column13 | N73: Column14 | O73: Column15 | P73: Column16 | Q73: Column17 | R73: Column18 | S73: Column19 | T73: Column20 | U73: =N74 -> Initial Eval | V73: =O74 -> External Rot_Peak F | W73: =BD59 -> Injured vs benchmark | X73: =BE59 -> 0.9545454545 | Y73: =R74 -> 1 | Z73: =X73-Y73 -> -0.04545454545 | AA73: =X73-Q74 -> 0
A74: =C39 -> Initial Eval | B74: =D39 -> External Rot_Peak F | C74: =K39 -> Injured vs benchmark | D74: =L39 -> 0.48 | E74: =M39 -> 1 | F74: =E74-D74 -> 0.52 | G74: =A74 -> Initial Eval | H74: =B74 -> External Rot_Peak F | I74: =R39 -> Injured vs uninjured | J74: =S39 -> 0.9545454545 | K74: =E74 -> 1 | L74: =J74-K74 -> -0.04545454545 | M74: =J74-D74 -> 0.4745454545 | N74: Initial Eval | O74: External Rot_Peak F | P74: Injured vs uninjured | Q74: =AL49 -> 0.9545454545 | R74: 1 | S74: =Q74-R74 -> -0.04545454545 | T74: =Q74-J74 -> 0 | U74: Initial Eval | V74: Hamstring- Strenth End | W74: =BD61 -> Injured vs benchmark | X74: =BE61 -> 0.9310344828 | Y74: 0.9 | Z74: =X74-Y74 -> 0.03103448276 | AA74: =X74-Q75 -> 0
A75: =C41 -> Initial Eval | B75: =D41 -> Hamstring- Strenth End | C75: =K41 -> Injured vs benchmark | D75: =L41 -> 0.6666666667 | E75: =M41 -> 0.9 | F75: =E75-D75 -> 0.2333333333 | G75: Initial Eval | H75: =B75 -> Hamstring- Strenth End | I75: =R41 -> Injured vs uninjured | J75: =S41 -> 0.9310344828 | K75: =E75 -> 0.9 | L75: =J75-K75 -> 0.03103448276 | M75: 0.2643678161 | N75: Initial Eval | O75: Hamstring- Strenth End | P75: =AK51 -> Injured vs uninjured | Q75: =AL51 -> 0.9310344828 | R75: 0.9 | S75: =Q75-R75 -> 0.03103448276 | T75: =Q75-J75 -> 0 | U75: Initial Eval | V75: Quadriceps- PF | W75: =BD63 -> Injured vs benchmark | X75: =BE63 -> 0.9285714286 | Y75: 0.9 | Z75: 0.02857142857 | AA75: =X75-Q76 -> 0
A76: =C43 -> Initial Eval | B76: =D43 -> Quadriceps- PF | C76: =K43 -> Injured vs uninjured | D76: =L43 -> 0.5714285714 | E76: =M43 -> 0.9 | F76: 0.3285714286 | G76: Initial Eval | H76: =B76 -> Quadriceps- PF | I76: =R43 -> Injured vs uninjured | J76: =S43 -> 0.671641791 | K76: =E76 -> 0.9 | L76: -0.228358209 | M76: 0.1002132196 | N76: Initial Eval | O76: Quadriceps- PF | P76: =AK53 -> Injured vs benchmark | Q76: =AL53 -> 0.9285714286 | R76: 0.9 | S76: 0.02857142857 | T76: 0.2569296375 | U76: Initial Eval | V76: Ankle_ ROM | W76: =BD65 ->  | X76: =BE65 ->  | Y76: 1 | AA76: =X76-Q77 -> 
A77: =C45 -> Initial Eval | B77: =D45 -> Ankle_ ROM | C77: =K45 -> Injured vs uninjured | D77: =L45 -> 0.5 | E77: =M45 -> 1 | F77: 0.5 | G77: Initial Eval | H77: =B77 -> Ankle_ ROM | I77: =R45 -> Injured vs uninjured | J77: =S45 -> 0.7894736842 | K77: =E77 -> 1 | L77: -0.2105263158 | M77: 0.2894736842 | N77: Initial Eval | O77: Ankle_ ROM | P77: =AK55 ->  | Q77: =AL55 ->  | R77: 1 | U77: Initial Eval | V77: QASLS | W77: =BD67 -> Injured vs benchmark | X77: =BE67 -> 1.014285714 | Y77: 1 | Z77: 0.01428571429 | AA77: =X77-Q78 -> 0
A78: =C47 -> Initial Eval | B78: =D47 -> QASLS | C78: =K47 -> Injured vs uninjured | D78: =L47 -> 0.4615384615 | E78: =M47 -> 1 | F78: 0.5384615385 | G78: Initial Eval | H78: =B78 -> QASLS | I78: =R47 -> Injured vs uninjured | J78: =S47 -> 0.9848484848 | K78: =E78 -> 1 | L78: -0.01515151515 | M78: 0.5233100233 | N78: Initial Eval | O78: QASLS | P78: =AK57 -> Injured vs benchmark | Q78: =AL57 -> 1.014285714 | R78: 1 | S78: 0.01428571429 | T78: 0.02943722944
A79: =V39 -> Progress 1 | B79: =W39 -> GIRD_ | C79: =AD39 -> Injured vs benchmark | D79: =AE39 -> 0.625 | E79: =AF39 -> 1 | F79: 0.375 | G79: =A79 -> Progress 1 | H79: GIRD_ | I79: =AK39 -> Injured vs uninjured | J79: =AL39 -> 0.8146067416 | K79: =AF39 -> 1 | L79: -0.1853932584 | M79: 0.1896067416 | N79: =AO49 -> Progress 2 | O79: =AP49 -> GIRD_ | P79: =BD49 -> Injured vs benchmark | Q79: =BE49 -> 1 | R79: =K79 -> 1 | S79: 0 | T79: =Q79-J79 -> 0.1853932584
A80: =V41 -> Progress 1 | B80: =W41 -> PGM- Strength end | C80: =AD41 -> Injured vs benchmark | D80: =AE41 -> 0.4210526316 | E80: =AF41 -> 1 | F80: 0.5789473684 | G80: Progress 1 | H80: PGM- Strength end | I80: =AK41 -> Injured vs uninjured | J80: =AL41 -> 0.6160493827 | K80: =AF41 -> 1 | L80: -0.3839506173 | M80: =J80-D80 -> 0.1949967511 | N80: =AO51 -> Progress 2 | O80: =AP51 -> PGM- Strength end | P80: =BD51 -> Injured vs benchmark | Q80: =BE51 -> 0.8617283951 | R80: =K80 -> 1 | S80: -0.1382716049 | T80: =Q80-J80 -> 0.2456790123
A81: =V43 -> Progress 1 | B81: =W43 -> Glut Max_ | C81: =AD43 -> Injured vs uninjured | D81: =AE43 -> 0.6 | E81: =AF43 -> 1 | F81: 0.4 | G81: Progress 1 | H81: Glut Max_ | I81: =AK43 -> Injured vs uninjured | J81: =AL43 -> 0.8620689655 | K81: =AF43 -> 1 | L81: -0.1379310345 | M81: 0.2620689655 | N81: =AO53 -> Progress 2 | O81: =AP53 -> Glut Max_ | P81: =BD53 -> Injured vs benchmark | Q81: =BE53 -> 0.8620689655 | R81: 1 | S81: -0.1379310345 | T81: 0
A82: =V45 -> Progress 1 | B82: =W45 -> Hamstring- Strenth End | C82: =AD45 -> Injured vs benchmark | D82: =AE45 -> 0.5555555556 | E82: =AF45 -> 1 | F82: 0.4444444444 | G82: Progress 1 | H82: Hamstring- Strenth End | I82: =AK45 -> Injured vs benchmark | J82: =AL45 -> 0.8888888889 | K82: =AF45 -> 1 | L82: -0.1111111111 | M82: 0.3333333333 | N82: =AO55 -> Progress 2 | O82: =AP55 -> Hamstring- Strenth End | P82: =BD55 -> Injured vs benchmark | Q82: =BE55 -> 0.8888888889 | R82: 1 | S82: -0.1111111111 | T82: 0
A83: =V47 -> Progress 1 | B83: =W47 -> Nec rot | C83: =AD47 -> Injured vs uninjured | D83: =AE47 -> 0.5769230769 | E83: =AF47 -> 1 | F83: 0.4230769231 | G83: Progress 1 | H83: Nec rot | I83: =AK47 -> Injured vs benchmark | J83: =AL47 -> 0.858974359 | K83: =AF47 -> 1 | L83: -0.141025641 | M83: 0.2820512821 | N83: =AO57 -> Progress 2 | O83: =AP57 -> Nec rot | P83: =BD57 -> Injured vs benchmark | Q83: =BE57 -> 0.858974359 | R83: 1 | S83: -0.141025641 | T83: 0
A84: =AO39 -> Discharge | B84: =AP39 -> RSI | C84: =AW39 -> Injured vs benchmark | D84: =AX39 -> 0.5 | E84: =AY39 -> 1 | F84: =E84-D84 -> 0.5 | G84: =A84 -> Discharge | H84: =B84 -> RSI | I84: =BD39 -> Injured vs uninjured | J84: =BE39 -> 0.9 | K84: =E84 -> 1 | L84: =K84-J84 -> 0.1 | M84: =J84-D84 -> 0.4
A85: =AO41 -> Discharge | B85: =AP41 -> DSI | C85: =AW41 -> Injured vs benchmark | D85: =AX41 -> 0.375 | E85: =AY41 -> 0.95 | F85: =E85-D85 -> 0.575 | G85: Discharge | H85: DSI | I85: =BD41 -> Injured vs benchmark | J85: =BE41 -> 0.5583333333 | K85: 0.95 | L85: =K85-J85 -> 0.3916666667 | M85: =J85-D85 -> 0.1833333333
A86: =AO43 -> Discharge | B86: =AP43 -> PSI | C86: =AW43 -> Injured vs benchmark | D86: =AX43 -> 0.67 | E86: =AY43 -> 0.95 | F86: =E86-D86 -> 0.28 | G86: Discharge | H86: PSI | I86: =BD43 -> Injured vs benchmark | J86: =BE43 -> 0.89 | K86: 0.95 | L86: 0.06 | M86: 0.22
A87: =AO45 -> Discharge | B87: =AP45 -> LSI | C87: =AW45 -> Injured vs benchmark | D87: =AX45 -> 0.5 | E87: =AY45 -> 0.95 | F87: =E87-D87 -> 0.45 | G87: Discharge | H87: LSI | I87: =BD45 -> Injured vs uninjured | J87: =BE45 -> 0.8888888889 | K87: 0.95 | L87: 0.06111111111 | M87: 0.3888888889
A88: =AO47 -> Discharge | B88: =AP47 -> BMP | C88: =AW47 -> Injured vs benchmark | D88: =AX47 -> 0.555 | E88: =AY47 -> 0.95 | F88: =E88-D88 -> 0.395 | G88: Discharge | H88: BMP | I88: =BD47 -> Injured vs uninjured | J88: =BE47 -> 0.875 | K88: 0.95 | L88: 0.075 | M88: 0.32
M100: Unjured(Improvement
J107: Progress | K107: Progress
J108: =D169 -> Uninjured | K108: =E169 -> Bench mark | L108: Injured(Improvement
J109: =P40 -> 22 | K109: =Q40 -> 25
J110: =P42 -> 29 | K110: =Q42 -> 30
J111: =P44 -> 67 | K111: =Q44 -> 70
J112: =P46 -> 19 | K112: =Q46 -> 20
J113: =P48 -> 66 | K113: =Q48 -> 70
A168: =A71 -> Initial Eval | B168: =B71 -> 0 | C168: Initial | D168: Initial | E168: Initial | G168: Progress | H168: =B168 -> 0 | I168: Progress
A169: =A72 -> 0 | B169: =B72 -> Performance Based Outcomes | C169: =G37 -> Injured | D169: =H37 -> Uninjured | E169: =I37 -> Bench mark | G169: =A169 -> 0 | H169: Performance Based Outcomes | I169: =C169 -> Injured
A170: =A74 -> Initial Eval | B170: External Rot_Peak F | C170: =G39 -> 12 | D170: =H39 -> 15 | E170: =I39 -> 25 | G170: Progress | H170: External Rot_Peak F | I170: =O40 -> 21
A171: Initial Eval | B171: Hamstring- Strenth End | C171: =G41 -> 20 | D171: =H41 -> 20 | E171: =I41 -> 30 | H171: Hamstring- Strenth End | I171: =O42 -> 27
A172: Initial Eval | B172: Quadriceps- PF | C172: =G43 -> 40 | D172: =H43 -> 70 | E172: =I43 -> 0 | H172: Quadriceps- PF | I172: =O44 -> 45
A173: Initial Eval | B173: Ankle_ ROM | C173: =G45 -> 10 | D173: =H45 -> 20 | E173: =I45 -> 0 | H173: Ankle_ ROM | I173: =O46 -> 15
A174: Initial Eval | B174: QASLS | C174: =G47 -> 30 | D174: =H47 -> 65 | E174: =I47 -> 70 | H174: QASLS | I174: =O48 -> 65

Sheet Input Sheet
B5: Translate research into private practice
A6: Intial assessment | N6: Post intervention testing 1 | Z6: Post treatrment test 2 | AO6: Patient Demographics
A7: Patient Demographics | N7: Patient Demographics | Z7: Patient Demographics | AO7: Initial assesment | AQ7: 2 | AS7: Clinical summary
A8: Initial assesment | C8: 1 | E8: Clinical summary | N8: Initial assesment | P8: 2 | R8: History: | S8: =F9 -> Jan was operated on the 12the of April, and with ACLR | Z8: =A8 -> Initial assesment | AB8: =C8 -> 1 | AD8: =E9 -> History: | AE8: =F9 -> Jan was operated on the 12the of April, and with ACLR | AO8: Date: | AQ8: 2022-06-05 | AS8: =AD8 -> History: | AT8: =AE8 -> Jan was operated on the 12the of April, and with ACLR
A9: Date: | C9: 2022-06-05 | E9: History: | F9: Jan was operated on the 12the of April, and with ACLR | N9: Date: | Z9: =A9 -> Date: | AO9: Name & Surname: | AQ9: Koos | AS9: =AD10 -> Current Progress
A10: Name & Surname: | C10: Koos | N10: Name & Surname: | P10: =C10 -> Koos | R10: Current Progress | Z10: =A10 -> Name & Surname: | AB10: Koos | AD10: Current Progress | AO10: Field | AQ10: Orthopeadic | AS10: Clinical symptoms: | AT10: =AE11 -> Patella femoral pain
A11: Field | C11: Orthopeadic | E11: Clinical symptoms: | F11: Patella femoral pain | N11: Field | P11: Orthopeadic | R11: Clinical symptoms: | S11: =F11 -> Patella femoral pain | Z11: =A11 -> Field | AB11: Orthopeadic | AD11: =E11 -> Clinical symptoms: | AE11: =S11 -> Patella femoral pain | AO11: Diagnose: | AQ11: Primary | AR11: Secondary | AS11: Current intervention: | AT11: =AE12 -> Exercise rehabilitation
A12: Diagnose: | C12: Primary | D12: Secondary | E12: Current intervention: | F12: Exercise rehabilitation | N12: Diagnose: | P12: Primary | Q12: Secondary | R12: Current intervention: | S12: =F12 -> Exercise rehabilitation | Z12: =A12 -> Diagnose: | AB12: Primary | AC12: =D12 -> Secondary | AD12: =E12 -> Current intervention: | AE12: =S12 -> Exercise rehabilitation | AQ12: ACLR | AR12: nslbp | AS12: Clinician Involve: | AT12: Marinelle(Biokineticist)
C13: ACLR | D13: NSLBP | E13: Clinician Involve: | F13: Marinelle(Biokineticist) | P13: =C13 -> ACLR | Q13: =D13 -> NSLBP | R13: Clinician Involve: | S13: Marinelle(Biokineticist) | AB13: ACLR | AC13: =D13 -> NSLBP | AD13: =E13 -> Clinician Involve: | AE13: Marinelle(Biokineticist) | AO13: Months/weeks after injury | AQ13: 5 months | AS13: Primary treatment | AT13: Exercise rehabilitation
A14: Months/weeks after injury | C14: 5 months | E14: Projected plan: | F14: Exercise rehabilitation | N14: Months/weeks after injury | P14: =C14 -> 5 months | R14: Primary treatment | S14: Exercise rehabilitation | Z14: =A14 -> Months/weeks after injury | AB14: 5 months | AD14: Primary treatment | AE14: Exercise rehabilitation | AO14: Patient Goal | AQ14: Performance | AS14: Timeframe: | AT14: 3 months
A15: Patient Goal | C15: Performance | E15: Timeframe: | F15: 3 months | N15: Patient Goal | P15: =C15 -> Performance | R15: Timeframe: | S15: 3 months | Z15: =A15 -> Patient Goal | AB15: Performance | AD15: =E15 -> Timeframe: | AE15: 3 months | AO15: Patient Reported Outcomes Measures (PROM)
A16: Patient Reported Outcomes Measures (PROM) | N16: Patient Reported Outcomes Measures (PROM) | Z16: Patient Reported Outcomes Measures (PROM) | AO16: Subjective Scoring Sheet | AQ16: Prevouis Score | AR16: Current Score | AS16: Bench mark | AT16: Comments
A17: Subjective Scoring Sheet | C17: Current score | D17: Bench mark | E17: Comments | N17: =A17 -> Subjective Scoring Sheet | P17: Initial Ass | Q17: Current Score | R17: Bench mark | S17: Comments | Z17: Subjective Scoring Sheet | AB17: Current Score | AC17: Initial Ass | AD17: Bench mark | AE17: Comments | AO17: Discharge | AP17: =AA18 -> MTSS | AQ17: 0.87 | AS17: =D18 -> 0 | AT17: =AE18 -> Graph 1 summarizes the subjective improvement of(….%) over the exercise rehabilitation period. Currently, Mr. Potgieter achieved 66% (Benchmark 89%)
A18: Initial Eval | B18: MTSS | E18: Graph 1 represents the subjective results(…%) of ….......An estamted benchmark(..) were selected based on his end goals. | N18: Post Intervetion 1 | O18: =B18 -> MTSS | P18: 0 | Q18: 0.67 | R18: =D18 -> 0 | S18: Graph 1 summarizes the subjective improvement of(….%) over the exercise rehabilitation period. Currently, Mr. Potgieter achieved 66% (Benchmark 89%) | Z18: Post Interv 2 | AA18: =B18 -> MTSS | AB18: 0.87 | AC18: =C18 -> 0 | AD18: 0 | AE18: =S18 -> Graph 1 summarizes the subjective improvement of(….%) over the exercise rehabilitation period. Currently, Mr. Potgieter achieved 66% (Benchmark 89%) | AO18: Discharge | AP18: IKDC | AQ18: 0.88 | AS18: =D19 -> 0 | AT18: =AE19 -> Graph 2 summarizes the subjective improvement of(….%) over the exercise rehabilitation period. Currently, Mr. Potgieter achieved 66% (Benchmark 89%)
A19: Initial Eval | B19: IKDC | E19: Graph 2 represents the subjective results(…%) of ….......An estamted benchmark(..) were selected based on his end goals. | N19: Post Intervetion 1 | O19: IKDC | P19: 0 | Q19: 0.6 | R19: 0 | S19: Graph 2 summarizes the subjective improvement of(….%) over the exercise rehabilitation period. Currently, Mr. Potgieter achieved 66% (Benchmark 89%) | Z19: Post Interv 2 | AA19: =B19 -> IKDC | AB19: 0.88 | AC19: 0 | AD19: 0 | AE19: Graph 2 summarizes the subjective improvement of(….%) over the exercise rehabilitation period. Currently, Mr. Potgieter achieved 66% (Benchmark 89%) | AO19: Discharge | AP19: Hagos | AQ19: 0.8 | AS19: =D20 -> 0 | AT19: Graph 3 summarizes the subjective improvement of (….%) over the exercise rehabilitation period. Currently, Mr. Potgieter achieved 66% (Benchmark 89%)
A20: Initial Eval | B20: Hagos | E20: Graph 3 represents the subjective results(…%) of ….......An estamted benchmark(..) were selected based on his end goals. | N20: Post Intervetion 1 | O20: Hagos | P20: 0 | Q20: 0.76 | R20: 0 | S20: Graph 3 summarizes the subjective improvement of (….%) over the exercise rehabilitation period. Currently, Mr. Potgieter achieved 66% (Benchmark 89%) | Z20: Post Interv 2 | AA20: =B20 -> Hagos | AB20: 0.8 | AC20: 0 | AD20: 0 | AE20: Graph 3 summarizes the subjective improvement of (….%) over the exercise rehabilitation period. Currently, Mr. Potgieter achieved 66% (Benchmark 89%) | AO20: Patient Reported VAS Pain
A21: Patient Reported VAS Pain | N21: Patient Reported VAS Pain | Z21: Patient Reported VAS Pain | AO21: Pain Outcome measure during activity or rest | AQ21: Location/area/referred | AS21: Prevouis | AU21: Current | AW21: Comments
A22: Pain Outcome measure during activity or rest | C22: Location/area/referred | E22: Current | G22: Comments | N22: Pain Outcome measure during activity or rest | P22: Location/area/referred | R22: Initial ass(Pain) | T22: Current Status | V22: Comments | Z22: Pain Outcome measure during activity or rest | AB22: Location/area/referred | AD22: Prevouis Score | AF22: Current | AH22: Comments | AS22: Involved (/10) | AT22: Uninvolved(/10) | AU22: Involved (/10) | AV22: Uninvolved(/10)
E23: Involved (/10) | F23: Uninvolved(/10) | R23: Involved (/10) | S23: Uninvolved(/10) | T23: Involve | U23: Uninvolve | AD23: Involved (/10) | AE23: Uninvolved(/10) | AF23: Involved (/10) | AG23: Uninvolved(/10) | AO23: Initial | AP23: =AA24 -> Running @ 10 min | AQ23: =AB24 -> Patellar tendon | AS23: =AD24 -> 3 | AT23: 0 | AU23: 1 | AV23: 0 | AW23: =AH24 -> Graph 1 indicates a decline(-5) in patella tendon pain to a 2/10 while running 10 minutes.
A24: Initial | B24: Running @ 10 min | C24: Patellar tendon | F24: 0 | G24: Graph 1 indicates a 5 in patella tendon pain while running 10 minutes | N24: Post Intv 1 | O24: =B24 -> Running @ 10 min | P24: =C24 -> Patellar tendon | R24: =E24 -> 0 | S24: 0 | T24: 3 | U24: 0 | V24: Graph 1 indicates a decline(-5) in patella tendon pain to a 2/10 while running 10 minutes. | Z24: Post Interv 2 | AA24: =B24 -> Running @ 10 min | AB24: =C24 -> Patellar tendon | AD24: =T24 -> 3 | AE24: 0 | AF24: 1 | AG24: 0 | AH24: =V24 -> Graph 1 indicates a decline(-5) in patella tendon pain to a 2/10 while running 10 minutes. | AO24: Initial | AP24: =AA25 -> One leg squad | AQ24: =AB25 -> Patellar tendon | AS24: =AD25 -> 2 | AT24: 0 | AU24: 1 | AV24: 0 | AW24: =AH25 -> Graph 2 indicates a decline(-6) in patella tendon pain to a 2/10 while doing squad manoeuver
A25: Initial | B25: One leg squad | C25: Patellar tendon | F25: 0 | G25: Graph 2 indicates a 4 in patella tendon pain while doing a single leg squad. | N25: Post Intv 1 | O25: One leg squad | P25: Patellar tendon | R25: 0 | S25: 0 | T25: 2 | U25: 0 | V25: Graph 2 indicates a decline(-6) in patella tendon pain to a 2/10 while doing squad manoeuver | Z25: Post Interv 2 | AA25: =B25 -> One leg squad | AB25: =C25 -> Patellar tendon | AD25: =T25 -> 2 | AE25: 0 | AF25: 1 | AG25: 0 | AH25: =V25 -> Graph 2 indicates a decline(-6) in patella tendon pain to a 2/10 while doing squad manoeuver
A28: Start at INITIAL for FIRST ASSESSMENT
N29: 0.8
I31: Factor | J31: 0.9 | K31: 1
A32: Move to Progress 1 if not first assessment ----> --------------------->---------------------->------------- | V32: Move to progress 2 if progression made for final evaluation ---->-------------->------------->
A36: INITIAL | C36: Performance Based Outcomes Measures (PBOM)-Unilateral | N36: Test 1 Results | O36: Post treatment test 1 | R36: Comparison | S36: Difference | T36: Test results | U36: Progress 1 | AN36: Progress 2
C37: Musculoskeletal outcomes | E37: Test descriptor | F37: Equipment | G37: Injured | H37: Uninjured | I37: Bench mark | J37: Benchmark | K37: Comparisons | L37: Difference | M37: Target | V37: Musculoskeletal outcomes | X37: Test descriptor | Y37: Equipment | Z37: Injured | AA37: Uninjured | AB37: Bench mark | AC37: Benchmark | AD37: Comparisons | AE37: Difference | AF37: Target | AG37: TEST 2 RESULTS | AH37: Post treatment test 2 | AK37: Comparson | AL37: Difference | AM37: Test reults | AO37: Musculoskeletal outcomes | AQ37: Test descriptor | AR37: Equipment | AS37: Injured | AT37: Uninjured | AU37: Bench mark | AV37: Benchmark | AW37: Comparisons | AX37: Difference | AY37: Target | BA37: Post treatment Discharge | BD37: Comparison | BE37: Results | BF37: Test 4 results
F38: Metric | M38: Performance Deficit | Y38: Metric | AF38: Performance Deficit | AR38: Metric | AY38: Performance Deficit | AZ38: Test 3 Results
C39: Initial Eval | F39: Goniometre | J39: =IF(I39>0,I39,H39) -> 0 | K39: =IF(OR(AND((H39/J39>$J$31),H39/J39<$K$31),I39=0), "Injured vs uninjured", "Injured vs benchmark") ->  | L39: =IF(K39="Injured vs uninjured", G39/H39,G39/J39) ->  | M39: 0.9 | N39: =IF(L39>=85%,"Pass",IF(L39<85%,"Fail","Error")) ->  | O39: Injured | P39: Uninjured | Q39: Benchmark | R39: =IF(OR(AND((P40/Q40>$J$31),P40/Q40<$K$31),I39=0), "Injured vs uninjured", "Injured vs benchmark") ->  | S39: =IF(R39="Injured vs uninjured", O40/P40,O40/Q40) ->  | T39: =IF(S39>=85%,"Pass",IF(S39<85%,"Fail","Error")) ->  | V39: Progress 1 | Y39: Biodex | AC39: =IF(AB39>0,AB39,AA39) -> 0 | AD39: =IF(OR(AND((AA39/AC39>$J$31),AA39/AC39<$K$31),AB39=0), "Injured vs uninjured", "Injured vs benchmark") ->  | AE39: =IF(AD39="Injured vs uninjured", Z39/AA39,Z39/AC39) ->  | AF39: 1 | AG39: =IF(AE39>=85%,"Pass",IF(AE39<85%,"Fail","Error")) ->  | AH39: Injured | AI39: Uninjured | AJ39: Benchmark | AK39: =IF(OR(AND((AI40/AJ40>$J$31),AI40/AJ40<$K$31),AC39=0), "Injured vs uninjured", "Injured vs benchmark") ->  | AL39: =IF(AK39="Injured vs Uninjured", AH40/AI40,AH40/AC39) ->  | AM39: =IF(AL39>=85%,"Pass",IF(AL39<85%,"Fail","Error")) ->  | AO39: Discharge | AR39: Stopwatch | AV39: =IF(AU39>0,AU39,AT39) -> 0 | AW39: =IF(OR(AND((AT39/AV39>$J$31),AT39/AV39<$K$31),AU39=0), "Injured vs uninjured", "Injured vs benchmark") ->  | AX39: =IF(AW39="Injured vs Uninjured", AS39/AT39,AS39/AV39) ->  | AY39: 1 | AZ39: =IF(AX39>=85%,"Pass",IF(AX39<85%,"Fail","Error")) ->  | BA39: Injured | BB39: Uninjured | BC39: Benchmark | BD39: =IF(OR(AND((BB40/BC40>$J$31),BB40/BC40<$K$31),AV39=0), "Injured vs uninjured", "Injured vs benchmark") ->  | BE39: =IF(BD39="Injured vs Uninjured", BA40/BB40,BA40/BC40) ->  | BF39: =IF(BE39>=85%,"Pass",IF(AX39<85%,"Fail","Error")) -> 
F40: Degrees | M40: =L39-M39 ->  | O40: =IF(N39="pass",G39,"Enter New Value") ->  | P40: =IF(N39="pass",H39,"Enter New Value") ->  | Q40: =IF(E39="","Ignore",IF(K39="Injured vs Uninjured",J39,J39)) -> Ignore | Y40: Nm | AF40: =AE39-AF39 ->  | AH40: =IF(AG39="pass",Z39,"Enter New Value") ->  | AI40: =IF(AG39="pass",AA39,"Enter New Value") ->  | AJ40: =IF(X39="","Ignore",IF(AD39="Injured vs Uninjured",AC39,AC39)) -> Ignore | AR40: Seconds | AY40: =AX39-AY39 ->  | BA40: =IF(AZ39="Pass",AS39,"Enter New Value") ->  | BB40: =IF(AZ39="Pass",AT39,"Enter New Value") ->  | BC40: =IF(X39="Enter New Value","Ignore",IF(AW39="Injured vs Uninjured",AT39,AV39)) -> 
C41: =C39 -> Initial Eval | F41: Goniometre | J41: =IF(I41>0,I41,H41) -> 0 | K41: =IF(OR(AND((H41/J41>$J$31),H41/J41<$K$31),I41=0), "Injured vs uninjured", "Injured vs benchmark") ->  | L41: =IF(K41="Injured vs uninjured", G41/H41,G41/J41) ->  | M41: 0.9 | N41: =IF(L41>=85%,"Pass",IF(L41<85%,"Fail","Error")) ->  | O41: =O39 -> Injured | P41: =P39 -> Uninjured | Q41: =Q39 -> Benchmark | R41: =IF(OR(AND((P42/Q42>$J$31),P42/Q42<$K$31),I41=0), "Injured vs uninjured", "Injured vs benchmark") ->  | S41: =IF(R41="Injured vs uninjured", O42/P42,O42/Q42) ->  | T41: =IF(S41>=85%,"Pass",IF(S41<85%,"Fail","Error")) ->  | V41: =V39 -> Progress 1 | Y41: Biodex | AC41: =IF(AB41>0,AB41,AA41) -> 0 | AD41: =IF(OR(AND((AA41/AC41>$J$31),AA41/AC41<$K$31),AB41=0), "Injured vs uninjured", "Injured vs benchmark") ->  | AE41: =IF(AD41="Injured vs uninjured", Z41/AA41,Z41/AC41) ->  | AF41: 1 | AG41: =IF(AE41>=85%,"Pass",IF(AE41<85%,"Fail","Error")) ->  | AH41: Injured | AI41: =AI39 -> Uninjured | AJ41: =AJ39 -> Benchmark | AK41: =IF(OR(AND((AI42/AJ42>$J$31),AI42/AJ42<$K$31),AC41=0), "Injured vs uninjured", "Injured vs benchmark") ->  | AL41: =IF(AK41="Injured vs Uninjured", AH42/AI42,AH42/AC41) ->  | AM41: =IF(AL41>=85%,"Pass",IF(AL41<85%,"Fail","Error")) ->  | AO41: Discharge | AR41: Stopwatch | AV41: =IF(AU41>0,AU41,AT41) -> 0 | AW41: =IF(OR(AND((AT41/AV41>$J$31),AT41/AV41<$K$31),AU41=0), "Injured vs uninjured", "Injured vs benchmark") ->  | AX41: =IF(AW41="Injured vs Uninjured", AS41/AT41,AS41/AV41) ->  | AY41: 0.95 | AZ41: =IF(AX41>=85%,"Pass",IF(AX41<85%,"Fail","Error")) ->  | BA41: =BA39 -> Injured | BB41: =BB39 -> Uninjured | BC41: =BC39 -> Benchmark | BD41: =IF(OR(AND((BB42/BC42>$J$31),BB42/BC42<$K$31),AV41=0), "Injured vs uninjured", "Injured vs benchmark") ->  | BE41: =IF(BD41="Injured vs Uninjured", BA42/BB42,BA42/BC42) ->  | BF41: =IF(BE41>=85%,"Pass",IF(AX41<85%,"Fail","Error")) -> 
F42: Degrees | M42: =L41-M41 ->  | O42: =IF(N41="pass",G41,"Enter New Value") ->  | P42: =IF(N41="pass",H41,"Enter New Value") ->  | Q42: =IF(E41="","Ignore",IF(K41="Injured vs Uninjured",J41,J41)) -> Ignore | Y42: Kg | AF42: =AE41-AF41 ->  | AH42: =IF(AG41="pass",Z41,"Enter New Value") ->  | AI42: =IF(AG41="pass",AA41,"Enter New Value") ->  | AJ42: =IF(X41="","Ignore",IF(AD41="Injured vs Uninjured",AC41,AC41)) -> Ignore | AR42: Joule | AY42: =AX41-AY41 ->  | BA42: =IF(AZ41="Pass",AS41,"Enter New Value") ->  | BB42: =IF(AZ41="Pass",AT41,"Enter New Value") ->  | BC42: =IF(X39="Enter New Value","Ignore",IF(AW41="Injured vs Uninjured",AT41,AV41)) -> 
C43: =C41 -> Initial Eval | F43: MicroFit/Biofet | J43: =IF(I43>0,I43,H43) -> 0 | K43: =IF(OR(AND((H43/J43>$J$31),H43/J43<$K$31),I43=0), "Injured vs uninjured", "Injured vs benchmark") ->  | L43: =IF(K43="Injured vs uninjured", G43/H43,G43/J43) ->  | M43: 0.9 | N43: =IF(L43>=85%,"Pass",IF(L43<85%,"Fail","Error")) ->  | O43: =O41 -> Injured | P43: Uninjured | Q43: =Q41 -> Benchmark | R43: =IF(OR(AND((P44/Q44>$J$31),P44/Q44<$K$31),I43=0), "Injured vs uninjured", "Injured vs benchmark") ->  | S43: =IF(R43="Injured vs uninjured", O44/P44,O44/Q44) ->  | T43: =IF(S43>=85%,"Pass",IF(S43<85%,"Fail","Error")) ->  | V43: =V41 -> Progress 1 | Y43: DynoMo | AC43: =IF(AB43>0,AB43,AA43) -> 0 | AD43: =IF(OR(AND((AA43/AC43>$J$31),AA43/AC43<$K$31),AB43=0), "Injured vs uninjured", "Injured vs benchmark") ->  | AE43: =IF(AD43="Injured vs uninjured", Z43/AA43,Z43/AC43) ->  | AF43: 1 | AG43: =IF(AE43>=85%,"Pass",IF(AE43<85%,"Fail","Error")) ->  | AH43: Injured | AI43: =AI41 -> Uninjured | AJ43: =AJ41 -> Benchmark | AK43: =IF(OR(AND((AI44/AJ44>$J$31),AI44/AJ44<$K$31),AC43=0), "Injured vs uninjured", "Injured vs benchmark") ->  | AL43: =IF(AK43="Injured vs Uninjured", AH44/AI44,AH44/AC43) ->  | AM43: =IF(AL43>=85%,"Pass",IF(AL43<85%,"Fail","Error")) ->  | AO43: Discharge | AR43: MicroFit/Biofet | AV43: =IF(AU43>0,AU43,AT43) -> 0 | AW43: =IF(OR(AND((AT43/AV43>$J$31),AT43/AV43<$K$31),AU43=0), "Injured vs uninjured", "Injured vs benchmark") ->  | AX43: =IF(AW43="Injured vs Uninjured", AS43/AT43,AS43/AV43) ->  | AY43: 0.95 | AZ43: =IF(AX43>=85%,"Pass",IF(AX43<85%,"Fail","Error")) ->  | BA43: =BA41 -> Injured | BB43: Uninjured | BC43: Benchmark | BD43: =IF(OR(AND((BB44/BC44>$J$31),BB44/BC44<$K$31),AV43=0), "Injured vs uninjured", "Injured vs benchmark") ->  | BE43: =IF(BD43="Injured vs Uninjured", BA44/BB44,BA44/BC44) ->  | BF43: =IF(BE43>=85%,"Pass",IF(AX43<85%,"Fail","Error")) -> 
F44: Joule | M44: =L43-M43 ->  | O44: =IF(N43="pass",G43,"Enter New Value") ->  | P44: =IF(N43="pass",H43,"Enter New Value") ->  | Q44: =IF(E43="","Ignore",IF(K43="Injured vs Uninjured",J43,J43)) -> Ignore | Y44: Joule | AF44: =AE43-AF43 ->  | AH44: =IF(AG43="pass",Z43,"Enter New Value") ->  | AI44: =IF(AG43="pass",AA43,"Enter New Value") ->  | AJ44: =IF(X43="","Ignore",IF(AD43="Injured vs Uninjured",AC43,AC43)) -> Ignore | AR44: Joule | AY44: =AX43-AY43 ->  | BA44: =IF(AZ43="Pass",AS43,"Enter New Value") ->  | BB44: =IF(AZ43="Pass",AT43,"Enter New Value") ->  | BC44: =IF(X39="Enter New Value","Ignore",IF(AW43="Injured vs Uninjured",AT43,AV43)) -> 
C45: =C43 -> Initial Eval | F45: Step | J45: =IF(I45>0,I45,H45) -> 0 | K45: =IF(OR(AND((H45/J45>$J$31),H45/J45<$K$31),I45=0), "Injured vs uninjured", "Injured vs benchmark") ->  | L45: =IF(K45="Injured vs uninjured", G45/H45,G45/J45) ->  | M45: 1 | N45: =IF(L45>=85%,"Pass",IF(L45<85%,"Fail","Error")) ->  | O45: =O43 -> Injured | P45: Uninjured | Q45: Benchmark | R45: =IF(OR(AND((P46/Q46>$J$31),P46/Q46<$K$31),I45=0), "Injured vs uninjured", "Injured vs benchmark") ->  | S45: =IF(R45="Injured vs uninjured", O46/P46,O46/Q46) ->  | T45: =IF(S45>=85%,"Pass",IF(S45<85%,"Fail","Error")) ->  | V45: =V43 -> Progress 1 | Y45: MicroFit/Biofet | AC45: =IF(AB45>0,AB45,AA45) -> 0 | AD45: =IF(OR(AND((AA45/AC45>$J$31),AA45/AC45<$K$31),AB45=0), "Injured vs uninjured", "Injured vs benchmark") ->  | AE45: =IF(AD45="Injured vs uninjured", Z45/AA45,Z45/AC45) ->  | AF45: 1 | AG45: =IF(AE45>=85%,"Pass",IF(AE45<85%,"Fail","Error")) ->  | AH45: Injured | AI45: =AI41 -> Uninjured | AJ45: =AJ43 -> Benchmark | AK45: =IF(OR(AND((AI46/AJ46>$J$31),AI46/AJ46<$K$31),AC45=0), "Injured vs uninjured", "Injured vs benchmark") ->  | AL45: =IF(AK45="Injured vs Uninjured", AH46/AI46,AH46/AC45) ->  | AM45: =IF(AL45>=85%,"Pass",IF(AL45<85%,"Fail","Error")) ->  | AO45: Discharge | AR45: MicroFit/Biofet | AV45: =IF(AU45>0,AU45,AT45) -> 0 | AW45: =IF(OR(AND((AT45/AV45>$J$31),AT45/AV45<$K$31),AU45=0), "Injured vs uninjured", "Injured vs benchmark") ->  | AX45: =IF(AW45="Injured vs Uninjured", AS45/AT45,AS45/AV45) ->  | AY45: 0.95 | AZ45: =IF(AX45>=85%,"Pass",IF(AX45<85%,"Fail","Error")) ->  | BA45: =BA43 -> Injured | BB45: Uninjured | BC45: Benchmark | BD45: =IF(OR(AND((BB46/BC46>$J$31),BB46/BC46<$K$31),AV45=0), "Injured vs uninjured", "Injured vs benchmark") ->  | BE45: =IF(BD45="Injured vs Uninjured", BA46/BB46,BA46/BC46) ->  | BF45: =IF(BE45>=85%,"Pass",IF(AX45<85%,"Fail","Error")) -> 
F46: Numeric value | M46: =L45-M45 ->  | O46: =IF(N45="pass",G45,"Enter New Value") ->  | P46: =IF(N45="pass",H45,"Enter New Value") ->  | Q46: =IF(E45="","Ignore",IF(K45="Injured vs Uninjured",H45,I45)) -> Ignore | Y46: Joule | AF46: =AE45-AF45 ->  | AH46: =IF(AG45="pass",Z45,"Enter New Value") ->  | AI46: =IF(AG45="pass",AA45,"Enter New Value") ->  | AJ46: =IF(X45="","Ignore",IF(AD45="Injured vs Uninjured",AC45,AC45)) -> Ignore | AR46: Joule | AY46: =AX45-AY45 ->  | BA46: =IF(AZ45="Pass",AS45,"Enter New Value") ->  | BB46: =IF(AZ45="Pass",AT45,"Enter New Value") ->  | BC46: =IF(X39="Enter New Value","Ignore",IF(AW45="Injured vs Uninjured",AT45,AV45)) -> 
C47: =C45 -> Initial Eval | F47: MicroFit/Biofet | J47: =IF(I47>0,I47,H47) -> 0 | K47: =IF(OR(AND((H47/J47>$J$31),H47/J47<$K$31),I47=0), "Injured vs uninjured", "Injured vs benchmark") ->  | L47: =IF(K47="Injured vs uninjured", G47/H47,G47/J47) ->  | M47: 1 | N47: =IF(L47>=85%,"Pass",IF(L47<85%,"Fail","Error")) ->  | O47: =O45 -> Injured | P47: Uninjured | Q47: Benchmark | S47: =IF(R47="Injured vs uninjured", O48/P48,O48/Q48) ->  | T47: =IF(S47>=85%,"Pass",IF(S47<85%,"Fail","Error")) ->  | V47: =V45 -> Progress 1 | Y47: MicroFit/Biofet | AC47: =IF(AB47>0,AB47,AA47) -> 0 | AD47: =IF(OR(AND((AA47/AC47>$J$31),AA47/AC47<$K$31),AB47=0), "Injured vs uninjured", "Injured vs benchmark") ->  | AE47: =IF(AD47="Injured vs uninjured", Z47/AA47,Z47/AC47) ->  | AF47: 1 | AG47: =IF(AE47>=85%,"Pass",IF(AE47<85%,"Fail","Error")) ->  | AH47: Injured | AI47: =AI45 -> Uninjured | AJ47: =AJ45 -> Benchmark | AK47: =IF(OR(AND((AI48/AJ48>$J$31),AI48/AJ48<$K$31),AC47=0), "Injured vs uninjured", "Injured vs benchmark") ->  | AL47: =IF(AK47="Injured vs Uninjured", AH48/AI48,AH48/AC47) ->  | AM47: =IF(AL47>=85%,"Pass",IF(AL47<85%,"Fail","Error")) ->  | AO47: Discharge | AR47: MicroFit/Biofet | AV47: =IF(AU47>0,AU47,AT47) -> 0 | AW47: =IF(OR(AND((AT47/AV47>$J$31),AT47/AV47<$K$31),AU47=0), "Injured vs uninjured", "Injured vs benchmark") ->  | AX47: =IF(AW47="Injured vs Uninjured", AS47/AT47,AS47/AV47) ->  | AY47: 0.95 | AZ47: =IF(AX47>=85%,"Pass",IF(AX47<85%,"Fail","Error")) ->  | BA47: =BA45 -> Injured | BB47: Uninjured | BC47: Benchmark | BD47: =IF(OR(AND((BB48/BC48>$J$31),BB48/BC48<$K$31),AV47=0), "Injured vs uninjured", "Injured vs benchmark") ->  | BE47: =IF(BD47="Injured vs Uninjured", BA48/BB48,BA48/BC48) ->  | BF47: =IF(BE47>=85%,"Pass",IF(AX47<85%,"Fail","Error")) -> 
F48: Kg | M48: =L47-M47 ->  | O48: =IF(N47="pass",G47,"Enter New Value") ->  | P48: =IF(N47="pass",H47,"Enter New Value") ->  | Q48: =IF(E47="","Ignore",IF(K47="Injured vs Uninjured",J47,J47)) -> Ignore | Y48: Joule | AF48: =AE47-AF47 ->  | AH48: =IF(AG47="pass",Z47,"Enter New Value") ->  | AI48: =IF(AG47="pass",AA47,"Enter New Value") ->  | AJ48: =IF(X47="","Ignore",IF(AD47="Injured vs Uninjured",AC47,AC47)) -> Ignore | AR48: Joule | AY48: =AX47-AY47 ->  | BA48: =IF(AZ47="Pass",AS47,"Enter New Value") ->  | BB48: =IF(AZ47="Pass",AT47,"Enter New Value") ->  | BC48: =IF(X39="Enter New Value","Ignore",IF(AW47="Injured vs Uninjured",AT47,AV47)) -> 
C49: =C47 -> Initial Eval | F49: MicroFit/Biofet | J49: =IF(I49>0,I49,H49) -> 0 | K49: =#REF! ->  | L49: =#REF! ->  | M49: 0.95 | O49: Injured | Q49: Uninjured | S49: =#REF! ->  | V49: Initial | W49: =D39 -> 0 | X49: =E39 -> 0 | Y49: =F39 -> Goniometre | Z49: =O40 ->  | AA49: =P40 ->  | AB49: =J39 -> 0 | AC49: =IF(AB49>0,AB49,AA49) ->  | AD49: =IF(OR(AND((AA49/AC49>$J$31),AA49/AC49<$K$31),AB49=0), "Injured vs uninjured", "Injured vs benchmark") ->  | AE49: =IF(AD49="Injured vs uninjured", Z49/AA49,Z49/AC49) ->  | AF49: =M39 -> 0.9 | AG49: =IF(AE49>=85%,"Pass",IF(AE49<85%,"Fail","Error")) ->  | AH49: =AH47 -> Injured | AI49: =AI47 -> Uninjured | AJ49: =AJ47 -> Benchmark | AK49: =IF(OR(AND((AI50/AJ50>$J$31),AI50/AJ50<$K$31),AC49=0), "Injured vs uninjured", "Injured vs benchmark") ->  | AL49: =IF(AK49="Injured vs Uninjured", AH50/AI50,AH50/AC49) ->  | AM49: =IF(AL49>=85%,"Pass",IF(AL49<85%,"Fail","Error")) ->  | AO49: Progress 1 | AP49: =W39 -> 0 | AQ49: =X39 -> 0 | AR49: =Y39 -> Biodex | AS49: =AH40 ->  | AT49: =AI40 ->  | AU49: =AC39 -> 0 | AV49: =IF(AU49>0,AU49,AT49) ->  | AW49: =IF(OR(AND((AT49/AV49>$J$31),AT49/AV49<$K$31),AU49=0), "Injured vs uninjured", "Injured vs benchmark") ->  | AX49: =IF(AW49="Injured vs Uninjured", AS49/AT49,AS49/AV49) ->  | AY49: =AF39 -> 1 | AZ49: =IF(AX49>=85%,"Pass",IF(AX49<85%,"Fail","Error")) ->  | BA49: =BA47 -> Injured | BB49: Uninjured | BC49: Benchmark | BD49: =IF(OR(AND((BB50/BC50>$J$31),BB50/BC50<$K$31),AV49=0), "Injured vs uninjured", "Injured vs benchmark") ->  | BE49: =IF(BD49="Injured vs Uninjured", BA50/BB50,BA50/BC50) ->  | BF49: =IF(BE49>=85%,"Pass",IF(AX49<85%,"Fail","Error")) -> 
F50: Joule | M50: =L49-M49 ->  | Y50: =F40 -> Degrees | AF50: =AE49-AF49 ->  | AH50: =IF(AG49="pass",Z49,"Enter New Value") ->  | AI50: =IF(AG49="pass",AA49,"Enter New Value") ->  | AJ50: =IF(X49="","Ignore",IF(AD49="Injured vs Uninjured",AC49,AC49)) ->  | AR50: =Y40 -> Nm | AY50: =AX49-AY49 ->  | BA50: =IF(AZ49="Pass",AS49,"Enter New Value") ->  | BB50: =IF(AZ49="Pass",AT49,"Enter New Value") ->  | BC50: =IF(X39="Enter New Value","Ignore",IF(AW49="Injured vs Uninjured",AT49,AV49)) -> 
C51: =C49 -> Initial Eval | F51: MicroFit/Biofet | J51: =IF(I51>0,I51,H51) -> 0 | K51: =#REF! ->  | L51: =#REF! ->  | M51: 0.95 | O51: Injured | Q51: Uninjured | S51: =#REF! ->  | V51: =V49 -> Initial | W51: =D41 -> 0 | X51: =E41 -> 0 | Y51: Goniometre | Z51: =O42 ->  | AA51: =P42 ->  | AB51: =J41 -> 0 | AC51: =IF(AB51>0,AB51,AA51) ->  | AD51: =IF(OR(AND((AA51/AC51>$J$31),AA51/AC51<$K$31),AB51=0), "Injured vs uninjured", "Injured vs benchmark") ->  | AE51: =IF(AD51="Injured vs uninjured", Z51/AA51,Z51/AC51) ->  | AF51: =M41 -> 0.9 | AG51: =IF(AE51>=85%,"Pass",IF(AE51<85%,"Fail","Error")) ->  | AH51: =AH49 -> Injured | AI51: Uninjured | AJ51: Benchmark | AK51: =IF(OR(AND((AI52/AJ52>$J$31),AI52/AJ52<$K$31),AC51=0), "Injured vs uninjured", "Injured vs benchmark") ->  | AL51: =IF(AK51="Injured vs Uninjured", AH52/AI52,AH52/AC51) ->  | AM51: =IF(AL51>=85%,"Pass",IF(AL51<85%,"Fail","Error")) ->  | AO51: Progress 1 | AP51: =W41 -> 0 | AQ51: =X41 -> 0 | AR51: Biodex | AS51: =AH42 ->  | AT51: =AI42 ->  | AU51: =AC41 -> 0 | AV51: =IF(AU51>0,AU51,AT51) ->  | AW51: =IF(OR(AND((AT51/AV51>$J$31),AT51/AV51<$K$31),AU51=0), "Injured vs uninjured", "Injured vs benchmark") ->  | AX51: =IF(AW51="Injured vs Uninjured", AS51/AT51,AS51/AV51) ->  | AY51: =AF41 -> 1 | AZ51: =IF(AX51>=85%,"Pass",IF(AX51<85%,"Fail","Error")) ->  | BA51: =BA49 -> Injured | BB51: Uninjured | BC51: Benchmark | BD51: =IF(OR(AND((BB52/BC52>$J$31),BB52/BC52<$K$31),AV51=0), "Injured vs uninjured", "Injured vs benchmark") ->  | BE51: =IF(BD51="Injured vs Uninjured", BA52/BB52,BA52/BC52) ->  | BF51: =IF(BE51>=85%,"Pass",IF(AX51<85%,"Fail","Error")) -> 
F52: Joule | M52: =L51-M51 ->  | Y52: Degrees | AF52: =AE51-AF51 ->  | AH52: =IF(AG51="pass",Z51,"Enter New Value") ->  | AI52: =IF(AG51="pass",AA51,"Enter New Value") ->  | AJ52: =IF(X51="","Ignore",IF(AD51="Injured vs Uninjured",AC51,AC51)) ->  | AR52: Kg | AY52: =AX51-AY51 ->  | BA52: =IF(AZ51="Pass",AS51,"Enter New Value") ->  | BB52: =IF(AZ51="Pass",AT51,"Enter New Value") ->  | BC52: =IF(X39="Enter New Value","Ignore",IF(AW51="Injured vs Uninjured",AT51,AV51)) -> 
C53: =C51 -> Initial Eval | F53: MicroFit/Biofet | J53: =IF(I53>0,I53,H53) -> 0 | K53: =#REF! ->  | L53: =#REF! ->  | M53: 0.95 | O53: Injured | Q53: Uninjured | S53: =#REF! ->  | V53: =V51 -> Initial | W53: =D43 -> 0 | X53: =E43 -> 0 | Y53: MicroFit/Biofet | Z53: =O44 ->  | AA53: =P44 ->  | AB53: =J43 -> 0 | AC53: =IF(AB53>0,AB53,AA53) ->  | AD53: =IF(OR(AND((AA53/AC53>$J$31),AA53/AC53<$K$31),AB53=0), "Injured vs uninjured", "Injured vs benchmark") ->  | AE53: =IF(AD53="Injured vs uninjured", Z53/AA53,Z53/AC53) ->  | AF53: =M43 -> 0.9 | AG53: =IF(AE53>=85%,"Pass",IF(AE53<85%,"Fail","Error")) ->  | AH53: =AH51 -> Injured | AI53: Uninjured | AJ53: Benchmark | AK53: =IF(OR(AND((AI54/AJ54>$J$31),AI54/AJ54<$K$31),AC53=0), "Injured vs uninjured", "Injured vs benchmark") ->  | AL53: =IF(AK53="Injured vs Uninjured", AH54/AI54,AH54/AC53) ->  | AM53: =IF(AL53>=85%,"Pass",IF(AL53<85%,"Fail","Error")) ->  | AO53: Progress 1 | AP53: =W43 -> 0 | AQ53: =X43 -> 0 | AR53: DynoMo | AS53: =AH44 ->  | AT53: =AI44 ->  | AU53: =AC43 -> 0 | AV53: =IF(AU53>0,AU53,AT53) ->  | AW53: =IF(OR(AND((AT53/AV53>$J$31),AT53/AV53<$K$31),AU53=0), "Injured vs uninjured", "Injured vs benchmark") ->  | AX53: =IF(AW53="Injured vs Uninjured", AS53/AT53,AS53/AV53) ->  | AY53: =AF43 -> 1 | AZ53: =IF(AX53>=85%,"Pass",IF(AX53<85%,"Fail","Error")) ->  | BA53: =BA51 -> Injured | BB53: Uninjured | BC53: Benchmark | BD53: =IF(OR(AND((BB54/BC54>$J$31),BB54/BC54<$K$31),AV53=0), "Injured vs uninjured", "Injured vs benchmark") ->  | BE53: =IF(BD53="Injured vs Uninjured", BA54/BB54,BA54/BC54) ->  | BF53: =IF(BE53>=85%,"Pass",IF(AX53<85%,"Fail","Error")) -> 
F54: Joule | M54: =L53-M53 ->  | Y54: Joule | AF54: =AE53-AF53 ->  | AH54: =IF(AG53="pass",Z53,"Enter New Value") ->  | AI54: =IF(AG53="pass",AA53,"Enter New Value") ->  | AJ54: =IF(X53="","Ignore",IF(AD53="Injured vs Uninjured",AC53,AC53)) ->  | AR54: Joule | AY54: =AX53-AY53 ->  | BA54: =IF(AZ53="Pass",AS53,"Enter New Value") ->  | BB54: =IF(AZ53="Pass",AT53,"Enter New Value") ->  | BC54: =IF(X39="Enter New Value","Ignore",IF(AW53="Injured vs Uninjured",AT53,AV53)) -> 
C55: =C53 -> Initial Eval | F55: MicroFit/Biofet | J55: =IF(I55>0,I55,H55) -> 0 | K55: =#REF! ->  | L55: =#REF! ->  | M55: 0.95 | O55: Injured | Q55: Uninjured | S55: =#REF! ->  | V55: =V53 -> Initial | W55: =D45 -> 0 | X55: =E45 -> 0 | Y55: Step | Z55: =O46 ->  | AA55: =P46 ->  | AB55: =J45 -> 0 | AC55: =IF(AB55>0,AB55,AA55) ->  | AD55: =IF(OR(AND((AA55/AC55>$J$31),AA55/AC55<$K$31),AB55=0), "Injured vs uninjured", "Injured vs benchmark") ->  | AE55: =IF(AD55="Injured vs uninjured", Z55/AA55,Z55/AC55) ->  | AF55: =M45 -> 1 | AG55: =IF(AE55>=85%,"Pass",IF(AE55<85%,"Fail","Error")) ->  | AH55: =AH53 -> Injured | AI55: Uninjured | AJ55: Benchmark | AK55: =IF(OR(AND((AI56/AJ56>$J$31),AI56/AJ56<$K$31),AC55=0), "Injured vs uninjured", "Injured vs benchmark") ->  | AL55: =IF(AK55="Injured vs Uninjured", AH56/AI56,AH56/AC55) ->  | AM55: =IF(AL55>=85%,"Pass",IF(AL55<85%,"Fail","Error")) ->  | AO55: Progress 1 | AP55: =W45 -> 0 | AQ55: =X45 -> 0 | AR55: MicroFit/Biofet | AS55: =AH46 ->  | AT55: =AI46 ->  | AU55: =AC45 -> 0 | AV55: =IF(AU55>0,AU55,AT55) ->  | AW55: =IF(OR(AND((AT55/AV55>$J$31),AT55/AV55<$K$31),AU55=0), "Injured vs uninjured", "Injured vs benchmark") ->  | AX55: =IF(AW55="Injured vs Uninjured", AS55/AT55,AS55/AV55) ->  | AY55: =AF45 -> 1 | AZ55: =IF(AX55>=85%,"Pass",IF(AX55<85%,"Fail","Error")) ->  | BA55: =BA53 -> Injured | BB55: Uninjured | BC55: Benchmark | BD55: =IF(OR(AND((BB56/BC56>$J$31),BB56/BC56<$K$31),AV55=0), "Injured vs uninjured", "Injured vs benchmark") ->  | BE55: =IF(BD55="Injured vs Uninjured", BA56/BB56,BA56/BC56) ->  | BF55: =IF(BE55>=85%,"Pass",IF(AX55<85%,"Fail","Error")) -> 
F56: Joule | M56: =L55-M55 ->  | Y56: Numeric value | AF56: =AE55-AF55 ->  | AH56: =IF(AG55="pass",Z55,"Enter New Value") ->  | AI56: =IF(AG55="pass",AA55,"Enter New Value") ->  | AJ56: =IF(X55="","Ignore",IF(AD55="Injured vs Uninjured",AC55,AC55)) ->  | AR56: Joule | AY56: =AX55-AY55 ->  | BA56: =IF(AZ55="Pass",AS55,"Enter New Value") ->  | BB56: =IF(AZ55="Pass",AT55,"Enter New Value") ->  | BC56: =IF(X39="Enter New Value","Ignore",IF(AW55="Injured vs Uninjured",AT55,AV55)) -> 
C57: =C55 -> Initial Eval | F57: MicroFit/Biofet | J57: =IF(I57>0,I57,H57) -> 0 | K57: =#REF! ->  | L57: =#REF! ->  | M57: 0.95 | O57: Injured | Q57: Uninjured | S57: =#REF! ->  | V57: =V55 -> Initial | W57: =D47 -> 0 | X57: =E47 -> 0 | Y57: MicroFit/Biofet | Z57: =O48 ->  | AA57: =P48 ->  | AB57: =J47 -> 0 | AC57: =IF(AB57>0,AB57,AA57) ->  | AD57: =IF(OR(AND((AA57/AC57>$J$31),AA57/AC57<$K$31),AB57=0), "Injured vs uninjured", "Injured vs benchmark") ->  | AE57: =IF(AD57="Injured vs uninjured", Z57/AA57,Z57/AC57) ->  | AF57: =M47 -> 1 | AG57: =IF(AE57>=85%,"Pass",IF(AE57<85%,"Fail","Error")) ->  | AH57: =AH55 -> Injured | AI57: Uninjured | AJ57: Benchmark | AK57: =IF(OR(AND((AI58/AJ58>$J$31),AI58/AJ58<$K$31),AC57=0), "Injured vs uninjured", "Injured vs benchmark") ->  | AL57: =IF(AK57="Injured vs Uninjured", AH58/AI58,AH58/AC57) ->  | AM57: =IF(AL57>=85%,"Pass",IF(AL57<85%,"Fail","Error")) ->  | AO57: Progress 1 | AP57: =W47 -> 0 | AQ57: =X47 -> 0 | AR57: MicroFit/Biofet | AS57: =AH48 ->  | AT57: =AI48 ->  | AU57: =AC47 -> 0 | AV57: =IF(AU57>0,AU57,AT57) ->  | AW57: =IF(OR(AND((AT57/AV57>$J$31),AT57/AV57<$K$31),AU57=0), "Injured vs uninjured", "Injured vs benchmark") ->  | AX57: =IF(AW57="Injured vs Uninjured", AS57/AT57,AS57/AV57) ->  | AY57: =AF47 -> 1 | AZ57: =IF(AX57>=85%,"Pass",IF(AX57<85%,"Fail","Error")) ->  | BA57: =BA55 -> Injured | BB57: Uninjured | BC57: Benchmark | BD57: =IF(OR(AND((BB58/BC58>$J$31),BB58/BC58<$K$31),AV57=0), "Injured vs uninjured", "Injured vs benchmark") ->  | BE57: =IF(BD57="Injured vs Uninjured", BA58/BB58,BA58/BC58) ->  | BF57: =IF(BE57>=85%,"Pass",IF(AX57<85%,"Fail","Error")) -> 
F58: Joule | M58: =L57-M57 ->  | Y58: Kg | AF58: =AE57-AF57 ->  | AH58: =IF(AG57="pass",Z57,"Enter New Value") ->  | AI58: =IF(AG57="pass",AA57,"Enter New Value") ->  | AJ58: =IF(X57="","Ignore",IF(AD57="Injured vs Uninjured",AC57,AC57)) ->  | AR58: Joule | AY58: =AX57-AY57 ->  | BA58: =IF(AZ57="Pass",AS57,"Enter New Value") ->  | BB58: =IF(AZ57="Pass",AT57,"Enter New Value") ->  | BC58: =IF(X39="Enter New Value","Ignore",IF(AW57="Injured vs Uninjured",AT57,AV57)) -> 
E59: j | AO59: Initial | AP59: =W49 -> 0 | AQ59: =X49 -> 0 | AR59: Goniometre | AS59: =AH50 ->  | AT59: =AI50 ->  | AU59: =AB49 -> 0 | AV59: =IF(AU59>0,AU59,AT59) ->  | AW59: =IF(OR(AND((AT59/AV59>$J$31),AT59/AV59<$K$31),AU59=0), "Injured vs uninjured", "Injured vs benchmark") ->  | AX59: =IF(AW59="Injured vs Uninjured", AS59/AT59,AS59/AV59) ->  | AY59: =M39 -> 0.9 | AZ59: =IF(AX59>=85%,"Pass",IF(AX59<85%,"Fail","Error")) ->  | BA59: =BA57 -> Injured | BB59: Uninjured | BC59: Benchmark | BD59: =IF(OR(AND((BB60/BC60>$J$31),BB60/BC60<$K$31),AV59=0), "Injured vs uninjured", "Injured vs benchmark") ->  | BE59: =IF(BD59="Injured vs Uninjured", BA60/BB60,BA60/BC60) ->  | BF59: =IF(BE59>=85%,"Pass",IF(AX59<85%,"Fail","Error")) -> 
AR60: Degrees | AY60: =AX59-AY59 ->  | BA60: =IF(AZ59="Pass",AS59,"Enter New Value") ->  | BB60: =IF(AZ59="Pass",AT59,"Enter New Value") ->  | BC60: =IF(X39="Enter New Value","Ignore",IF(AW59="Injured vs Uninjured",AT59,AV59)) -> 
AO61: =AO59 -> Initial | AP61: =W51 -> 0 | AQ61: =X51 -> 0 | AR61: Goniometre | AS61: =AH52 ->  | AT61: =AI52 ->  | AU61: =AB51 -> 0 | AV61: =IF(AU61>0,AU61,AT61) ->  | AW61: =IF(OR(AND((AT61/AV61>$J$31),AT61/AV61<$K$31),AU61=0), "Injured vs uninjured", "Injured vs benchmark") ->  | AY61: =M41 -> 0.9 | AZ61: =IF(AX61>=85%,"Pass",IF(AX61<85%,"Fail","Error")) ->  | BA61: =BA59 -> Injured | BB61: Uninjured | BC61: Benchmark | BD61: =IF(OR(AND((BB62/BC62>$J$31),BB62/BC62<$K$31),AV61=0), "Injured vs uninjured", "Injured vs benchmark") ->  | BE61: =IF(BD61="Injured vs Uninjured", BA62/BB62,BA62/BC62) ->  | BF61: =IF(BE61>=85%,"Pass",IF(AX61<85%,"Fail","Error")) -> 
AR62: Degrees | AY62: =AX61-AY61 ->  | BA62: =IF(AZ61="Pass",AS61,"Enter New Value") ->  | BB62: =IF(AZ61="Pass",AT61,"Enter New Value") ->  | BC62: =IF(X39="Enter New Value","Ignore",IF(AW61="Injured vs Uninjured",AT61,AV61)) -> 
AO63: =AO61 -> Initial | AP63: =W53 -> 0 | AQ63: =X53 -> 0 | AR63: MicroFit/Biofet | AS63: =AH54 ->  | AU63: =AB53 -> 0 | AV63: =IF(AU63>0,AU63,AT63) ->  | AW63: =IF(OR(AND((AT63/AV63>$J$31),AT63/AV63<$K$31),AU63=0), "Injured vs uninjured", "Injured vs benchmark") ->  | AX63: =IF(AW63="Injured vs Uninjured", AS63/AT63,AS63/AV63) ->  | AY63: =M43 -> 0.9 | AZ63: =IF(AX63>=85%,"Pass",IF(AX63<85%,"Fail","Error")) ->  | BA63: =BA61 -> Injured | BB63: Uninjured | BC63: Benchmark | BD63: =IF(OR(AND((BB64/BC64>$J$31),BB64/BC64<$K$31),AV63=0), "Injured vs uninjured", "Injured vs benchmark") ->  | BE63: =IF(BD63="Injured vs Uninjured", BA64/BB64,BA64/BC64) ->  | BF63: =IF(BE63>=85%,"Pass",IF(AX63<85%,"Fail","Error")) -> 
AR64: Joule | AY64: =AX63-AY63 ->  | BA64: =IF(AZ63="Pass",AS63,"Enter New Value") ->  | BB64: =IF(AZ63="Pass",AT63,"Enter New Value") ->  | BC64: =IF(X39="Enter New Value","Ignore",IF(AW63="Injured vs Uninjured",AT63,AV63)) -> 
AO65: =AO63 -> Initial | AP65: =W55 -> 0 | AQ65: =X55 -> 0 | AR65: Step | AS65: =AH56 ->  | AU65: =AB55 -> 0 | AV65: =IF(AU65>0,AU65,AT65) ->  | AW65: =IF(OR(AND((AT65/AV65>$J$31),AT65/AV65<$K$31),AU65=0), "Injured vs uninjured", "Injured vs benchmark") ->  | AY65: =M45 -> 1 | AZ65: =IF(AX65>=85%,"Pass",IF(AX65<85%,"Fail","Error")) ->  | BA65: =BA63 -> Injured | BB65: Uninjured | BC65: Benchmark | BD65: =IF(OR(AND((BB66/BC66>$J$31),BB66/BC66<$K$31),AV65=0), "Injured vs uninjured", "Injured vs benchmark") ->  | BE65: =IF(BD65="Injured vs Uninjured", BA66/BB66,BA66/BC66) ->  | BF65: =IF(BE65>=85%,"Pass",IF(AX65<85%,"Fail","Error")) -> 
AR66: Numeric value | AY66: =AX65-AY65 ->  | BA66: =IF(AZ65="pass",AS65,"Enter New Value") ->  | BB66: =IF(AZ65="pass",AT65,"Enter New Value") ->  | BC66: =IF(X39="Enter New Value","Ignore",IF(AW65="Injured vs Uninjured",AT65,AV65)) -> 
AO67: =AO65 -> Initial | AP67: =W57 -> 0 | AQ67: =X57 -> 0 | AR67: MicroFit/Biofet | AS67: =AH58 ->  | AU67: =AB57 -> 0 | AV67: =IF(AU67>0,AU67,AT67) ->  | AW67: =IF(OR(AND((AT67/AV67>$J$31),AT67/AV67<$K$31),AU67=0), "Injured vs uninjured", "Injured vs benchmark") ->  | AY67: =M47 -> 1 | AZ67: =IF(AX67>=85%,"Pass",IF(AX67<85%,"Fail","Error")) ->  | BA67: =BA65 -> Injured | BB67: Uninjured | BC67: Benchmark | BD67: =IF(OR(AND((BB68/BC68>$J$31),BB68/BC68<$K$31),AV67=0), "Injured vs uninjured", "Injured vs benchmark") ->  | BE67: =IF(BD67="Injured vs Uninjured", BA68/BB68,BA68/BC68) ->  | BF67: =IF(BE67>=85%,"Pass",IF(AX67<85%,"Fail","Error")) -> 
AR68: Kg | AY68: =AX67-AY67 ->  | BA68: =IF(AZ67="Pass",AS67,"Enter New Value") ->  | BB68: =IF(AZ67="Pass",AT67,"Enter New Value") ->  | BC68: =IF(X39="Enter New Value","Ignore",IF(AW67="Injured vs Uninjured",AT67,AV67)) -> 
A72: Patient reported outcomes measure initial assessment | G72: Patient reported outcomes measure: Post treatment 1 | O72: Patient reported outcomes measure: Post treatment 2
W73: Patient reported outcomes measure: Discharge
A74: Assessment | B74: Questioniare | C74: Current Score | D74: Benchmark | E74: Comments | G74: Assessment | H74: Questioniare | I74: Prevouis Score | J74: Current Score | K74: Progress | L74: Benchmark | M74: Comments | O74: Assessment | P74: Questioniare | Q74: Prevouis Score | R74: Current Score | S74: Progress | T74: Benchmark
A75: =$A$19 -> Initial Eval | B75: =B18 -> MTSS | C75: =C18 -> 0 | D75: 0 | E75: =$E$18 -> Graph 1 represents the subjective results(…%) of ….......An estamted benchmark(..) were selected based on his end goals. | G75: Post Intervention 1 | H75: =AA18 -> MTSS | I75: =C75 -> 0 | J75: =Q18 -> 0.67 | K75: =Table15[[#This Row],[Current Score]]-Table15[[#This Row],[Prevouis Score]] -> 0.67 | L75: =D75 -> 0 | M75: =$AE$18 -> Graph 1 summarizes the subjective improvement of(….%) over the exercise rehabilitation period. Currently, Mr. Potgieter achieved 66% (Benchmark 89%) | O75: Post intervention 2 | P75: =H75 -> MTSS | Q75: =J75 -> 0.67 | R75: =AB18 -> 0.87 | S75: =R75-Q75 -> 0.2 | T75: =L75 -> 0 | W75: Assessment | X75: Questioniare | Y75: Prevouis Score | Z75: Current Score | AA75: Progress | AB75: Benchmark
A76: =$A$19 -> Initial Eval | B76: IKDC | C76: 0 | D76: 0 | E76: =$E$19 -> Graph 2 represents the subjective results(…%) of ….......An estamted benchmark(..) were selected based on his end goals. | G76: Post Intervention 1 | H76: =AA19 -> IKDC | I76: =C76 -> 0 | J76: =Q19 -> 0.6 | K76: =Table15[[#This Row],[Current Score]]-Table15[[#This Row],[Prevouis Score]] -> 0.6 | L76: =D76 -> 0 | M76: Graph 2 summarizes the subjective improvement(….%) over the exercise rehabilitation period. Currently, Mr. Potgieter achieved 66% (Benchmark 89%) | O76: Post intervention 2 | P76: =H76 -> IKDC | Q76: =J76 -> 0.6 | R76: =AB19 -> 0.88 | S76: =R76-Q76 -> 0.28 | T76: =L76 -> 0 | W76: Discharge | X76: =P75 -> MTSS | Y76: =R75 -> 0.87 | Z76: =AR17 -> 0 | AA76: =Z76-Y76 -> -0.87 | AB76: 0
A77: Initial Eval | B77: Hagos | C77: 0 | D77: 0 | E77: =$E$20 -> Graph 3 represents the subjective results(…%) of ….......An estamted benchmark(..) were selected based on his end goals. | G77: Post Intervention 1 | H77: =AA20 -> Hagos | I77: =C77 -> 0 | J77: 0.76 | K77: =Table15[[#This Row],[Current Score]]-Table15[[#This Row],[Prevouis Score]] -> 0.76 | L77: =D77 -> 0 | M77: Graph 3 summarizes the subjective improvement(….%) over the exercise rehabilitation period. Currently, Mr. Potgieter achieved 66% (Benchmark 89%) | O77: Post intervention 2 | P77: =H77 -> Hagos | Q77: =J77 -> 0.76 | R77: 0.8 | S77: 0.04 | T77: =L77 -> 0 | W77: Discharge | X77: IKDC | Y77: =R76 -> 0.88 | Z77: =AR18 -> 0 | AA77: =Z77-Y77 -> -0.88 | AB77: 0
W78: Discharge | X78: Hagos | Y78: 0.8 | Z78: 0 | AA78: -0.8 | AB78: 0
A99: Patient reported outcomes measure initial assessment | O99: Patient reported outcomes measure: Post Treatment 2 | W99: Patient reported outcomes measure: Post Treatment Discharge
G100: Patient reported outcomes measure: Post Treatment 1
A101: Assessment | B101: Activity | C101: Location | D101: Involve before intervention | O101: Assessment | P101: Activity | Q101: Loation | R101: Initial VAS pain | S101: Current VAS pain | W101: Assessment | X101: Activity | Y101: Loation | Z101: Initial VAS pain | AA101: Current VAS pain
A102: =A24 -> Initial | B102: Running @ 10 min | C102: =C24 -> Patellar tendon | D102: =E24 -> 0 | G102: Assessment | H102: Acitivity | I102: Location | J102: Initial VAS pain | K102: Current VAS pain | O102: Post intervention 2 | P102: Running @ 10 min | Q102: Patella tendon | R102: =AD24 -> 3 | S102: =AS23 -> 3 | W102: Discharge | X102: Running @ 10 min | Y102: Patella tendon | Z102: =AS23 -> 3 | AA102: =AU23 -> 1
A103: Initial | B103: One leg squad | C103: Patellar tendon | D103: 0 | G103: Progress 1 | H103: =AA24 -> Running @ 10 min | I103: =C24 -> Patellar tendon | J103: =D102 -> 0 | K103: =AF24 -> 1 | O103: Post intervention 2 | P103: One leg squad | Q103: Medial frmoral | R103: =AD25 -> 2 | S103: =AS24 -> 2 | W103: Discharge | X103: One leg squad | Y103: Medial frmoral | Z103: =AS24 -> 2 | AA103: =AU24 -> 1
G104: Progress 1 | H104: =AA25 -> One leg squad | I104: =C25 -> Patellar tendon | J104: =D103 -> 0 | K104: =AF25 -> 1
A122: Performance based outcomes: Initial assessment | G122: Performance based outcomes: Post Treatment 1 Results | N122: Performance based outcomes: Post Treatment 2 Results | U122: Performance based outcomes: Discharge
A124: Assessment | B124: Performance Based Outcomes | C124: Comparisons | D124: Difference | E124: Target | F124: Performance deficit | G124: Progress Ass | H124: Performance Based Outcomes | I124: Comparison | J124: Difference | K124: Target | L124: Performance Deficit | M124: Progress | N124: Discharge | O124: Performance Based Outcomes | P124: Comparison | Q124: Diff after Interv | R124: Target | S124: Performance Deficit | T124: Progress | U124: Discharge | V124: Performance Based Outcomes | W124: Comparison | X124: Diff after Interv | Y124: Target | Z124: Performance Deficit | AA124: Progress
A125: =C39 -> Initial Eval | B125: =D39 -> 0 | C125: =K39 ->  | D125: =L39 ->  | E125: =M39 -> 0.9 | F125: =D125-E125 ->  | G125: =A125 -> Initial Eval | H125: 0 | I125: =R39 ->  | J125: =S39 ->  | K125: =E125 -> 0.9 | L125: ='Input Sheet'!$J125-'Input Sheet'!$K125 ->  | M125: =J125-D125 ->  | N125: =G125 -> Initial Eval | O125: =H125 -> 0 | P125: =I125 ->  | Q125: =AL49 ->  | R125: =K125 -> 0.9 | S125: =Q125-R125 ->  | T125: =Q125-J125 ->  | U125: =N125 -> Initial Eval | V125: 0 | W125: =BD59 ->  | X125: =BE59 ->  | Y125: =R125 -> 0.9 | Z125: =X125-Y125 ->  | AA125: =X125-Q125 -> 
A126: =C41 -> Initial Eval | B126: =D41 -> 0 | C126: =K41 ->  | D126: =L41 ->  | E126: =M41 -> 0.9 | F126: =D126-E126 ->  | G126: Initial Eval | H126: 0 | I126: =R41 ->  | J126: =S41 ->  | K126: =E126 -> 0.9 | L126: ='Input Sheet'!$J126-'Input Sheet'!$K126 ->  | M126: =J126-D126 ->  | N126: =G126 -> Initial Eval | O126: =H126 -> 0 | P126: =AK51 ->  | Q126: =AL51 ->  | R126: =K126 -> 0.9 | S126: =Q126-R126 ->  | U126: Initial Eval | V126: 0 | W126: =BD61 ->  | X126: =BE61 ->  | Y126: 0.9 | Z126: =X126-Y126 -> 
A127: =C43 -> Initial Eval | B127: =D43 -> 0 | C127: =K43 ->  | D127: =L43 ->  | E127: =M43 -> 0.9 | G127: Initial Eval | H127: 0 | I127: =R43 ->  | J127: =S43 ->  | K127: =E127 -> 0.9 | L127: ='Input Sheet'!$J127-'Input Sheet'!$K127 ->  | M127: =J127-D127 ->  | N127: Initial Eval | O127: 0 | P127: =AK53 ->  | Q127: =AL53 ->  | R127: =K127 -> 0.9 | U127: Initial Eval | V127: 0 | W127: =BD63 ->  | X127: =BE63 ->  | Y127: 0.9
A128: =C45 -> Initial Eval | B128: =D45 -> 0 | C128: =K45 ->  | D128: =L45 ->  | E128: =M45 -> 1 | G128: Initial Eval | H128: 0 | I128: =R45 ->  | J128: =S45 ->  | K128: =E128 -> 1 | L128: ='Input Sheet'!$J128-'Input Sheet'!$K128 ->  | M128: =J128-D128 ->  | N128: Initial Eval | O128: 0 | P128: =AK55 ->  | Q128: =AL55 ->  | R128: =K128 -> 1 | U128: Initial Eval | V128: 0 | W128: =BD65 ->  | X128: =BE65 ->  | Y128: 1
A129: =C47 -> Initial Eval | B129: =D47 -> 0 | C129: =K47 ->  | D129: =L47 ->  | E129: =M47 -> 1 | G129: Initial Eval | H129: 0 | I129: =R47 ->  | J129: =S47 ->  | K129: =E129 -> 1 | L129: ='Input Sheet'!$J129-'Input Sheet'!$K129 ->  | M129: =J129-D129 ->  | N129: Initial Eval | O129: 0 | P129: =AK57 ->  | Q129: =AL57 ->  | R129: =K129 -> 1 | U129: Initial Eval | V129: 0 | W129: =BD67 ->  | X129: =BE67 ->  | Y129: 1
G130: =V39 -> Progress 1 | H130: =W39 -> 0 | I130: =AD39 ->  | J130: =AE39 ->  | K130: =AF39 -> 1 | L130: ='Input Sheet'!$J130-'Input Sheet'!$K130 ->  | M130: 0 | N130: Progress 1 | O130: 0 | P130: =AK39 ->  | Q130: =AL39 ->  | R130: =AF39 -> 1 | U130: =AO49 -> Progress 1 | V130: =AP49 -> 0 | W130: =BD49 ->  | X130: =BE49 ->  | Y130: 1
G131: =V41 -> Progress 1 | H131: =W41 -> 0 | I131: =AD41 ->  | J131: =AE41 ->  | K131: =AF41 -> 1 | L131: ='Input Sheet'!$J131-'Input Sheet'!$K131 ->  | M131: 0 | N131: Progress 1 | O131: 0 | P131: =AK41 ->  | Q131: =AL41 ->  | R131: =AF41 -> 1 | U131: =AO51 -> Progress 1 | V131: =AP51 -> 0 | W131: =BD51 ->  | X131: =BE51 ->  | Y131: 1
G132: =V43 -> Progress 1 | H132: =W43 -> 0 | I132: =AD43 ->  | J132: =AE43 ->  | K132: =AF43 -> 1 | L132: ='Input Sheet'!$J132-'Input Sheet'!$K132 ->  | M132: 0 | N132: Progress 1 | O132: 0 | P132: =AK43 ->  | Q132: =AL43 ->  | R132: =AF43 -> 1 | U132: =AO53 -> Progress 1 | V132: =AP53 -> 0 | W132: =BD53 ->  | X132: =BE53 ->  | Y132: 1
G133: =V45 -> Progress 1 | H133: =W45 -> 0 | I133: =AD45 ->  | J133: =AE45 ->  | K133: =AF45 -> 1 | L133: ='Input Sheet'!$J133-'Input Sheet'!$K133 ->  | M133: 0 | N133: Progress 1 | O133: 0 | P133: =AK45 ->  | Q133: =AL45 ->  | R133: =AF45 -> 1 | U133: =AO55 -> Progress 1 | V133: =AP55 -> 0 | W133: =BD55 ->  | X133: =BE55 ->  | Y133: 1
G134: =V47 -> Progress 1 | H134: =W47 -> 0 | I134: =AD47 ->  | J134: =AE47 ->  | K134: =AF47 -> 1 | L134: ='Input Sheet'!$J134-'Input Sheet'!$K134 ->  | M134: 0 | N134: Progress 1 | O134: 0 | P134: =AK47 ->  | Q134: =AL47 ->  | R134: =AF47 -> 1 | U134: =AO57 -> Progress 1 | V134: =AP57 -> 0 | W134: =BD57 ->  | X134: =BE57 ->  | Y134: 1
N135: =AO39 -> Discharge | O135: =AP39 -> 0 | P135: =AW39 ->  | Q135: =AX39 ->  | R135: =AY39 -> 1 | T135: 0 | U135: =N135 -> Discharge | V135: 0 | W135: =BD39 ->  | X135: =BE39 ->  | Y135: 1
N136: =AO41 -> Discharge | O136: =AP41 -> 0 | P136: =AW41 ->  | Q136: =AX41 ->  | R136: =AY41 -> 0.95 | T136: 0 | U136: Discharge | V136: 0 | W136: =BD41 ->  | X136: =BE41 ->  | Y136: 0.95
N137: =AO43 -> Discharge | O137: =AP43 -> 0 | P137: =AW43 ->  | Q137: =AX43 ->  | R137: =AY43 -> 0.95 | T137: 0 | U137: Discharge | V137: 0 | W137: =BD43 ->  | X137: =BE43 ->  | Y137: 0.95
N138: =AO45 -> Discharge | O138: =AP45 -> 0 | P138: =AW45 ->  | Q138: =AX45 ->  | R138: =AY45 -> 0.95 | T138: 0 | U138: Discharge | V138: 0 | W138: =BD45 ->  | X138: =BE45 ->  | Y138: 0.95
N139: =AO47 -> Discharge | O139: =AP47 -> 0 | P139: =AW47 ->  | Q139: =AX47 ->  | R139: =AY47 -> 0.95 | T139: 0 | U139: Discharge | V139: 0 | W139: =BD47 ->  | X139: =BE47 ->  | Y139: 0.95
A172: Assessment | B172: Performance Based Outcomes | C172: Column1 | D172: Injured | E172: Uninjured | F172: Injured(After) | G172: Uninjured (After) | H172: Improvement(Injured) | I172: Improvement(Uninjured) | K172: Assessment | L172: Performance Based Outcomes | M172: Re-Assessment | N172: Injured | O172: Uninjured | P172: Injured(After) | Q172: Uninjured (After) | R172: Improvement(Injured) | S172: Improvement(Uninjured) | U172: Assessment | V172: Performance Based Outcomes | W172: Re-Assessment | X172: Injured | Y172: Uninjured | Z172: Injured(After) | AA172: Uninjured (After) | AB172: Improvement(Injured) | AC172: Improvement(Uninjured)
A173: =A125 -> Initial Eval | B173: 0 | C173: Post treatment T1 | D173: =G39 -> 0 | E173: =H39 -> 0 | F173: =O40 ->  | G173: =P40 ->  | H173: =(F173-D173)/F173 ->  | I173: =(G173-E173)/G173 ->  | K173: Progress 1 | L173: =W39 -> 0 | M173: Post treatment 2 | N173: =Z39 -> 0 | O173: =AA39 -> 0 | P173: =AH40 ->  | Q173: =AI40 ->  | R173: =(P173-N173)/P173 ->  | S173: =(Q173-O173)/Q173 ->  | U173: Discharge | V173: =AP39 -> 0 | W173: Post treatment 3 | X173: =AS39 -> 0 | Y173: =AT39 -> 0 | Z173: =BA40 ->  | AA173: =BB40 ->  | AB173: =(Z173-X173)/Z173 ->  | AC173: =(AA173-Y173)/AA173 -> 
A174: Initial Eval | B174: 0 | C174: Post treatment T1 | D174: =G41 -> 0 | E174: =H41 -> 0 | F174: =O42 ->  | G174: =P42 ->  | K174: Progress 1 | L174: =W41 -> 0 | M174: Post treatment 2 | N174: =Z41 -> 0 | O174: =AA41 -> 0 | P174: =AH42 ->  | Q174: =AI42 ->  | R174: =(P174-N174)/P174 ->  | S174: =(Q174-O174)/Q174 ->  | U174: Discharge | V174: =AP41 -> 0 | W174: Post treatment 3 | X174: =AS41 -> 0 | Y174: =AT41 -> 0 | Z174: =BA42 ->  | AA174: =BB42 ->  | AB174: =(Z174-X174)/Z174 ->  | AC174: =(AA174-Y174)/AA174 -> 
A175: Initial Eval | B175: 0 | C175: Post treatment T1 | D175: =G43 -> 0 | E175: =H43 -> 0 | F175: =O44 ->  | G175: =P44 ->  | K175: Progress 1 | L175: =W43 -> 0 | M175: Post treatment 2 | N175: =Z43 -> 0 | O175: =AA43 -> 0 | P175: =AH44 ->  | Q175: =AI44 ->  | U175: Discharge | V175: =AP43 -> 0 | W175: Post treatment 3 | X175: =AS43 -> 0 | Y175: =AT43 -> 0 | Z175: =BA44 ->  | AA175: =BB44 -> 
A176: Initial Eval | B176: 0 | C176: Post treatment T1 | D176: =G45 -> 0 | E176: =H45 -> 0 | F176: =O46 ->  | G176: =P46 ->  | K176: Progress 1 | L176: =W45 -> 0 | M176: Post treatment 2 | N176: =Z45 -> 0 | O176: =AA45 -> 0 | P176: =AH46 ->  | Q176: =AI46 ->  | U176: Discharge | V176: =AP45 -> 0 | W176: Post treatment 3 | X176: =AS45 -> 0 | Y176: =AT45 -> 0 | Z176: =BA46 ->  | AA176: =BB46 -> 
A177: Initial Eval | B177: 0 | C177: Post treatment T1 | D177: =G47 -> 0 | E177: =H47 -> 0 | F177: =O48 ->  | G177: =P48 ->  | K177: Progress 1 | L177: =W47 -> 0 | M177: Post treatment 2 | N177: =Z47 -> 0 | O177: =AA47 -> 0 | P177: =AH48 ->  | Q177: =AI48 ->  | U177: Discharge | V177: =AP47 -> 0 | W177: Post treatment 3 | X177: =AS47 -> 0 | Y177: =AT47 -> 0 | Z177: =BA48 ->  | AA177: =BB48 -> 
A178: Progress 1 | B178: =B173 -> 0 | C178: Post treatment T2 | D178: =F173 ->  | E178: =G173 ->  | F178: =AH50 ->  | G178: =AI50 ->  | K178: Discharge | L178: =L173 -> 0 | M178: Post treatment 3 | N178: =P173 ->  | P178: =BA50 ->  | Q178: =BB50 -> 
A179: Progress 1 | B179: =B174 -> 0 | C179: Post treatment T2 | F179: =AH52 ->  | G179: =AI52 ->  | K179: Discharge | L179: 0 | M179: Post treatment 3 | P179: =BA52 ->  | Q179: =BB52 -> 
A180: Progress 1 | B180: =B175 -> 0 | C180: Post treatment T2 | F180: =AH54 ->  | G180: =AI54 ->  | K180: Discharge | L180: 0 | M180: Post treatment 3 | P180: =BA54 ->  | Q180: =BB54 -> 
A181: Progress 1 | B181: =B176 -> 0 | C181: Post treatment T2 | F181: =AH56 ->  | G181: =AI56 ->  | K181: Discharge | L181: 0 | M181: Post treatment 3 | P181: =BA56 ->  | Q181: =BB56 -> 
A182: Progress 1 | B182: =B177 -> 0 | C182: Post treatment T2 | F182: =AH58 ->  | G182: =AI58 ->  | K182: Discharge | L182: 0 | M182: Post treatment 3 | P182: =BA68 ->  | Q182: =BB68 -> 
A183: Discharge | B183: =B173 -> 0 | C183: Post treatment T3 | F183: =BA60 ->  | G183: =BB60 -> 
A184: Discharge | B184: =B174 -> 0 | C184: Post treatment T3 | F184: =BA62 ->  | G184: =BB62 -> 
A185: Discharge | B185: =B175 -> 0 | C185: Post treatment T3 | F185: =BA64 ->  | G185: =BB64 -> 
A186: Discharge | B186: =B176 -> 0 | C186: Post treatment T3 | F186: =BA66 ->  | G186: =BB66 -> 
A187: Discharge | B187: =B177 -> 0 | C187: Post treatment T3 | F187: =BA68 ->  | G187: =BB68 -> 

Sheet Input Bilateral (hidden)
A22: Start at INITIAL for FIRST ASSESSMENT
L23: 0.8
F25: Factor | G25: 0.85 | I25: 1
A26: Move to Progress 1 if not first assessment ----> --------------------->---------------------->------------- | T26: Move to progress 2 if progression made for final evaluation ---->-------------->------------->
A30: INITIAL | C30: Performance Based Outcomes Measures (PBOM)-Unilateral | S30: Progress 1 | AJ30: Progress 2
C31: Musculoskeletal outcomes | E31: Test descriptor | F31: Equipment | G31: Current value | H31: Bench mark | I31: Comparisons | J31: Difference | K31: Target | T31: Musculoskeletal outcomes | V31: Test descriptor | W31: Equipment | X31: Current Value | Y31: Bench mark | Z31: Comparisons | AA31: Difference | AB31: Target | AC31: TEST 2 RESULTS | AK31: Musculoskeletal outcomes | AM31: Test descriptor | AN31: Equipment | AO31: Current vaue | AP31: Bench mark | AQ31: Comparisons | AR31: Difference | AS31: Target
F32: Metric | K32: Performance Deficit | L32: Test 1 Results | M32: Post treatment test | O32: Comparison | P32: Difference | Q32: Progress | R32: Test 2 Results | W32: Metric | AB32: Performance Deficit | AD32: Post treatment test | AF32: Comparison | AG32: Differance | AH32: Progression | AI32: Test results | AN32: Metric | AS32: Performance Deficit | AT32: Test 3 Results | AU32: Post treatment test | AW32: Comparisons | AX32: Difference | AY32: Progress | AZ32: Test results
C33: Initial | D33: dd | E33: tt | F33: Goniometre | G33: 123 | H33: 150 | I33: Current value vs benchmark | J33: =G33/H33 -> 0.82 | K33: 0.9 | L33: =IF(J33>=85%,"Pass",IF(J33<85%,"Fail","Error")) -> Fail | M33: Current Value | N33: Benchmark | O33: =I33 -> Current value vs benchmark | P33: =M34/N34 -> 0.96 | Q33: =M34/G33-1 -> 0.1707317073 | R33: =IF(P33>=85%,"Pass",IF(P33<85%,"Fail","Error")) -> Pass | T33: Progress 1 | U33: ww | V33: ww | W33: Biodex | X33: 450 | Y33: 800 | Z33: Current value vs benchmark | AA33: =X33/Y33 -> 0.5625 | AB33: 1 | AC33: =IF(AA33>=85%,"Pass",IF(AA33<85%,"Fail","Error")) -> Fail | AD33: Current value | AE33: Benchmark | AF33: =Z33 -> Current value vs benchmark | AG33: =AD34/AE34 -> 0.75 | AH33: =AD34/X33-1 -> 0.3333333333 | AI33: =IF(AG33>=85%,"Pass",IF(AG33<85%,"Fail","Error")) -> Fail | AK33: Progress 2 | AN33: Stopwatch | AQ33: Current value vs benchmark | AR33: =AO33/AP33 ->  | AS33: 1 | AT33: =IF(AR33>=85%,"Pass",IF(AR33<85%,"Fail","Error")) ->  | AU33: Current Value | AV33: Benchmark | AW33: =AF33 -> Current value vs benchmark | AX33: =AU34/AV34 ->  | AY33: =AO33/AU34-1 ->  | AZ33: =IF(AX33>=85%,"Pass",IF(AX33<85%,"Fail","Error")) -> 
F34: Degrees | K34: =J33-K33 -> -0.08 | M34: 144 | N34: =IF(D33="","Ignore",H33) -> 150 | W34: Nm | AB34: =AA33-AB33 -> -0.4375 | AD34: 600 | AE34: =IF(U33="","Ignore",Y33) -> 800 | AN34: Seconds | AS34: =AR33-AS33 ->  | AU34: =IF(AT39="Pass",AO39,"Enter New Value") ->  | AV34: =IF(AM33="","Ignore",Y33) -> Ignore
C35: Initial | D35: fgd | E35: xcvc | F35: Goniometre | G35: 150 | H35: 200 | I35: Current value vs benchmark | J35: =G35/H35 -> 0.75 | K35: 0.9 | L35: =IF(J35>=85%,"Pass",IF(J35<85%,"Fail","Error")) -> Fail | M35: =M33 -> Current Value | N35: =N33 -> Benchmark | O35: =I35 -> Current value vs benchmark | P35: =M36/N36 -> 0.945 | Q35: =M36/G35-1 -> 0.26 | R35: =IF(P35>=85%,"Pass",IF(P35<85%,"Fail","Error")) -> Pass | T35: =T33 -> Progress 1 | U35: fhd | V35: dg | W35: Biodex | X35: 67 | Y35: 100 | Z35: Current value vs benchmark | AA35: =X35/Y35 -> 0.67 | AB35: 1 | AC35: =IF(AA35>=85%,"Pass",IF(AA35<85%,"Fail","Error")) -> Fail | AD35: Current value | AE35: =AE33 -> Benchmark | AF35: =Z35 -> Current value vs benchmark | AG35: =AD36/AE36 -> 0.87 | AH35: =AD36/X35-1 -> 0.2985074627 | AI35: =IF(AG35>=85%,"Pass",IF(AG35<85%,"Fail","Error")) -> Pass | AK35: Progress 2 | AN35: Stopwatch | AQ35: Current value vs benchmark | AR35: =AO35/AP35 ->  | AS35: 0.95 | AT35: =IF(AR35>=85%,"Pass",IF(AR35<85%,"Fail","Error")) ->  | AU35: =AU33 -> Current Value | AV35: =AV33 -> Benchmark | AW35: =AW33 -> Current value vs benchmark | AX35: =AU36/AV36 ->  | AY35: =AO35/AU36-1 ->  | AZ35: =IF(AX35>=85%,"Pass",IF(AX35<85%,"Fail","Error")) -> 
F36: Degrees | K36: =J35-K35 -> -0.15 | M36: 189 | N36: =IF(D35="","Ignore",H35) -> 200 | W36: Kg | AB36: =AA35-AB35 -> -0.33 | AD36: 87 | AE36: =IF(U35="","Ignore",Y35) -> 100 | AN36: Joule | AS36: =AR35-AS35 ->  | AU36: =IF(AT35="Pass",AO35,"Enter New Value") ->  | AV36: =IF(AM33="","Ignore",Y33) -> Ignore
C37: Initial | F37: MicroFit/Biofet | I37: Current value vs benchmark | J37: =G37/H37 ->  | K37: 0.9 | L37: =IF(J37>=85%,"Pass",IF(J37<85%,"Fail","Error")) ->  | M37: =M35 -> Current Value | N37: =N35 -> Benchmark | O37: =I37 -> Current value vs benchmark | P37: =M38/N38 ->  | Q37: =M38/G37-1 ->  | R37: =IF(P37>=85%,"Pass",IF(P37<85%,"Fail","Error")) ->  | T37: =T35 -> Progress 1 | W37: DynoMo | Z37: Current value vs benchmark | AA37: =X37/Y37 ->  | AB37: 1 | AC37: =IF(AA37>=85%,"Pass",IF(AA37<85%,"Fail","Error")) ->  | AD37: Current value | AE37: =AE35 -> Benchmark | AF37: =Z37 -> Current value vs benchmark | AG37: =AD38/AE38 ->  | AH37: =AD38/X37-1 ->  | AI37: =IF(AG37>=85%,"Pass",IF(AG37<85%,"Fail","Error")) ->  | AK37: Progress 2 | AN37: MicroFit/Biofet | AQ37: Current value vs benchmark | AR37: =AO37/AP37 ->  | AS37: 0.95 | AT37: =IF(AR37>=85%,"Pass",IF(AR37<85%,"Fail","Error")) ->  | AU37: =AU35 -> Current Value | AV37: Benchmark | AW37: Current value vs benchmark | AX37: =AU38/AV38 ->  | AY37: =AO37/AU38-1 ->  | AZ37: =IF(AX37>=85%,"Pass",IF(AX37<85%,"Fail","Error")) -> 
F38: Joule | K38: =J37-K37 ->  | M38: =IF(L37="Pass",G37,"Enter New Value") ->  | N38: =IF(D37="","Ignore",H37) -> Ignore | W38: Joule | AB38: =AA37-AB37 ->  | AD38: =IF(AC37="Pass",X37,"Enter New Value") ->  | AE38: =IF(U37="","Ignore",Y37) -> Ignore | AN38: Joule | AS38: =AR37-AS37 ->  | AU38: =IF(AT37="Pass",AO37,"Enter New Value") ->  | AV38: =IF(AM33="","Ignore",Y33) -> Ignore
C39: Initial | F39: Step | I39: Current value vs benchmark | J39: =G39/H39 ->  | K39: 1 | L39: =IF(J39>=85%,"Pass",IF(J39<85%,"Fail","Error")) ->  | M39: =M37 -> Current Value | N39: Benchmark | O39: =I39 -> Current value vs benchmark | P39: =M40/N40 ->  | Q39: =M40/G39-1 ->  | R39: =IF(P39>=85%,"Pass",IF(P39<85%,"Fail","Error")) ->  | T39: =T37 -> Progress 1 | W39: MicroFit/Biofet | Z39: Current value vs benchmark | AA39: =X39/Y39 ->  | AB39: 1 | AC39: =IF(AA39>=85%,"Pass",IF(AA39<85%,"Fail","Error")) ->  | AD39: Current value | AE39: =AE37 -> Benchmark | AF39: =Z39 -> Current value vs benchmark | AG39: =AD40/AE40 ->  | AH39: =AD40/X39-1 ->  | AI39: =IF(AG39>=85%,"Pass",IF(AG39<85%,"Fail","Error")) ->  | AK39: Progress 2 | AN39: MicroFit/Biofet | AQ39: Current value vs benchmark | AR39: =AO39/AP39 ->  | AS39: 0.95 | AT39: =IF(AR39>=85%,"Pass",IF(AR39<85%,"Fail","Error")) ->  | AU39: =AU37 -> Current Value | AV39: Benchmark | AW39: Current value vs benchmark | AX39: =AU40/AV40 ->  | AY39: =AO39/AU40-1 ->  | AZ39: =IF(AX39>=85%,"Pass",IF(AX39<85%,"Fail","Error")) -> 
F40: Numeric value | K40: =J39-K39 ->  | M40: =IF(L39="Pass",G39,"Enter New Value") ->  | N40: =IF(D39="","Ignore",H39) -> Ignore | W40: Joule | AB40: =AA39-AB39 ->  | AD40: =IF(AC39="Pass",X39,"Enter New Value") ->  | AE40: =IF(U39="","Ignore",Y39) -> Ignore | AN40: Joule | AS40: =AR39-AS39 ->  | AU40: =IF(AT41="Pass",AO41,"Enter New Value") ->  | AV40: =IF(AM33="","Ignore",Y33) -> Ignore
C41: Initial | F41: MicroFit/Biofet | I41: Current value vs benchmark | J41: =G41/H41 ->  | K41: 1 | L41: =IF(J41>=85%,"Pass",IF(J41<85%,"Fail","Error")) ->  | M41: =M39 -> Current Value | N41: Benchmark | O41: =I41 -> Current value vs benchmark | P41: =M42/N42 ->  | Q41: =M42/G41-1 ->  | R41: =IF(P41>=85%,"Pass",IF(P41<85%,"Fail","Error")) ->  | T41: =T39 -> Progress 1 | W41: MicroFit/Biofet | Z41: Current value vs benchmark | AA41: =X41/Y41 ->  | AB41: 1 | AC41: =IF(AA41>=85%,"Pass",IF(AA41<85%,"Fail","Error")) ->  | AD41: Current value | AE41: =AE39 -> Benchmark | AF41: 6 | AG41: =AD42/AE42 ->  | AH41: =AD42/X41-1 ->  | AI41: =IF(AG41>=85%,"Pass",IF(AG41<85%,"Fail","Error")) ->  | AK41: Progress 2 | AN41: MicroFit/Biofet | AQ41: Current value vs benchmark | AR41: =AO41/AP41 ->  | AS41: 0.95 | AT41: =IF(AR41>=85%,"Pass",IF(AR41<85%,"Fail","Error")) ->  | AU41: =AU39 -> Current Value | AV41: Benchmark | AW41: Current value vs benchmark | AX41: =AU42/AV42 ->  | AY41: =AO41/AU42-1 ->  | AZ41: =IF(AX41>=85%,"Pass",IF(AX41<85%,"Fail","Error")) -> 
F42: Kg | K42: =J41-K41 ->  | M42: =IF(L41="Pass",G41,"Enter New Value") ->  | N42: =IF(D41="","Ignore",H41) -> Ignore | W42: Joule | AB42: =AA41-AB41 ->  | AD42: =IF(AC41="Pass",X41,"Enter New Value") ->  | AE42: =IF(U41="","Ignore",Y41) -> Ignore | AN42: Joule | AS42: =AR41-AS41 ->  | AU42: =IF(AT41="Pass",AO41,"Enter New Value") ->  | AV42: =IF(AM33="","Ignore",Y33) -> Ignore
F43: MicroFit/Biofet | I43: =#REF! ->  | J43: =#REF! ->  | K43: 0.95 | M43: Injured | N43: Uninjured | P43: =M99 ->  | T43: =T41 -> Progress 1 | U43: =D33 -> dd | V43: =E33 -> tt | W43: =F33 -> Goniometre | X43: =M34 -> 144 | Y43: =H33 -> 150 | Z43: Current value vs benchmark | AA43: =X43/Y43 -> 0.96 | AB43: =K33 -> 0.9 | AC43: =IF(AA43>=85%,"Pass",IF(AA43<85%,"Fail","Error")) -> Pass | AD43: =AD41 -> Current value | AE43: =AE41 -> Benchmark | AF43: =Z43 -> Current value vs benchmark | AG43: =AD44/AE44 -> 0.96 | AH43: =AD44/X43-1 -> 0 | AI43: =IF(AG43>=85%,"Pass",IF(AG43<85%,"Fail","Error")) -> Pass | AK43: Progress 2 | AL43: =U33 -> ww | AM43: =V33 -> ww | AN43: =W33 -> Biodex | AO43: =AD34 -> 600 | AP43: =AC43 -> Pass | AQ43: Current value vs benchmark | AR43: =AO43/AP43 ->  | AS43: =AB33 -> 1 | AT43: =IF(AR43>=85%,"Pass",IF(AR43<85%,"Fail","Error")) ->  | AU43: =AU41 -> Current Value | AV43: Benchmark | AW43: Current value vs benchmark | AX43: =AU44/AV44 ->  | AY43: =AO43/AU44-1 ->  | AZ43: =IF(AX43>=85%,"Pass",IF(AX43<85%,"Fail","Error")) -> 
F44: Joule | K44: =J43-K43 ->  | W44: =F34 -> Degrees | AB44: =AA43-AB43 -> 0.06 | AD44: =IF(AC43="Pass",X43,"Enter New Value") -> 144 | AE44: =IF(U43="","Ignore",Y43) -> 150 | AN44: =W34 -> Nm | AS44: =AR43-AS43 ->  | AU44: =IF(AT43="Pass",AO43,"Enter New Value") ->  | AV44: =IF(AM33="","Ignore",Y33) -> Ignore
F45: MicroFit/Biofet | I45: =#REF! ->  | J45: =#REF! ->  | K45: 0.95 | M45: Injured | N45: Uninjured | P45: =M101 ->  | T45: =T43 -> Progress 1 | U45: =D35 -> fgd | V45: =E35 -> xcvc | W45: Goniometre | X45: =M36 -> 189 | Y45: =H35 -> 200 | Z45: Current value vs benchmark | AA45: =X45/Y45 -> 0.945 | AB45: =K35 -> 0.9 | AC45: =IF(AA45>=85%,"Pass",IF(AA45<85%,"Fail","Error")) -> Pass | AD45: =AD43 -> Current value | AE45: Benchmark | AF45: =Z45 -> Current value vs benchmark | AG45: 0.945 | AH45: =AD46/X45-1 -> 0 | AI45: =IF(AG45>=85%,"Pass",IF(AG45<85%,"Fail","Error")) -> Pass | AK45: Progress 2 | AL45: =U35 -> fhd | AM45: =V35 -> dg | AN45: Biodex | AO45: =AD36 -> 87 | AP45: =AC45 -> Pass | AQ45: Current value vs benchmark | AR45: =AO45/AP45 ->  | AS45: =AB35 -> 1 | AT45: =IF(AR45>=85%,"Pass",IF(AR45<85%,"Fail","Error")) ->  | AU45: =AU43 -> Current Value | AV45: Benchmark | AW45: Current value vs benchmark | AX45: =AU46/AV46 ->  | AY45: =AO45/AU46-1 ->  | AZ45: =IF(AX45>=85%,"Pass",IF(AX45<85%,"Fail","Error")) -> 
F46: Joule | K46: =J45-K45 ->  | W46: Degrees | AB46: =AA45-AB45 -> 0.045 | AD46: =IF(AC45="Pass",X45,"Enter New Value") -> 189 | AE46: =IF(U45="","Ignore",Y45) -> 200 | AN46: Kg | AS46: =AR45-AS45 ->  | AU46: =IF(AT45="Pass",AO45,"Enter New Value") ->  | AV46: =IF(AM33="","Ignore",Y33) -> Ignore
F47: MicroFit/Biofet | I47: =#REF! ->  | J47: =#REF! ->  | K47: 0.95 | M47: Injured | N47: Uninjured | P47: =M103 ->  | T47: =T45 -> Progress 1 | U47: =D37 -> 0 | V47: =E37 -> 0 | W47: MicroFit/Biofet | X47: =M38 ->  | Y47: =H37 -> 0 | Z47: Current value vs benchmark | AA47: =X47/Y47 ->  | AB47: =K37 -> 0.9 | AC47: =IF(AA47>=85%,"Pass",IF(AA47<85%,"Fail","Error")) ->  | AD47: =AD45 -> Current value | AE47: Benchmark | AF47: =Z47 -> Current value vs benchmark | AG47: =AD48/AE48 ->  | AH47: =AD48/X47-1 ->  | AI47: =IF(AG47>=85%,"Pass",IF(AG47<85%,"Fail","Error")) ->  | AK47: Progress 2 | AL47: =U37 -> 0 | AM47: =V37 -> 0 | AN47: DynoMo | AO47: =AD38 ->  | AP47: =AC47 ->  | AQ47: Current value vs benchmark | AR47: =AO47/AP47 ->  | AS47: =AB37 -> 1 | AT47: =IF(AR47>=85%,"Pass",IF(AR47<85%,"Fail","Error")) ->  | AU47: =AU45 -> Current Value | AV47: Benchmark | AW47: Current value vs benchmark | AX47: =AU48/AV48 ->  | AY47: =AO47/AU48-1 ->  | AZ47: =IF(AX47>=85%,"Pass",IF(AX47<85%,"Fail","Error")) -> 
F48: Joule | K48: =J47-K47 ->  | W48: Joule | AB48: =AA47-AB47 ->  | AD48: =IF(AC47="Pass",X47,"Enter New Value") ->  | AE48: =IF(U47="","Ignore",Y47) -> 0 | AN48: Joule | AS48: =AR47-AS47 ->  | AU48: =IF(AT47="Pass",AO47,"Enter New Value") ->  | AV48: =IF(AM33="","Ignore",Y33) -> Ignore
F49: MicroFit/Biofet | I49: =#REF! ->  | J49: =#REF! ->  | K49: 0.95 | M49: Injured | N49: Uninjured | P49: =M105 ->  | T49: =T47 -> Progress 1 | U49: =D39 -> 0 | V49: =E39 -> 0 | W49: Step | X49: =M40 ->  | Y49: =H39 -> 0 | Z49: Current value vs benchmark | AA49: =X49/Y49 ->  | AB49: =K39 -> 1 | AC49: =IF(AA49>=85%,"Pass",IF(AA49<85%,"Fail","Error")) ->  | AD49: =AD47 -> Current value | AE49: Benchmark | AF49: =Z49 -> Current value vs benchmark | AG49: =AD50/AE50 ->  | AH49: =AD50/X49-1 ->  | AI49: =IF(AG49>=85%,"Pass",IF(AG49<85%,"Fail","Error")) ->  | AK49: Progress 2 | AL49: =U39 -> 0 | AM49: =V39 -> 0 | AN49: MicroFit/Biofet | AO49: =AD40 ->  | AP49: =AC49 ->  | AQ49: Current value vs benchmark | AR49: =AO49/AP49 ->  | AS49: =AB39 -> 1 | AT49: =IF(AR49>=85%,"Pass",IF(AR49<85%,"Fail","Error")) ->  | AU49: =AU47 -> Current Value | AV49: Benchmark | AW49: Current value vs benchmark | AX49: =AU50/AV50 ->  | AY49: =AO49/AU50-1 ->  | AZ49: =IF(AX49>=85%,"Pass",IF(AX49<85%,"Fail","Error")) -> 
F50: Joule | K50: =J49-K49 ->  | W50: Numeric value | AB50: =AA49-AB49 ->  | AD50: =IF(AC49="Pass",X49,"Enter New Value") ->  | AE50: =IF(U49="","Ignore",Y49) -> 0 | AN50: Joule | AS50: =AR49-AS49 ->  | AU50: =IF(AT49="Pass",AO49,"Enter New Value") ->  | AV50: =IF(AM33="","Ignore",Y33) -> Ignore
F51: MicroFit/Biofet | I51: =#REF! ->  | J51: =#REF! ->  | K51: 0.95 | M51: Injured | N51: Uninjured | P51: =M107 ->  | T51: =T49 -> Progress 1 | U51: =D41 -> 0 | V51: =E41 -> 0 | W51: MicroFit/Biofet | X51: =M42 ->  | Y51: =H41 -> 0 | Z51: Current value vs benchmark | AA51: =X51/Y51 ->  | AB51: =K41 -> 1 | AC51: =IF(AA51>=85%,"Pass",IF(AA51<85%,"Fail","Error")) ->  | AD51: =AD49 -> Current value | AE51: Benchmark | AF51: =Z51 -> Current value vs benchmark | AG51: =AD52/AE52 ->  | AH51: =AD52/X51-1 ->  | AI51: =IF(AG51>=85%,"Pass",IF(AG51<85%,"Fail","Error")) ->  | AK51: Progress 2 | AL51: =U41 -> 0 | AM51: =V41 -> 0 | AN51: MicroFit/Biofet | AO51: =AD42 ->  | AP51: =AC51 ->  | AQ51: Current value vs benchmark | AR51: =AO51/AP51 ->  | AS51: =AB41 -> 1 | AT51: =IF(AR51>=85%,"Pass",IF(AR51<85%,"Fail","Error")) ->  | AU51: =AU49 -> Current Value | AV51: =AV49 -> Benchmark | AW51: Current value vs benchmark | AX51: =AU52/AV52 ->  | AY51: =AO51/AU52-1 ->  | AZ51: =IF(AX51>=85%,"Pass",IF(AX51<85%,"Fail","Error")) -> 
F52: Joule | K52: =J51-K51 ->  | W52: Kg | AB52: =AA51-AB51 ->  | AD52: =IF(AC51="Pass",X51,"Enter New Value") ->  | AE52: =IF(U51="","Ignore",Y51) -> 0 | AN52: Joule | AS52: =AR51-AS51 ->  | AU52: =IF(AT51="Pass",AO51,"Enter New Value") ->  | AV52: =IF(AM33="","Ignore",Y33) -> Ignore
E53: j | AK53: =AK51 -> Progress 2 | AL53: =U43 -> dd | AM53: =V43 -> tt | AN53: Goniometre | AO53: =AD44 -> 144 | AP53: =Y43 -> 150 | AQ53: Current value vs benchmark | AR53: =AO53/AP53 -> 0.96 | AS53: =K33 -> 0.9 | AT53: =IF(AR53>=85%,"Pass",IF(AR53<85%,"Fail","Error")) -> Pass | AU53: =AU51 -> Current Value | AV53: Benchmark | AW53: Current value vs benchmark | AX53: =AU54/AV54 ->  | AY53: =AO53/AU54-1 -> 0 | AZ53: =IF(AX53>=85%,"Pass",IF(AX53<85%,"Fail","Error")) -> 
AN54: Degrees | AS54: =AR53-AS53 -> 0.06 | AU54: =IF(AT53="Pass",AO53,"Enter New Value") -> 144 | AV54: =IF(AM33="","Ignore",Y33) -> Ignore
AK55: =AK53 -> Progress 2 | AL55: =U45 -> fgd | AM55: =V45 -> xcvc | AN55: Goniometre | AO55: =AD46 -> 189 | AP55: =Y45 -> 200 | AQ55: Current value vs benchmark | AR55: =AO55/AP55 -> 0.945 | AS55: =K35 -> 0.9 | AT55: =IF(AR55>=85%,"Pass",IF(AR55<85%,"Fail","Error")) -> Pass | AU55: =AU53 -> Current Value | AV55: Benchmark | AW55: Current value vs benchmark | AX55: =AU56/AV56 ->  | AY55: =AO55/AU56-1 -> 0 | AZ55: =IF(AX55>=85%,"Pass",IF(AX55<85%,"Fail","Error")) -> 
AN56: Degrees | AS56: =AR55-AS55 -> 0.045 | AU56: =IF(AT55="Pass",AO55,"Enter New Value") -> 189 | AV56: =IF(AM33="","Ignore",Y33) -> Ignore
AK57: =AK55 -> Progress 2 | AL57: =U47 -> 0 | AM57: =V47 -> 0 | AN57: MicroFit/Biofet | AO57: 22.9 | AP57: =Y47 -> 0 | AQ57: Current value vs benchmark | AR57: =AO57/AP57 ->  | AS57: =K37 -> 0.9 | AT57: =IF(AR57>=85%,"Pass",IF(AR57<85%,"Fail","Error")) ->  | AU57: =AU55 -> Current Value | AV57: Benchmark | AW57: Current value vs benchmark | AX57: =AU58/AV58 ->  | AY57: =AO57/AU58-1 ->  | AZ57: =IF(AX57>=85%,"Pass",IF(AX57<85%,"Fail","Error")) -> 
AN58: Joule | AS58: =AR57-AS57 ->  | AU58: =IF(AT57="Pass",AO57,"Enter New Value") ->  | AV58: =IF(AM33="","Ignore",Y33) -> Ignore
AK59: =AK57 -> Progress 2 | AL59: =U49 -> 0 | AM59: =V49 -> 0 | AN59: Step | AO59: =AD50 ->  | AP59: =Y49 -> 0 | AQ59: Current value vs benchmark | AR59: =AO59/AP59 ->  | AS59: =K39 -> 1 | AT59: =IF(AR59>=85%,"Pass",IF(AR59<85%,"Fail","Error")) ->  | AU59: =AU57 -> Current Value | AV59: Benchmark | AW59: Current value vs benchmark | AX59: =AU60/AV60 ->  | AY59: =AO59/AU60-1 ->  | AZ59: =IF(AX59>=85%,"Pass",IF(AX59<85%,"Fail","Error")) -> 
AN60: Numeric value | AS60: =AR59-AS59 ->  | AU60: =IF(AT59="Pass",AO59,"Enter New Value") ->  | AV60: =IF(AM33="","Ignore",Y33) -> Ignore
AK61: =AK59 -> Progress 2 | AL61: =U51 -> 0 | AM61: =V51 -> 0 | AN61: MicroFit/Biofet | AO61: =AD52 ->  | AP61: =Y51 -> 0 | AQ61: Current value vs benchmark | AR61: =AO61/AP61 ->  | AS61: =K41 -> 1 | AT61: =IF(AR61>=85%,"Pass",IF(AR61<85%,"Fail","Error")) ->  | AU61: =AU59 -> Current Value | AV61: Benchmark | AW61: Current value vs benchmark | AX61: =AU62/AV62 ->  | AY61: =AO61/AU62-1 ->  | AZ61: =IF(AX61>=85%,"Pass",IF(AX61<85%,"Fail","Error")) -> 
AN62: Kg | AS62: =AR61-AS61 ->  | AU62: =IF(AT61="Pass",AO61,"Enter New Value") ->  | AV62: =IF(AM33="","Ignore",Y33) -> Ignore
E86: Performance Based Outcomes Measures (PBOM)-Unilateral | W86: Performance Based Outcomes Measures (PBOM)-Unilateral
E87: Musculoskeletal outcomes | G87: Test descriptor | H87: Injured | I87: Bench mark | K87: Benchmark | L87: Comparisons | M87: Difference | N87: Target | W87: Musculoskeletal outcomes | Y87: Equipment | Z87: Bench mark | AB87: Benchmark | AD87: Comparisons | AE87: Difference | AG87: Target
N88: Performance Deficit | Y88: Metric | AG88: Performance Deficit
E89: =C33 -> Initial | F89: =D33 -> dd | G89: =E33 -> tt | H89: =M34 -> 144 | I89: =H33 -> 150 | J89: =IF(I89>0,I89,#REF!) -> 150 | K89: =H33 -> 150 | L89: =IF(OR(#REF!/J89>$L$23,J89=0), "Injured vs uninjured", "Injured vs benchmark") ->  | M89: =IF(L89="Injured vs Uninjured", H89/#REF!,H89/J89) ->  | N89: 1 | W89: =E89 -> Initial | X89: =F89 -> dd | Y89: =#REF! ->  | Z89: =I89 -> 150 | AB89: =K89 -> 150 | AD89: Injured vs benchmark | AE89: =IF(AD89="Injured vs Uninjured",#REF! /#REF!,H89/Z89) -> 0.96 | AG89: 1
N90: =M89-N89 ->  | Y90: =#REF! ->  | AG90: =AE89-AG89 -> -0.04
E91: =E89 -> Initial | F91: =D35 -> fgd | G91: =E35 -> xcvc | H91: =M36 -> 189 | I91: =H35 -> 200 | J91: =IF(I91>0,I91,#REF!) -> 200 | K91: =H35 -> 200 | L91: =IF(OR(#REF!/J91>$L$23,J91=0), "Injured vs uninjured", "Injured vs benchmark") ->  | M91: =IF(L91="Injured vs Uninjured", H91/#REF!,H91/J91) ->  | N91: 0.95 | W91: =E91 -> Initial | X91: =F91 -> fgd | Y91: =#REF! ->  | Z91: =I91 -> 200 | AB91: =K91 -> 200 | AD91: Injured vs uninjured | AE91: =IF(AD91="Injured vs Uninjured",#REF! /#REF!,H91/Z91) ->  | AG91: 0.95
N92: =M91-N91 ->  | Y92: =#REF! ->  | AG92: =AE91-AG91 -> 
E93: =E91 -> Initial | F93: =D37 -> 0 | G93: =E37 -> 0 | H93: =M38 ->  | I93: =H37 -> 0 | J93: =IF(I93>0,I93,#REF!) ->  | K93: =H37 -> 0 | L93: =IF(OR(#REF!/J93>$L$23,J93=0), "Injured vs uninjured", "Injured vs benchmark") ->  | M93: =IF(L93="Injured vs Uninjured", H93/#REF!,H93/J93) ->  | N93: 0.95 | W93: =E93 -> Initial | X93: =F93 -> 0 | Y93: =#REF! ->  | Z93: =I93 -> 0 | AB93: =K93 -> 0 | AD93: Injured vs uninjured | AE93: =IF(AD93="Injured vs Uninjured",#REF! /#REF!,H93/Z93) ->  | AG93: 0.95
N94: =M93-N93 ->  | Y94: =#REF! ->  | AG94: =AE93-AG93 -> 
E95: =E93 -> Initial | F95: =D39 -> 0 | G95: =E39 -> 0 | H95: =M40 ->  | I95: =H39 -> 0 | J95: =IF(I95>0,I95,#REF!) ->  | K95: =H39 -> 0 | L95: =IF(OR(#REF!/J95>$L$23,J95=0), "Injured vs uninjured", "Injured vs benchmark") ->  | M95: =IF(L95="Injured vs Uninjured", H95/#REF!,H95/J95) ->  | N95: 0.95 | W95: =E95 -> Initial | X95: =F95 -> 0 | Y95: =#REF! ->  | Z95: =I95 -> 0 | AB95: =K95 -> 0 | AD95: Injured vs uninjured | AE95: =IF(AD95="Injured vs Uninjured",#REF! /#REF!,H95/Z95) ->  | AG95: 0.95
N96: =M95-N95 ->  | Y96: =#REF! ->  | AG96: =AE95-AG95 -> 
E97: =E95 -> Initial | F97: =D41 -> 0 | G97: =E41 -> 0 | H97: =M42 ->  | I97: =H41 -> 0 | J97: =IF(I97>0,I97,#REF!) ->  | K97: =H41 -> 0 | L97: =IF(OR(#REF!/J97>$L$23,J97=0), "Injured vs uninjured", "Injured vs benchmark") ->  | M97: =IF(L97="Injured vs Uninjured", H97/#REF!,H97/J97) ->  | N97: 0.95 | W97: =E97 -> Initial | X97: =F97 -> 0 | Y97: =#REF! ->  | Z97: =I97 -> 0 | AB97: =K97 -> 0 | AD97: Injured vs uninjured | AE97: =IF(AD97="Injured vs Uninjured",#REF! /#REF!,H97/Z97) ->  | AG97: 0.95
N98: =M97-N97 ->  | Y98: =#REF! ->  | AG98: =AE97-AG97 -> 
E99: =E97 -> Initial | F99: =D43 -> 0 | G99: =E43 -> 0 | H99: =M44 -> 0 | I99: =H43 -> 0 | J99: =IF(I99>0,I99,#REF!) ->  | K99: =H43 -> 0 | L99: =IF(OR(#REF!/J99>$L$23,J99=0), "Injured vs uninjured", "Injured vs benchmark") ->  | M99: =IF(L99="Injured vs Uninjured", H99/#REF!,H99/J99) ->  | N99: 0.95 | W99: =E99 -> Initial | X99: =F99 -> 0 | Y99: =#REF! ->  | Z99: =I99 -> 0 | AB99: =K99 -> 0 | AD99: Injured vs uninjured | AE99: =IF(AD99="Injured vs Uninjured",#REF! /#REF!,H99/Z99) ->  | AG99: 0.95
N100: =M99-N99 ->  | Y100: =#REF! ->  | AG100: =AE99-AG99 -> 
E101: =E99 -> Initial | F101: =D45 -> 0 | G101: =E45 -> 0 | H101: =M46 -> 0 | I101: =H45 -> 0 | J101: =IF(I101>0,I101,#REF!) ->  | K101: =H45 -> 0 | L101: =IF(OR(#REF!/J101>$L$23,J101=0), "Injured vs uninjured", "Injured vs benchmark") ->  | M101: =IF(L101="Injured vs Uninjured", H101/#REF!,H101/J101) ->  | N101: 0.95 | W101: =E101 -> Initial | X101: =F101 -> 0 | Y101: =#REF! ->  | Z101: =I101 -> 0 | AB101: =K101 -> 0 | AD101: Injured vs uninjured | AE101: =IF(AD101="Injured vs Uninjured",#REF! /#REF!,H101/Z101) ->  | AG101: 0.95
N102: =M101-N101 ->  | Y102: =#REF! ->  | AG102: =AE101-AG101 -> 
E103: =E101 -> Initial | F103: =D47 -> 0 | G103: =E47 -> 0 | H103: =M48 -> 0 | I103: =H47 -> 0 | J103: =IF(I103>0,I103,#REF!) ->  | K103: =H47 -> 0 | L103: =IF(OR(#REF!/J103>$L$23,J103=0), "Injured vs uninjured", "Injured vs benchmark") ->  | M103: =IF(L103="Injured vs Uninjured", H103/#REF!,H103/J103) ->  | N103: 0.95 | W103: =E103 -> Initial | X103: =F103 -> 0 | Y103: =#REF! ->  | Z103: =I103 -> 0 | AB103: =K103 -> 0 | AD103: Injured vs uninjured | AE103: =IF(AD103="Injured vs Uninjured",#REF! /#REF!,H103/Z103) ->  | AG103: 0.95
N104: =M103-N103 ->  | Y104: =#REF! ->  | AG104: =AE103-AG103 -> 
E105: =E103 -> Initial | F105: =D49 -> 0 | G105: =E49 -> 0 | H105: =M50 -> 0 | I105: =H49 -> 0 | J105: =IF(I105>0,I105,#REF!) ->  | K105: =H49 -> 0 | L105: =IF(OR(#REF!/J105>$L$23,J105=0), "Injured vs uninjured", "Injured vs benchmark") ->  | M105: =IF(L105="Injured vs Uninjured", H105/#REF!,H105/J105) ->  | N105: 0.95 | W105: =E105 -> Initial | X105: =F105 -> 0 | Y105: =#REF! ->  | Z105: =I105 -> 0 | AB105: =K105 -> 0 | AD105: Injured vs uninjured | AE105: =IF(AD105="Injured vs Uninjured",#REF! /#REF!,H105/Z105) ->  | AG105: 0.95
N106: =M105-N105 ->  | Y106: =#REF! ->  | AG106: =AE105-AG105 -> 
E107: =E105 -> Initial | F107: =D51 -> 0 | G107: =E51 -> 0 | H107: =M52 -> 0 | I107: =H51 -> 0 | J107: =IF(I107>0,I107,#REF!) ->  | K107: =H51 -> 0 | L107: =IF(OR(#REF!/J107>$L$23,J107=0), "Injured vs uninjured", "Injured vs benchmark") ->  | M107: =IF(L107="Injured vs Uninjured", H107/#REF!,H107/J107) ->  | N107: 0.95 | W107: =E107 -> Initial | X107: =F107 -> 0 | Y107: =#REF! ->  | Z107: =I107 -> 0 | AB107: =K107 -> 0 | AD107: Injured vs uninjured | AE107: =IF(AD107="Injured vs Uninjured",#REF! /#REF!,H107/Z107) ->  | AG107: 0.95
N108: =M107-N107 ->  | Y108: =#REF! ->  | AG108: =AE107-AG107 -> 
W111: Musculoskeletal outcomes | Y111: Equipment | Z111: Bench mark | AB111: Benchmark | AD111: Comparisons | AE111: Difference | AG111: Target
Y112: Metric | AG112: Performance Deficit
W113: =T33 -> Progress 1 | X113: =U33 -> ww | Y113: =W33 -> Biodex | Z113: =Y33 -> 800 | AB113: =IF(Z113>0,Z113,#REF!) -> 800 | AD113: =IF(OR(#REF!/Z113>$L$23,Z113=0), "Injured vs uninjured", "Injured vs benchmark") ->  | AE113: =IF(AD113="Injured vs Uninjured",#REF!/ Z113,#REF!/AB113) ->  | AG113: 1
Y114: =W34 -> Nm | AG114: =AE113-AG113 -> 
W115: =T35 -> Progress 1 | X115: =U35 -> fhd | Y115: Biodex | Z115: =Y35 -> 100 | AB115: =IF(Z115>0,Z115,#REF!) -> 100 | AD115: =IF(OR(#REF!/Z115>$L$23,Z115=0), "Injured vs uninjured", "Injured vs benchmark") ->  | AE115: =IF(AD115="Injured vs Uninjured",#REF!/ Z115,#REF!/AB115) ->  | AG115: 0.95
Y116: Kg | AG116: =AE115-AG115 -> 
W117: =T37 -> Progress 1 | X117: =U37 -> 0 | Y117: DynoMo | Z117: =Y37 -> 0 | AB117: =IF(Z117>0,Z117,#REF!) ->  | AD117: =IF(OR(#REF!/Z117>$L$23,Z117=0), "Injured vs uninjured", "Injured vs benchmark") ->  | AE117: =IF(AD117="Injured vs Uninjured",#REF!/ Z117,#REF!/AB117) ->  | AG117: 0.95
Y118: Joule | AG118: =AE117-AG117 -> 
W119: =T39 -> Progress 1 | X119: =U39 -> 0 | Y119: MicroFit/Biofet | Z119: =Y39 -> 0 | AB119: =IF(Z119>0,Z119,#REF!) ->  | AD119: =IF(OR(#REF!/Z119>$L$23,Z119=0), "Injured vs uninjured", "Injured vs benchmark") ->  | AE119: =IF(AD119="Injured vs Uninjured",#REF!/ Z119,#REF!/AB119) ->  | AG119: 0.95
Y120: Joule | AG120: =AE119-AG119 -> 
W121: =T41 -> Progress 1 | X121: =U41 -> 0 | Y121: MicroFit/Biofet | Z121: =Y41 -> 0 | AB121: =IF(Z121>0,Z121,#REF!) ->  | AD121: =IF(OR(#REF!/Z121>$L$23,Z121=0), "Injured vs uninjured", "Injured vs benchmark") ->  | AE121: =IF(AD121="Injured vs Uninjured",#REF!/ Z121,#REF!/AB121) ->  | AG121: 0.95
Y122: Joule | AG122: =AE121-AG121 -> 
W123: =T43 -> Progress 1 | X123: =U43 -> dd | Y123: Goniometre | Z123: =Y43 -> 150 | AB123: =IF(Z123>0,Z123,#REF!) -> 150 | AD123: =IF(OR(#REF!/Z123>$L$23,Z123=0), "Injured vs uninjured", "Injured vs benchmark") ->  | AE123: =IF(AD123="Injured vs Uninjured",#REF!/ Z123,#REF!/AB123) ->  | AG123: 0.95
Y124: Degrees | AG124: =AE123-AG123 -> 
W125: =T45 -> Progress 1 | X125: =U45 -> fgd | Y125: Goniometre | Z125: =Y45 -> 200 | AB125: =IF(Z125>0,Z125,#REF!) -> 200 | AD125: =IF(OR(#REF!/Z125>$L$23,Z125=0), "Injured vs uninjured", "Injured vs benchmark") ->  | AE125: =IF(AD125="Injured vs Uninjured",#REF!/ Z125,#REF!/AB125) ->  | AG125: 0.95
Y126: Degrees | AG126: =AE125-AG125 -> 
W127: =T47 -> Progress 1 | X127: =U47 -> 0 | Y127: MicroFit/Biofet | Z127: =Y47 -> 0 | AB127: =IF(Z127>0,Z127,#REF!) ->  | AD127: =IF(OR(#REF!/Z127>$L$23,Z127=0), "Injured vs uninjured", "Injured vs benchmark") ->  | AE127: =IF(AD127="Injured vs Uninjured",#REF!/ Z127,#REF!/AB127) ->  | AG127: 0.95
Y128: Joule | AG128: =AE127-AG127 -> 
W129: =T49 -> Progress 1 | X129: =U49 -> 0 | Y129: Step | Z129: =Y49 -> 0 | AB129: =IF(Z129>0,Z129,#REF!) ->  | AD129: =IF(OR(#REF!/Z129>$L$23,Z129=0), "Injured vs uninjured", "Injured vs benchmark") ->  | AE129: =IF(AD129="Injured vs Uninjured",#REF!/ Z129,#REF!/AB129) ->  | AG129: 0.95
Y130: Numeric value | AG130: =AE129-AG129 -> 
W131: =T51 -> Progress 1 | X131: =U51 -> 0 | Y131: MicroFit/Biofet | Z131: =Y51 -> 0 | AB131: =IF(Z131>0,Z131,#REF!) ->  | AD131: =IF(OR(#REF!/Z131>$L$23,Z131=0), "Injured vs uninjured", "Injured vs benchmark") ->  | AE131: =IF(AD131="Injured vs Uninjured",#REF!/ Z131,#REF!/AB131) ->  | AG131: 0.95
Y132: Kg | AG132: =AE131-AG131 -> 

Sheet Initial_Rep
A1: Initial report
D5: Translate research into private practice
A6: ='Input Sheet'!A8 -> Initial assesment | C6: ='Input Sheet'!C8 -> 1 | E6: ='Input Sheet'!$E$8 -> Clinical summary
A7: ='Input Sheet'!A9 -> Date: | C7: ='Input Sheet'!C9 -> 44717 | E7: ='Input Sheet'!E9 -> History: | F7: ='Input Sheet'!F9 -> Jan was operated on the 12the of April, and with ACLR
A8: ='Input Sheet'!A10 -> Name & Surname: | C8: ='Input Sheet'!C10 -> Koos
A9: ='Input Sheet'!A11 -> Field | C9: ='Input Sheet'!C11 -> Orthopeadic | E9: ='Input Sheet'!E11 -> Clinical symptoms: | F9: ='Input Sheet'!F11 -> Patella femoral pain
A10: ='Input Sheet'!A12 -> Diagnose: | C10: Primary | D10: Secondary | E10: ='Input Sheet'!E12 -> Current intervention: | F10: ='Input Sheet'!F12 -> Exercise rehabilitation
C11: ='Input Sheet'!C13 -> ACLR | D11: ='Input Sheet'!D13 -> NSLBP | E11: ='Input Sheet'!E13 -> Clinician Involve: | F11: ='Input Sheet'!F13 -> Marinelle(Biokineticist)
A12: ='Input Sheet'!A14 -> Months/weeks after injury | C12: ='Input Sheet'!C14 -> 5 months | E12: ='Input Sheet'!E14 -> Projected plan: | F12: ='Input Sheet'!F14 -> Exercise rehabilitation
A13: ='Input Sheet'!A15 -> Patient Goal | C13: ='Input Sheet'!C15 -> Performance | E13: ='Input Sheet'!E15 -> Timeframe: | F13: ='Input Sheet'!F15 -> 3 months
A14: Patient Reported Outcomes (PROM)
A30: ='Input Sheet'!E75 -> Graph 1 represents the subjective results(…%) of ….......An estamted benchmark(..) were selected based on his end goals.
A31: ='Input Sheet'!E76 -> Graph 2 represents the subjective results(…%) of ….......An estamted benchmark(..) were selected based on his end goals.
A32: ='Input Sheet'!E77 -> Graph 3 represents the subjective results(…%) of ….......An estamted benchmark(..) were selected based on his end goals.
A33: Patient Reported VAS Pain
A52: ='Input Sheet'!G24 -> Graph 1 indicates a 5 in patella tendon pain while running 10 minutes
A53: ='Input Sheet'!G25 -> Graph 2 indicates a 4 in patella tendon pain while doing a single leg squad.
A55: Patient Performance Based Outcomes

Sheet Progress_1_Rep
A1: Progress report
D6: Translate research into private practice
A7: ='Input Sheet'!A8 -> Initial assesment | C7: ='Input Sheet'!C8 -> 1 | E7: ='Input Sheet'!$E$8 -> Clinical summary
A8: ='Input Sheet'!A9 -> Date: | C8: ='Input Sheet'!C9 -> 44717 | E8: ='Input Sheet'!AD8 -> History: | F8: ='Input Sheet'!AE8 -> Jan was operated on the 12the of April, and with ACLR
A9: ='Input Sheet'!A10 -> Name & Surname: | C9: ='Input Sheet'!C10 -> Koos | E9: ='Input Sheet'!AD10 -> Current Progress | F9: ='Input Sheet'!S10 -> 0
A10: ='Input Sheet'!A11 -> Field | C10: ='Input Sheet'!C11 -> Orthopeadic | E10: ='Input Sheet'!AD11 -> Clinical symptoms: | F10: ='Input Sheet'!S11 -> Patella femoral pain
A11: ='Input Sheet'!A12 -> Diagnose: | C11: Primary | D11: Secondary | E11: ='Input Sheet'!AD12 -> Current intervention: | F11: ='Input Sheet'!S12 -> Exercise rehabilitation
C12: ='Input Sheet'!C13 -> ACLR | D12: ='Input Sheet'!D13 -> NSLBP | E12: ='Input Sheet'!AD13 -> Clinician Involve: | F12: ='Input Sheet'!S13 -> Marinelle(Biokineticist)
A13: ='Input Sheet'!A14 -> Months/weeks after injury | C13: ='Input Sheet'!C14 -> 5 months | E13: ='Input Sheet'!AD14 -> Primary treatment | F13: ='Input Sheet'!S14 -> Exercise rehabilitation
A14: ='Input Sheet'!A15 -> Patient Goal | C14: ='Input Sheet'!C15 -> Performance | E14: ='Input Sheet'!AD15 -> Timeframe: | F14: ='Input Sheet'!S15 -> 3 months
A15: Patient Reported Outcomes (PROM)
A34: ='Input Sheet'!S18 -> Graph 1 summarizes the subjective improvement of(….%) over the exercise rehabilitation period. Currently, Mr. Potgieter achieved 66% (Benchmark 89%)
A35: ='Input Sheet'!S19 -> Graph 2 summarizes the subjective improvement of(….%) over the exercise rehabilitation period. Currently, Mr. Potgieter achieved 66% (Benchmark 89%)
A36: ='Input Sheet'!S20 -> Graph 3 summarizes the subjective improvement of (….%) over the exercise rehabilitation period. Currently, Mr. Potgieter achieved 66% (Benchmark 89%)
A38: Patient Reported VAS Pain
A59: Patient Performance Based Outcomes

Sheet Progress_2_Rep
A1: Progress 2 report
D6: Translate research into private practice
A7: ='Input Sheet'!A8 -> Initial assesment | C7: ='Input Sheet'!C8 -> 1 | E7: ='Input Sheet'!$E$8 -> Clinical summary
A8: ='Input Sheet'!A9 -> Date: | C8: ='Input Sheet'!C9 -> 44717 | E8: ='Input Sheet'!AD8 -> History: | F8: ='Input Sheet'!AE8 -> Jan was operated on the 12the of April, and with ACLR
A9: ='Input Sheet'!A10 -> Name & Surname: | C9: ='Input Sheet'!C10 -> Koos | E9: ='Input Sheet'!AD10 -> Current Progress | F9: ='Input Sheet'!AE9 -> 0
A10: ='Input Sheet'!A11 -> Field | C10: ='Input Sheet'!C11 -> Orthopeadic | E10: ='Input Sheet'!AD11 -> Clinical symptoms: | F10: ='Input Sheet'!AE10 -> 0
A11: ='Input Sheet'!A12 -> Diagnose: | C11: Primary | D11: Secondary | E11: ='Input Sheet'!AD12 -> Current intervention: | F11: ='Input Sheet'!AE11 -> Patella femoral pain
C12: ='Input Sheet'!C13 -> ACLR | D12: ='Input Sheet'!D13 -> NSLBP | E12: ='Input Sheet'!AD13 -> Clinician Involve: | F12: ='Input Sheet'!AE12 -> Exercise rehabilitation
A13: ='Input Sheet'!A14 -> Months/weeks after injury | C13: ='Input Sheet'!C14 -> 5 months | E13: ='Input Sheet'!AD14 -> Primary treatment | F13: ='Input Sheet'!AE13 -> Marinelle(Biokineticist)
A14: ='Input Sheet'!A15 -> Patient Goal | C14: ='Input Sheet'!C15 -> Performance | E14: ='Input Sheet'!AD15 -> Timeframe: | F14: ='Input Sheet'!AE14 -> Exercise rehabilitation
A15: Patient Reported Outcomes (PROM)
A33: ='Input Sheet'!AE18 -> Graph 1 summarizes the subjective improvement of(….%) over the exercise rehabilitation period. Currently, Mr. Potgieter achieved 66% (Benchmark 89%)
A34: ='Input Sheet'!AE19 -> Graph 2 summarizes the subjective improvement of(….%) over the exercise rehabilitation period. Currently, Mr. Potgieter achieved 66% (Benchmark 89%)
A35: ='Input Sheet'!AE20 -> Graph 3 summarizes the subjective improvement of (….%) over the exercise rehabilitation period. Currently, Mr. Potgieter achieved 66% (Benchmark 89%)
A36: Patient Reported VAS Pain
A54: ='Input Sheet'!AH24 -> Graph 1 indicates a decline(-5) in patella tendon pain to a 2/10 while running 10 minutes.
A55: ='Input Sheet'!AH25 -> Graph 2 indicates a decline(-6) in patella tendon pain to a 2/10 while doing squad manoeuver
A56: Patient Performance Based Outcomes

Sheet Discharge_Rep
A1: Progress 2 report
D6: Translate research into private practice
A7: ='Input Sheet'!A8 -> Initial assesment | C7: ='Input Sheet'!C8 -> 1 | E7: ='Input Sheet'!$E$8 -> Clinical summary
A8: ='Input Sheet'!A9 -> Date: | C8: ='Input Sheet'!C9 -> 44717 | E8: ='Input Sheet'!AD8 -> History: | F8: ='Input Sheet'!AE8 -> Jan was operated on the 12the of April, and with ACLR
A9: ='Input Sheet'!A10 -> Name & Surname: | C9: ='Input Sheet'!C10 -> Koos | E9: ='Input Sheet'!AD10 -> Current Progress | F9: ='Input Sheet'!AE9 -> 0
A10: ='Input Sheet'!A11 -> Field | C10: ='Input Sheet'!C11 -> Orthopeadic | E10: ='Input Sheet'!AD11 -> Clinical symptoms: | F10: ='Input Sheet'!AT10 -> Patella femoral pain
A11: ='Input Sheet'!A12 -> Diagnose: | C11: Primary | D11: Secondary | E11: ='Input Sheet'!AD12 -> Current intervention: | F11: ='Input Sheet'!AT11 -> Exercise rehabilitation
C12: ='Input Sheet'!C13 -> ACLR | D12: ='Input Sheet'!D13 -> NSLBP | E12: ='Input Sheet'!AD13 -> Clinician Involve: | F12: ='Input Sheet'!AT12 -> Marinelle(Biokineticist)
A13: ='Input Sheet'!A14 -> Months/weeks after injury | C13: ='Input Sheet'!C14 -> 5 months | E13: ='Input Sheet'!AD14 -> Primary treatment | F13: ='Input Sheet'!AT13 -> Exercise rehabilitation
A14: ='Input Sheet'!A15 -> Patient Goal | C14: ='Input Sheet'!C15 -> Performance | E14: ='Input Sheet'!AD15 -> Timeframe: | F14: ='Input Sheet'!AT14 -> 3 months
A15: Patient Reported Outcomes (PROM)
A35: Patient Reported VAS Pain
A56: Patient Performance Based Outcomes

Sheet Patient Initial Dashboard (hidden)
J4: =#REF! ->  | K4: =#REF! -> 

Sheet Reporting Initial (hidden)
A1: Initial report
A5: =#REF! ->  | B5: =#REF! ->  | D5: =#REF! -> 
A6: =#REF! ->  | B6: =#REF! ->  | D6: =#REF! -> 
A7: =#REF! ->  | B7: =#REF! -> 
A8: =#REF! ->  | B8: =#REF! -> 
A9: =#REF! ->  | B9: =#REF! ->  | C9: =#REF! -> 
B10: =#REF! ->  | C10: =#REF! -> 
A11: =#REF! ->  | B11: =#REF! -> 
A12: =#REF! ->  | B12: =#REF! -> 
A13: Baseline chart: Patient Reported Outcomes (PROM)
A27: =#REF! -> 
A28: Baseline chart: Patient Reported VAS Pain
A38: =#REF! -> 
A39: =#REF! -> 
A42: Baseline chart: Patient Performance Based Outcomes
A73: Conclusion

Sheet Patient Progress 1 Dashboard (hidden)
C2: =#REF! ->  | D2: =#REF! -> 

Sheet Dropdown (hidden)
A1: VISA- P (Patella tendon) | D1: Neck
A2: KOOS (TKR or OA) | D2: Neck Disability Index
A3: Kujala(PFPS) | D3: Shoulder
A4: IKDC (Knee ligament or acute injuries) | D4: WOSI
A5: ACL-RSI (Fear of re-injury) | D5: Spadi
D6: Dash
A7: 0 | D7: Lower Back
A8: 1 | D8: Oswestry Disability Index
A9: 2 | D9: Hip
A10: 3 | D10: Ihot -33
A11: 4 | D11: Hagos
A12: 5 | D12: HOOS
A13: 6 | D13: VISA -H
A14: 7 | D14: Knee
A15: 8 | D15: Kujala(PFPS)
A16: 9 | D16: VISA -P (Patella Tendon)
A17: 10 | D17: IKDC
D18: KOOS(OA/TKR)
A19: Oxford Scale (MMT) | D19: Lysholm
A20: MicroFit/Biofet | B20: Kg | D20: Lower leg
A21: DynoMo | B21: Nm | D21: MTSS
A22: Cybex | B22: Joule | D22: Ankle and Foot
A23: Biodex | B23: Percentage | D23: VISA-A
A24: Easy angle | B24: Degrees | D24: FAAM
A25: Force Plate | B25: Newton | D25: Foot posture index
A26: Y-Balance | B26: Centimetre
A27: Stopwatch | B27: Numeric value
A28: Step | B28: Seconds
A29: Leg Press | B29: Repetitions
A30: Bench Press | B30: Inches
A31: Goniometre | B31: Pounds
A32: PAP
A33: Tubing
A34: Swiss Ball and Stop watch
A35: Measuring Tape
A39: 1 month
A40: 2 month
A41: 3 month
A42: 4 month
A43: 5 month
A44: 6 month
A45: 7 month
A46: 8 month
A48: LSI
A49: Benchmark
A51: Injured vs Uninjured
A52: Injured vs Benchmark
